{"text_format":"1","workbook":"xlsx","n_sheets":6,"sheets":["START","CompletionEval","YrEndEval","Contractor Information","YrEnd Ratings","Final Ratings"],"not_rendered":{"charts":0,"images":1,"macros":1,"external_links":0,"defined_names":51,"comments":2,"pivot_tables":0},"unopened":[],"bounds":{"document_bytes":16777216,"sheet_cells":100000,"rows_first":2000,"rows_last":500,"rows_between":2000,"halvings":0,"cell_chars":16384,"cell_head_chars":4096},"cells_cut":0,"cells_raw":0,"read":"whole","date_system":"1904"}

{"sheet":"START","index":0,"n_rows":1,"n_cols":1,"rows_kept":1,"cut":false,"hidden":false,"merged":[[0,0,16,9]]}
["Please Enable Macros Before Using this Form"]

{"sheet":"CompletionEval","index":1,"n_rows":36,"n_cols":8,"rows_kept":36,"cut":false,"hidden":false,"merged":[[0,1,0,5],[0,6,0,7],[3,4,3,6],[4,4,4,6],[5,4,5,6],[2,3,2,4],[2,5,2,6],[34,4,34,6],[32,4,32,5],[31,3,31,4],[6,4,6,6],[1,0,1,7],[25,1,29,6],[16,1,16,4],[20,1,20,4],[23,1,23,4],[8,1,8,7]]}
[null,"\nKentucky Transportation Cabinet   \n    Division of Construction Procurement                                                                   CONTRACTOR PERFORMANCE EVALUATION",null,null,null,null,"TC 63-74  04/2021"]
["Section 1: Project Completion Evaluation"]
["Name",null,null,"Prime/Sub?"]
["Contract ID#",null,null,"County"]
["Address",{"$f":"VLOOKUP(Name,'Contractor Information'!$A$2:$K$2501,4,FALSE)","v":{"$error":"#N/A"}},null,"City",{"$f":"VLOOKUP(Name,'Contractor Information'!$A$2:$K$2501,7,FALSE)","v":{"$error":"#N/A"}}]
["Phone Number",{"$f":"VLOOKUP(Name,'Contractor Information'!$A$2:$K$2501,11,FALSE)","v":{"$error":"#N/A"}},null,"Zip",{"$f":"VLOOKUP(Name,'Contractor Information'!$A$2:$K$2501,10,FALSE)","v":{"$error":"#N/A"}}]
["Completion Date",null,null,"State",{"$f":"VLOOKUP(Name,'Contractor Information'!$A$2:$K$2501,9,FALSE)","v":{"$error":"#N/A"}}]
[]
[null,"Contractor Performance Report"]
[null,"CATEGORY",null,null,null,null,"Max"]
[null,"    Element","Standard Comment (Per Applicable Rating)","Level","Rating","Score","Score","%"]
[null,"A. Contractor Work Performance (Max=70)"]
[null,"    A1.  Overall quality of work of the contractor (including subcontractors <$50,000)",{"$f":"IF(ISBLANK(Question1),\"\",VLOOKUP(Question1,'Final Ratings'!$A$10:$B$14,2,FALSE))","v":""},5,null,{"$f":"D13*E13","v":0},25,{"$f":"F13/G13","v":0}]
[null,"    A2.  Meeting of contract dates (including approved extensions)",{"$f":"IF(ISBLANK(Question2),\"\",VLOOKUP(Question2,'Final Ratings'!$A$19:$B$23,2,FALSE))","v":""},3,null,{"$f":"D14*E14","v":0},15,{"$f":"F14/G14","v":0}]
[null,"    A3. Completion of job closout activities (punch list, clean-up, paperwork, etc) in a timely manner",{"$f":"IF(ISBLANK(Question3),\"\",VLOOKUP(Question3,'Final Ratings'!$A$28:$B$32,2,FALSE))","v":""},3,null,{"$f":"D15*E15","v":0},15,0]
[null,"    A4. Cooperation/Coordination with KYTC's Project Staff",{"$f":"IF(ISBLANK(Question4),\"\",VLOOKUP(Question4,'Final Ratings'!$A$37:$B$41,2,FALSE))","v":""},3,null,{"$f":"D16*E16","v":0},15,0]
[null,"    CATEGORY A TOTAL",null,null,null,{"$f":"SUM(F13:F16)","v":0},{"$f":"SUM(G13:G16)","v":70},0]
[null,"B.Public Safety and Traffic Control (Max=40)"]
[null,"    B1. Maintenance of Traffic (proper signage, workers worked during allowable hours, public notification)",{"$f":"IF(ISBLANK(Question5),\"\",VLOOKUP(Question5,'Final Ratings'!$A$48:$B$52,2,FALSE))","v":""},3,null,{"$f":"D19*E19","v":0},15,0]
[null,"    B2.  Overall Safety of Employees (including subcontractors)",{"$f":"IF(ISBLANK(Question6),\"\",VLOOKUP(Question6,'Final Ratings'!$A$57:$B$61,2,FALSE))","v":""},5,null,{"$f":"D20*E20","v":0},25,0]
[null,"    CATEGORY B TOTAL",null,null,null,{"$f":"SUM(F19:F20)","v":0},{"$f":"SUM(G19:G20)","v":40},0]
[null,"C. Environmental Requirements (Max=15)"]
[null,"    C1. Performance of environmental mitigation methods (e.g. maintaining silt fencing, erosion control)",{"$f":"IF(ISBLANK(Question7),\"\",VLOOKUP(Question7,'Final Ratings'!$A$68:$B$73,2,FALSE))","v":""},3,null,{"$f":"D23*E23","v":0},{"$f":"IF(E23=0, \"0\", \"15\")","v":"0"},{"$f":"IF(E23=0, \"N/A\", F23/G23)","v":"N/A"}]
[null,"    CATEGORY C TOTAL",null,null,null,{"$f":"F23","v":0},{"$f":"IF(E23=0, \"N/A\", \"15\")","v":"N/A"},{"$f":"IF(E23=0, \"N/A\", F24/G24)","v":"N/A"}]
[null,"Section I Maximum Score ",null,null,null,{"$f":"F17+F21+F24","v":0},{"$f":"G17+G21+G23","v":110},{"$f":"F25/G25","v":0}]
["Comments:",null,null,null,null,null,null,{"$f":"H25*5","v":0}]
[]
[]
[]
[]
[]
[null,null,null,"District"]
[null,"            Print            ","            Print            ","    Date",{"$f":"TODAY()","v":"2021-10-26"}]
[]
[null,"_____________________________   Section ","__________________________   PD&P Branch Manager","TEBM Date"]
[null,"            Sign                                   Engineer","            Sign"]

{"sheet":"YrEndEval","index":2,"n_rows":35,"n_cols":8,"rows_kept":35,"cut":false,"hidden":false,"merged":[[6,4,6,6],[33,4,33,6],[1,0,1,7],[8,1,8,7],[0,1,0,5],[0,6,0,7],[31,4,31,5],[19,1,19,4],[30,3,30,4],[22,1,22,4],[24,1,28,6],[15,1,15,4],[2,3,2,4],[2,5,2,6],[3,4,3,6],[4,4,4,6],[5,4,5,6]]}
[null,"\nKentucky Transportation Cabinet   \n    Division of Construction Procurement                                                                   CONTRACTOR PERFORMANCE EVALUATION",null,null,null,null,"TC 63-74  04/2021"]
["Section 2: Interim/Year-End Evaluation"]
["Name",null,null,"Prime/Sub?",null,"Prime"]
["Contract ID#",null,null,"County","test"]
["Address",{"$f":"VLOOKUP(Name,'Contractor Information'!$A$2:$K$2501,4,FALSE)","v":{"$error":"#N/A"}},null,"City",{"$f":"VLOOKUP(Name,'Contractor Information'!$A$2:$K$2501,7,FALSE)","v":{"$error":"#N/A"}}]
["Phone Number",{"$f":"VLOOKUP(Name,'Contractor Information'!$A$2:$K$2501,11,FALSE)","v":{"$error":"#N/A"}},null,"Zip",{"$f":"VLOOKUP(Name,'Contractor Information'!$A$2:$K$2501,10,FALSE)","v":{"$error":"#N/A"}}]
[null,null,null,"State",{"$f":"VLOOKUP(Name,'Contractor Information'!$A$2:$K$2501,9,FALSE)","v":{"$error":"#N/A"}}]
[]
[null,"Contractor Performance Report"]
[null,"CATEGORY",null,null,null,null,"Max"]
[null,"    Element","Standard Comment (Per Applicable Rating)","Level","Rating","Score","Score","%"]
[null,"A. Contractor Work Performance (Max=70)"]
[null,"    A1.  Overall quality of work of the contractor (including subcontractors <$50,000)",{"$f":"IF(ISBLANK(Question1),\"\",VLOOKUP(Question1,'YrEnd Ratings'!$A$9:$B$11,2,FALSE))","v":""},5,null,{"$f":"D13*E13","v":0},25,{"$f":"F13/G13","v":0}]
[null,"    A2.  Meeting of contract dates (including approved extensions)",{"$f":"IF(ISBLANK(Question2),\"\",VLOOKUP(Question2,'YrEnd Ratings'!$A$16:$B$18,2,FALSE))","v":""},3,null,{"$f":"D14*E14","v":0},15,{"$f":"F14/G14","v":0}]
[null,"    A4. Cooperation/Coordination with KYTC's Project Staff",{"$f":"IF(ISBLANK(Question4),\"\",VLOOKUP(Question4,'YrEnd Ratings'!$A$23:$B$25,2,FALSE))","v":""},3,null,{"$f":"D15*E15","v":0},15,0]
[null,"    CATEGORY A TOTAL",null,null,null,{"$f":"SUM(F13:F15)","v":0},{"$f":"SUM(G13:G15)","v":55},0]
[null,"B.Public Safety and Traffic Control (Max=40)"]
[null,"    B1. Maintenance of Traffic (proper signage, workers worked during allowable hours, public notification)",{"$f":"IF(ISBLANK(Question5),\"\",VLOOKUP(Question5,'YrEnd Ratings'!$A$32:$B$34,2,FALSE))","v":""},3,null,{"$f":"D18*E18","v":0},15,0]
[null,"    B2.  Overall Safety of Employees (including subcontractors)",{"$f":"IF(ISBLANK(Question6),\"\",VLOOKUP(Question6,'YrEnd Ratings'!$A$39:$B$41,2,FALSE))","v":""},5,null,{"$f":"D19*E19","v":0},25,0]
[null,"    CATEGORY B TOTAL",null,null,null,{"$f":"SUM(F18:F19)","v":0},{"$f":"SUM(G18:G19)","v":40},0]
[null,"C. Environmental Requirements (Max=15)"]
[null,"    C1. Performance of environmental mitigation methods (e.g. maintaining silt fencing, erosion control)",{"$f":"IF(ISBLANK(Question7),\"\",VLOOKUP(Question7,'YrEnd Ratings'!$A$48:$B$51,2,FALSE))","v":""},3,null,{"$f":"D22*E22","v":0},{"$f":"IF(E22=0, \"0\", \"15\")","v":"0"},{"$f":"IF(E22=0, \"N/A\",F22/G22)","v":"N/A"}]
[null,"    CATEGORY C TOTAL",null,null,null,{"$f":"F22","v":0},{"$f":"IF(E22=0, \"N/A\", \"15\")","v":"N/A"},{"$f":"IF(E22=0, \"N/A\",F23/G23)","v":"N/A"}]
[null,"Section I Maximum Score ",null,null,null,{"$f":"F16+F20+F23","v":0},{"$f":"G16+G20+G22","v":95},{"$f":"F24/G24","v":0}]
["Comments:",null,null,null,null,null,null,{"$f":"H24*5","v":0}]
[]
[]
[]
[]
[]
[null,"__________________________","__________________________","District"]
[null,"            Print            ","            Print            ","    Date",{"$f":"TODAY()","v":"2021-10-26"}]
[]
[null,"__________________________   Section ","__________________________   PD&P Branch Manager","TEBM Date"]
[null,"            Sign                              Engineer","            Sign"]

{"sheet":"Contractor Information","index":3,"n_rows":2209,"n_cols":11,"rows_kept":2209,"cut":false,"hidden":false,"merged":[]}
["Vendor Name","Type","Vendor #","Address",null,null,"City    ",null,"State    ","Zip","Phone"]
["300 INDUSTRIAL LLC",99,"03583","5959 W LIBERTY ST 2ND FL",null,null,"HUBBARD",null,"OH","44425","(330)568-4380"]
["360 CONSTRUCTION COMPANY INC",99,"03158","1252 INDUSTRIAL PKWY N STE 1",null,null,"BRUNSWICK",null,"OH","44212","(216)883-5560"]
["3D ENTERPRISES CONTRACTING CORPORATION",99,"02090","3257 LOCHNESS DRIVE",null,null,"LEXINGTON",null,"KY","40517","(859)272-6618"]
["3-DS BRIDGE PAINTING CORPORATION",99,"02530","206 TARPON INDUSTRIAL CIRCLE",null,null,"TARPON SPRINGS",null,"FL","34689","(727)943-8401"]
["3M COMPANY",99,"03204","3M CENTER BUILDING 235-3A-09",null,null,"SAINT PAUL",null,"MN","55144","(651)736-7616"]
["A & A CONCRETE SAWING & DRILLING INC",99,"02796","P O BOX 72282",null,null,"LOUISVILLE",null,"KY","40272","(502)995-7500"]
["A & A CONCRETE SAWING AND DRILLING LLC",99,"02668","1452 HUGH AVENUE",null,null,"LOUISVILLE",null,"KY","40213","(502)238-3780"]
["A & A PAINTING",99,"03389","74 CREED CIRCLE",null,null,"CAMPBELL",null,"OH","44405","(330)750-0637"]
["A & A PAINTING OF OHIO LLC",99,"03611","74 CREED CIRCLE",null,null,"CAMPBELL",null,"OH","44405","(330)750-0637"]
["A & A SAFETY INC",99,"02413","1126 FERRIS RD",null,null,"AMELIA",null,"OH","45102","(513)943-6100"]
["A & B CONSTRUCTION LLC",99,"03765","P O BOX 647",null,null,"LONDON",null,"KY","40743","(606)878-2071"]
["A & G CONTRACTORS",99,"02433","1194 ST ANTHONY CHURCH ROAD",null,null,"CLARKSON",null,"KY","42726","(502)242-9565"]
["A & K CONSTRUCTION INC & SUBSIDIARY",99,"02485","100 CALLOWAY CT",null,null,"PADUCAH",null,"KY","42001","(270)441-7752"]
["A & L UNDERGROUND INC",99,"01617","14700 W 107TH STREET",null,null,"SHAWNEE MISSION",null,"KS","66215","(913)438-2981"]
["A & S SERVICES INC",99,"02294","P O BOX 352",null,null,"HENDERSON",null,"KY","42419-0352","(502)826-3412"]
["A B C CUTTING CONTRACTORS INC",99,"02542","136 PRODUCTION COURT",null,null,"LOUISVILLE",null,"KY","40299","(502)363-6601"]
["A B INC OF KY D/B/A HCL INC",99,"03443","1520 ALGONQUIN PKWY",null,null,"LOUISVILLE",null,"KY","40210","(502)638-9791"]
["A D E CONTRACTING INC",99,"03339","1044 DUNCAN RD",null,null,"LAWRENCEBURG",null,"KY","40342","(859)621-7941"]
["A I C CONSTRUCTION LLC",99,"02490","11441 INDUSTRIPLEX BLVD SUITE 140",null,null,"BATON ROUGE",null,"LA","70809","(225)295-4830"]
["A S L EXCAVATING INC",99,"02280","P O BOX 321",null,null,"FLEMINGSBURG",null,"KY","41041","(606)849-4511"]
["A V P INC",99,"03186","P O BOX 973",null,null,"HENDERSON",null,"KY","42419","(270)826-7711"]
["A-1 INDUSTRIAL MAINTENANCE INC",99,"03140","601 PENHALE AVE",null,null,"CAMPBELL",null,"OH","44405","(330)750-6200"]
["AAA ELECTRICAL CONTRACTORS LLC",99,"03052","1051 BRYANT WAY SUITE J",null,null,"BOWLING GREEN",null,"KY","42103","(270)842-5222"]
["AAA FENCE LLC",99,"03515","P O BOX 7729",null,null,"PADUCAH",null,"KY","42002","(270)444-6865"]
["AAD CONTRACTING INC",99,"03793","P O BOX 14287",null,null,"POLAND",null,"OH","44514","(330)398-8189"]
["AARON CONTRACTORS",99,"02096","RT 2 BOX 237",null,null,"ALBANY",null,"KY","42602","(606)387-7841"]
["ABATEMENT SOLUTIONS TECHNOLOGIES INC",99,"03726","444 TERRY BLVD",null,null,"LOUISVILLE",null,"KY","40229","(502)635-5051"]
["ABC CUTTING CONTRACTORS INC",99,"02932","5230 COMMERCE CIR",null,null,"INDIANAPOLIS",null,"IN","46237","(317)885-8989"]
["ABEL CONSTRUCTION COMPANY INC",99,"01873","2401 STANLEY GAULT PKWY",null,null,"LOUISVILLE",null,"KY","40223","(502)451-2235"]
["ABHE & SVOBODA INC",99,"01526","18100 DAIRY LN",null,null,"JORDAN",null,"MN","55352","(952)447-6025"]
["ABR CONSTRUCTION INC",99,"03436","121 CRESTVIEW CT",null,null,"NICHOLASVILLE",null,"KY","40356","(859)254-2866"]
["ACCESS LIMITED CONSTRUCTION COMPANY INC",99,"03671","1102 PIKE LN",null,null,"OCEANO",null,"CA","93445","(805)592-2230"]
["ACCIONA INFRAESTRUCTURAS S A",99,"03387","333 WEST WACKER DRIVE  SUITE 1500",null,null,"CHICAGO",null,"IL","60606","(514)658-6153"]
["ACCO INC",99,"02664","5515 POPLAR PARK BLVD",null,null,"LOUISVILLE",null,"KY","40228","(502)962-8844"]
["ACCURATE PROFILE GRINDING LLC",99,"03768","P O BOX 487",null,null,"ROGERS",null,"MN","55374","(763)428-0717"]
["ACE REBAR AND CONSTRUCTION INC",99,"03435","801 NORTH PINE HILLS ROAD",null,null,"ORLANDO",null,"FL","32808","(407)704-7803"]
["ACME CONCRETE PAVING INC",99,"03479","4124 E BROADWAY AVENUE",null,null,"SPOKANE",null,"WA","99202","(509)242-1234"]
["ADAMS CONTRACTING LLC",99,"03658","131 PROSPEROUS PL STE 19A",null,null,"LEXINGTON",null,"KY","40509","(859)629-4948"]
["ADAMS HIGHWAY SERVICES INC",99,"03855","10305 TROTTERS POINT DR UNIT 102",null,null,"LOUISVILLE",null,"KY","40241","(859)619-6933"]
["ADELPHI INC DBA G FORCE CONTRACTING",99,"02639","P O BOX 8629",null,null,"WARREN",null,"OH","44484","(330)755-0900"]
["ADLETA INC",99,"03213","389 S WAYNE AVE",null,null,"CINCINNATI",null,"OH","45215","(513)554-1469"]
["ADVANCE CONSTRUCTION OF KY LLC",99,"03107","341 PREAKNESS DRIVE",null,null,"LEXINGTON",null,"KY","40516","(859)361-6452"]
["ADVANCED ELECTRICAL SYSTEMS INC",99,"03160","P O BOX 36503",null,null,"LOUISVILLE",null,"KY","40233","(502)962-1102"]
["ADVANCED MULCHING TECHNOLOGIES INC",99,"02835","P.O. BOX 22273",null,null,"LEXINGTON",null,"KY","40522","(859)231-0500"]
["ADVANCED PAVING AND CONSTRUCTION",99,"01543","P O BOX 125",null,null,"EASTWOOD",null,"KY","40018","(502)245-8935"]
["ADVANTAGE BLASTING & DEMOLITION LLC",99,"03747","2900 S NOAH DRIVE",null,null,"SAXONBURG",null,"PA","16056","(878)208-1573"]
["ADVANTAGE ENTERPRISES INC",99,"02153","5030 ADVANTAGE DRIVE",null,null,"TOLEDO",null,"OH","43612","(419)727-0027"]
["AFFHOLDER INC",99,"03001","17988 EDISON AVENUE",null,null,"CHESTERFIELD",null,"MO","63005","(636)530-8000"]
["AGRADE CONSTRUCTION INC",99,"03691","P O BOX 1227 102 COUGAR DR",null,null,"ELKHORN CITY",null,"KY","41522","(606)369-5044"]
["AGRISCAPES",99,"02510","6456 CINCINNATI-DAYTON ROAD",null,null,"LIBERTY TOWNSHIP",null,"OH","45044","(513)779-7002"]
["AHERN & ASSOCIATES INC",99,"01946","PO BOX 9367  5725 KANAWHA TURNPIKE SW",null,null,"CHARLESTON",null,"WV","25309","(304)766-8062"]
["AIRFIELD ETC INC",99,"03836","3629 PRESCOTT RD",null,null,"MEMPHIS",null,"TN","38118","(901)601-7410"]
["AIRYS INC",99,"02608","7455 DUVAN DRIVE",null,null,"TINLEY PARK",null,"IL","60477","(708)429-0660"]
["AJA CONTRACTING LLC",99,"03198","2342 WEISENBERGER MILL ROAD",null,null,"MIDWAY",null,"KY","40347","(859)421-2737"]
["AKINS EXCAVATING COMPANY INC",99,"02715","182 BUSY LN",null,null,"CORBIN",null,"KY","40701","(606)528-9144"]
["AL JOHNSON CONSTRUCTION CO",99,"01196","SUITE 300      2626 E 82ND STREET",null,null,"BLOOMINGTON",null,"MN","55425","(612)854-5097"]
["ALADDIN ELECTRIC INC",99,"01744","P O BOX 600",null,null,"MANITOU",null,"KY","42436-0600","(270)821-1463"]
["ALBERICI CONSTRUCTORS INC",99,"03510","8800 PAGE AVENUE",null,null,"SAINT LOUIS",null,"MO","63114","(314)733-2000"]
["ALBERICI-KENNY JOINT VENTURE",99,"03559","8800 PAGE AVENUE",null,null,"SAINT LOUIS",null,"MO","63114","(314)733-2000"]
["ALDRIDGE ELECTRIC INC",99,"02134","28572 N BRADLEY ROAD",null,null,"LIBERTYVILLE",null,"IL","60048","(847)680-5200"]
["ALL STAR PAVING INC",99,"03783","P O BOX 1109    4320 N US HWY 31",null,null,"SEYMOUR",null,"IN","47274","(812)522-4477"]
["ALLARD EXCAVATING LLC",99,"03892","8336 BENNETT SCHOOL HOUSE RD",null,null,"SOUTH WEBSTER",null,"OH","45682","(740)778-2242"]
["ALLEGHENY RESTORATION AND BUILDERS INC.",99,"02809","P.O. BOX 18032",null,null,"MORGANTOWN",null,"WV","26507","(304)594-2570"]
["ALLEN ENGINEERING INC",99,"03161","2509 LENLAKE CT",null,null,"LEXINGTON",null,"KY","40513","(859)229-7362"]
["ALLENS CONSTRUCTION",99,"02436","P O BOX 541",null,null,"WEST LIBERTY",null,"KY","41472","(606)743-1900"]
["ALLIANCE CORPORATION",99,"00254","P O BOX 1480",null,null,"GLASGOW",null,"KY","42142","(270)651-8848"]
["ALLIANCE MANAGEMENT SERVICES LLC",99,"03654","2106 PRODUCTION DRIVE",null,null,"LOUISVILLE",null,"KY","40299","(502)240-5729"]
["ALLIED PAINTERS CORP",99,"03610","56465 ROMEO PLANK ROAD",null,null,"MALCOMB",null,"MI","48042","(810)602-7113"]
["ALLIZA SOD FARMS INC",99,"02603","12889 WOODBURN ALLEN SPRINGS RD",null,null,"ALVATON",null,"KY","42122","(270)842-0473"]
["ALLSTATE PAINTING AND CONTRACTING CO",99,"02638","1256 INDUSTRIAL PARKWAY",null,null,"BRUNSWICK",null,"OH","44212","(330)220-4233"]
["ALLTERRAIN PAVING & CONSTRUCTION LLC",99,"03772","P O BOX 1248",null,null,"NEW ALBANY",null,"IN","47151","(502)265-4731"]
["ALLTRACK INC",99,"03788","1241 W 900 S",null,null,"PENDLETON",null,"IN","46064","(765)778-9500"]
["ALPH C KAUFMAN INC",99,"02658","114 N 11TH STREET",null,null,"LOUISVILLE",null,"KY","40203","(502)584-5770"]
["ALPHA PAINTING & CONSTRUCTION CO INC",99,"02447","6800 QUAD AVENUE",null,null,"BALTIMORE",null,"MD","21237","(410)288-6800"]
["ALPHA RECLAMATION CONTRACTING INC",99,"02597","379 TAYLOR RD",null,null,"PIKEVILLE",null,"KY","41501","(606)432-0874"]
["AMARI PAINTING & LINING LLC",99,"03804","P O BOX 547",null,null,"MEADOWLANDS",null,"PA","15347","(724)986-7740"]
["AMEC CIVIL LLC",99,"02557","13120 WESTLINKS TERRACE SUITE 6",null,null,"FORT MYERS",null,"FL","33913","(239)561-7288"]
["AMELIE CONSTRUCTION & SUPPLY LLC",99,"03459","1341 OLD FREEPORT ROAD",null,null,"PITTSBURGH",null,"PA","15238","(412)963-6562"]
["AMERICAN BRIDGE CO J/V TRAYLOR BROS INC",99,"03550","1000 AMERICAN BRIDGE WAY",null,null,"CORAOPOLIS",null,"PA","15108","(412)631-1000"]
["AMERICAN BRIDGE COMPANY",99,"01558","1000 AMERICAN BRIDGE WAY",null,null,"CORAOPOLIS",null,"PA","15108","(412)631-1000"]
["AMERICAN CIVIL CONSTRUCTORS INC AND",99,"02745","225 UNION BLVD   STE 500",null,null,"LAKEWOOD",null,"CO","80228","(303)795-2582"]
["AMERICAN CIVIL CONSTRUCTORS WEST COAST L",99,"03776","2990 BAY VISTA CT STE D",null,null,"BENICIA",null,"CA","94510","(707)746-8028"]
["AMERICAN CONTRACTING & SERVICES INC",99,"02185","6200 E HWY 62  BLDG 2503",null,null,"JEFFERSONVILLE",null,"IN","47130","(812)280-4404"]
["AMERICAN FENCE AND CONTRACTING COMPANY",99,"01894","P O BOX 1409",null,null,"BOWLING GREEN",null,"KY","42102-1409","(502)781-7404"]
["AMERICAN LIGHTING & SIGNALIZATION INC",99,"03668","11639 DAVIS CREEK ROAD EAST",null,null,"JACKSONVILLE",null,"FL","32256","(904)886-4300"]
["AMERICAN LIGHTING AND SIGNALIZATION LLC",99,"03774","11639 DAVIS CREEK ROAD EAST",null,null,"JACKSONVILLE",null,"FL","32256","(904)886-4300"]
["AMERICAN PAINTING CO INC",99,"00298","P.O. BOX 609",null,null,"CAMPBELL",null,"OH","44405","(724)964-8397"]
["AMERICAN PAVEMENT SOLUTIONS INC",99,"03613","1455 GRUBER ROAD",null,null,"GREEN BAY",null,"WI","54313","(920)662-9662"]
["AMERICAN PAVEMENTS INC",99,"03794","7475 MONTGOMERY DR",null,null,"PLAIN CITY",null,"OH","43064","(614)873-2191"]
["AMERICAN PAVEMENTS INCORPORATED",99,"02569","7475 MONTGOMERY DR",null,null,"PLAIN CITY",null,"OH","43064","(614)873-2191"]
["AMERICAN PAVEMENTS LLC",99,"03715","7475 MONTGOMERY DRIVE",null,null,"PLAIN CITY",null,"OH","43064","(614)873-2191"]
["AMERICAN STRIPERS LLC",99,"03406","P O BOX 452",null,null,"COLUMBIA",null,"TN","38402","(931)381-6292"]
["AMERICAN TILE CO INC",99,"01857","1335 PAYNE ST",null,null,"LOUISVILLE",null,"KY","40204","(502)585-4497"]
["AMERICOAT PAINTING COMPANY INC",99,"02500","120 PIN OAK PLACE",null,null,"CAMPBELL",null,"OH","44405","(330)755-5022"]
["AMERITECH SLOPE CONSTRUCTORS INC",99,"03640","P O BOX 2702",null,null,"ASHEVILLE",null,"NC","28802","(828)633-6352"]
["AML INC",99,"03253","2916 CAMPION ROAD",null,null,"FLOYDS KNOBS",null,"IN","47119","(812)923-9895"]
["AMS CONSTRUCTION INC",99,"03619","10670 LOVELAND MADEIRA ROAD",null,null,"LOVELAND",null,"OH","45140","(513)794-0410"]
["AMTECK OF KENTUCKY",99,"03187","2421 FORTUNE DRIVE SUITE 150",null,null,"LEXINGTON",null,"KY","40509","(859)255-9546"]
["ANASTASIOS CORP",99,"02473","929 LEBANON ROAD",null,null,"WEST MIFFLIN",null,"PA","15122","(412)461-4777"]
["ANCORP INC",99,"02094","4615  ILLINOIS AVENUE",null,null,"LOUISVILLE",null,"KY","40213","(502)473-1595"]
["ANDERSON COLUMBIA COMPANY INC",99,"02158","P O BOX 1829",null,null,"LAKE CITY",null,"FL","32056","(386)752-7585"]
["ANDERSON CONTRACTING INC",99,"02255","P O BOX 652  2398 N HIGHWAY 25 W",null,null,"WILLIAMSBURG",null,"KY","40769","(606)549-4467"]
["ANDERSON CONTRACTORS LLC",99,"03057","7720 MCVILLE ROAD",null,null,"BURLINGTON",null,"KY","41005","(859)689-0718"]
["ANDERSON FOREST PRODUCTS INC",99,"01435","P O BOX 520",null,null,"TOMPKINSVILLE",null,"KY","42167","(502)487-6778"]
["ANDIS LLC",99,"03856","7897 TIPPENHAUER RD",null,null,"HIGHLAND HEIGHTS",null,"KY","41076","(859)743-2502"]
["ANGEL CONTRACTING LLC",99,"03624","501 DARBY CREEK SUITE 18",null,null,"LEXINGTON",null,"KY","40509","(859)368-0380"]
["ANGELO BENEDETTI INC & SUBSIDIARY",99,"02154","94  FIRST AVENUE",null,null,"BEDFORD",null,"OH","44146","(440)439-3420"]
["ANGELO LAFRATE CONSTRUCTION COMPANY",99,"01966","26400 SHERWOOD",null,null,"WARREN",null,"MI","48091","(810)756-1070"]
["ANNEX RAILROAD BLDERS INC",99,"02337","532 TURTLE CREEK N DR  SUITE",null,null,"INDIANAPOLIS",null,"IN","46227","(317)784-5417"]
["ANPAT INC",99,"02004","112 ADAMS LANE",null,null,"PIKEVILLE",null,"KY","41501","(606)432-3166"]
["ANTIGO CONSTRUCTION INC",99,"02142","2520 CLERMONT ST",null,null,"ANTIGO",null,"WI","54409","(715)627-2222"]
["APAC SOUTHEAST INC",99,"01525","PO BOX 127",null,null,"GREENVILLE",null,"SC","29602","(864)292-9550"]
["APAC TENNESSEE INC",99,"02842","P.O. BOX 13427",null,null,"MEMPHIS",null,"TN","38113-0427","(901)947-5600"]
["APBN INC",99,"03016","P O BOX 637",null,null,"CAMPBELL",null,"OH","44405","(724)964-8252"]
["APEX COATINGS ENTERPRISE LLC",99,"03060","1275 AVENSTOKE ROAD",null,null,"LAWRENCEBURG",null,"KY","40342","(502)517-1257"]
["APEX CONTRACTING INC",99,"00140","PO BOX 798",null,null,"PARIS",null,"KY","40362-0798","(859)987-1637"]
["APPALACHIAN AMERICAN CONSULTING",99,"03401","122 BIG PETE ROAD",null,null,"FRANKLIN FURNACE",null,"OH","45629","(253)561-1617"]
["APPALACHIAN DEVELOPERS LLC",99,"02602","RT 1 BOX 253 B",null,null,"FLEMINGSBURG",null,"KY","41041","(606)849-9288"]
["APPALACHIAN FOOTHILLS CONTRACTING INC",99,"03703","P O BOX 910367",null,null,"LEXINGTON",null,"KY","40591","(859)278-9051"]
["APPALACHIAN PAVING & AGGREGATE LLC",99,"03093","P O BOX 548",null,null,"LENORE",null,"WV","25676","(304)475-0020"]
["APPLIED POLYMERICS OF OHIO VALLEY LLC",99,"03184","3735 PALOMAR CENTRE DR  STE 150  PMB-119",null,null,"LEXINGTON",null,"KY","40513","(859)224-8533"]
["ARBOR WORKS INC",99,"03094","4810 CURVE HILL ROAD",null,null,"LOUISVILLE",null,"KY","40299","(502)491-1304"]
["ARBORCARE INC",99,"02183","718 W  OLD BUCKLEY  ROAD",null,null,"ASHLAND",null,"KY","41102","(606)324-8726"]
["ARC CONSTRUCTION CO INC",99,"03343","P O BOX 2660",null,null,"EVANSVILLE",null,"IN","47728","(812)426-0481"]
["ARCO ENGINEERING INC",99,"02645","3317 GILMORE INDUSTRIAL BLVD",null,null,"LOUISVILLE",null,"KY","40213","(502)966-3134"]
["ARGO CONTRACTING CORPORATON",99,"02471","5752 W WEBB ROAD",null,null,"YOUNGSTOWN",null,"OH","44515","(330)544-3099"]
["ARMSTRONG STEEL ERECTORS INC",99,"01728","P O BOX 577     50 SOUTH FOURTH STREET",null,null,"NEWARK",null,"OH","43058-0577","(614)345-4503"]
["ARNOLD M GRATON ASSOCIATES INC",99,"02941","P O BOX 174",null,null,"HOLDERNESS",null,"NH","03245","(603)968-3621"]
["ARROW ELECTRIC COMPANY INC",99,"00305","P O BOX 36215",null,null,"LOUISVILLE",null,"KY","40233","(502)367-0141"]
["ASH MOUNTAIN INC",99,"02283","P O BOX 982",null,null,"HARLAN",null,"KY","040831","(606)573-3360"]
["ASHCO",99,"02894","P O BOX 486",null,null,"VIRGIE",null,"KY","41572","(606)639-4836"]
["ASHWORTH INVESTIGATIONS SECURITY INC DBA",99,"02751","7 BISON VILLAGE",null,null,"KENOVA",null,"WV","25530","(304)360-5220"]
["ASPHALT CONCRETE SPECIALTIES LLC",99,"03077","3806 DOGWOOD ROAD",null,null,"FLOYDS KNOBS",null,"IN","47119","(502)296-3833"]
["ASPHALT PAVING & MAINTENANCE INC DBA APM",99,"02440","PO BOX 22605      4815 BRYAN STATION RD",null,null,"LEXINGTON",null,"KY","40522","(859)299-8111"]
["ASPHALT PAVING INC DBA API CONTRACTORS &",99,"02765","2950 LITTLE CYPRESS RD",null,null,"CALVERT CITY",null,"KY","42029","(270)898-8090"]
["ASPHALT PAVING SYSTEMS INC",99,"03899","P O BOX 530   500 N EGG HARBOR RD",null,null,"HAMMONTON",null,"NJ","08037","(609)561-4161"]
["ASPHALT SERVICES INC",99,"03516","P O BOX 112",null,null,"HARTFORD",null,"KY","42347","(270)298-3073"]
["ASPLUNDH BRUSH CONTROL CO",99,"02705","708 BLAIR MILL ROAD",null,null,"WILLOW GROVE",null,"PA","19090","(215)784-4200"]
["ASPLUNDH TREE EXPERT CO",99,"02014","200 TWO OAKS DRIVE",null,null,"NICHOLASVILLE",null,"KY","40356","(859)309-0020"]
["ASPLUNDH TREE EXPERT LLC",99,"03790","200 TWO OAKS DR",null,null,"NICHOLASVILLE",null,"KY","40356","(859)309-0020"]
["ASSOCIATED RAILROAD CONTRACTORS INC",99,"02946","P O BOX 19246",null,null,"LOUISVILLE",null,"KY","40259","(502)966-9781"]
["AST - ACME INC",99,"02871","728 S 13TH ST",null,null,"LOUISVILLE",null,"KY","40210","(502)583-8355"]
["ATKINS & STANG INC",99,"02497","1031 META DR",null,null,"CINCINNATI",null,"OH","45237","(513)242-8300"]
["ATLANTA SANDBLASTING & PAINTING INC",99,"02709","P O BOX 1568",null,null,"BUFORD",null,"GA","30515","(770)920-0800"]
["ATLANTIC CONSTRUCTION CO DBA ATLANTIC CO",99,"01540","4226 ALLMOND AVE",null,null,"LOUISVILLE",null,"KY","40209","(502)447-4470"]
["ATLANTIC CONSTRUCTION FABRICS INC D/B/A",99,"02984","2831 CARDWELL ROAD",null,null,"RICHMOND",null,"VA","23234","(804)271-2363"]
["ATLANTIC PAINTING COMPANY INC",99,"02833","10019 SOUTHWEST HIGHWAY",null,null,"OAKLAWN",null,"IL","60453","(708)636-2040"]
["ATLAS CENTRAL CORPORATION",99,"02170","19100 HOLLAND ROAD",null,null,"BROOK PARK",null,"OH","44142-0000","(440)260-7580"]
["ATLAS DOCKS LLC",99,"03696","248 KEYSTONE INDUSTRIAL PARK DRIVE",null,null,"CAMDENTON",null,"MO","65020","(573)346-3625"]
["ATLAS PAINTING AND SHEETING CORP",99,"03326","465 CREEKSIDE DRIVE",null,null,"AMHERST",null,"NY","14228","(716)584-0490"]
["ATLAS RAILROAD CONSTRUCTION CO",99,"01626","P O BOX 8",null,null,"EIGHTY FOUR",null,"PA","15330","(724)228-4500"]
["ATLAS RAILROAD CONSTRUCTION LLC",99,"03318","1370 WASHINGTON PIKE SUITE 202",null,null,"BRIDGEVILLE",null,"PA","15017","(412)677-1991"]
["ATS DRILLING INC",99,"03630","P O BOX 130",null,null,"ROUND ROCK",null,"TX","78680","(817)498-0040"]
["ATSALIS BROTHERS PAINTING CO",99,"02415","24595 GROESBECK HIGHWAY",null,null,"WARREN",null,"MI","48089","(586)790-0123"]
["ATWOOD FENCE CO INC",99,"01883","PO BOX 565",null,null,"KOSCIUSKO",null,"MS","39090","(662)289-6338"]
["AUSTIN & JOHN MUDD",99,"02201","597  SEIBERT CREEK LANE",null,null,"SPRINGFIELD",null,"KY","40069","(606)336-7386"]
["AUSTIN POWDER COMPANY & SUBSIDIARIES",99,"03817","25800 SCIENCE PARK DR",null,null,"CLEVELAND",null,"OH","44122","(216)464-2400"]
["AVALOTIS CORPORATION",99,"02873","P O BOX 6      400 JONES ST",null,null,"VERONA",null,"PA","15147","(412)828-9666"]
["AWIN CORPORATION",99,"02205","83  SECOND AVENUE",null,null,"BURLINGTON",null,"MA","01803-4413","(781)272-9163"]
["AWP INC DBA AREA WIDE PROTECTIVE",99,"03110","4244 MT PLEASANT ST NW",null,null,"NORTH CANTON",null,"OH","44720","(330)677-7401"]
["AXIOM FOUNDATIONS INC",99,"03870","12071 HAMILTON AVE",null,null,"CINCINNATI",null,"OH","45231","(513)825-8100"]
["AXTELLS INC",99,"03543","1586 HEART LAKE RD",null,null,"JERMYN",null,"PA","18433","(570)983-4290"]
["AXTELLS PAVEMENT SOLUTIONS LLC",99,"03586","261 CAREY ROAD",null,null,"SCOTT TOWNSHIP",null,"PA","18433","(570)840-4168"]
["B & B CONTRACTING LLC",99,"02937","P O BOX 825",null,null,"INEZ",null,"KY","41224","(606)298-0863"]
["B & B ELECTRIC COMPANY INC",99,"00316","1460 SUNSHINE LANE",null,null,"LEXINGTON",null,"KY","40505-2910","(859)252-5604"]
["B & B REINFORCING STEEL LLC",99,"02995","P O BOX 53",null,null,"MORGANTOWN",null,"KY","42261","(270)526-3087"]
["B & B TRAFFIC SAFETY LLC",99,"03199","217 W 6TH AVE",null,null,"HUNTINGTON",null,"WV","25701","(304)544-2222"]
["B & B WRECKING & EXCAVATING INC",99,"02742","5801 TRAIN AVENUE",null,null,"CLEVELAND",null,"OH","44102","(216)651-9090"]
["B & J SWEEPING INC",99,"02405","248 OAKLAND ROAD",null,null,"OWINGSVILLE",null,"KY","40360","(606)674-9154"]
["B & L UTILITY CONTRACTORS INC",99,"02025","441 IOWA STREET",null,null,"ASHLAND",null,"KY","41102","(606)325-8301"]
["B & R CONSTRUCTION INC",99,"02923","P O BOX 1218",null,null,"ELKHORN CITY",null,"KY","41522","(606)754-8332"]
["B D & K CONSTRUCTION CO LLC",99,"02613","3693 BOHON ROAD",null,null,"HARRODSBURG",null,"KY","40330","(859)366-4130"]
["B J WARD CONTRACTING LLC",99,"03468","781 GLENDALE RD",null,null,"HODGENVILLE",null,"KY","42748","(270)766-7907"]
["BAKER CONCRETE CONSTRUCTION INC",99,"00318","900 N GARVER RD",null,null,"MONROE",null,"OH","45050","(513)539-4000"]
["BAKERS CONSTRUCTION SERVICES INC",99,"03145","P O BOX 416",null,null,"PINEY FLATS",null,"TN","37686","(423)538-4400"]
["BALDWIN PAVING COMPANY INC",99,"03636","1014 KENMILL DRIVE NW",null,null,"MARIETTA",null,"GA","30060","(770)425-9191"]
["BALFOUR BEATTY CONSTRUCTION INC",99,"02161","999 PEACHTREE STREET N E  SUITE 200",null,null,"ATLANTA",null,"GA","30309","(404)875-0356"]
["BALIS CAMPBELL INC",99,"02474","182 SWARTZ DRIVE",null,null,"HAZARD",null,"KY","41701","(606)436-4663"]
["BANSAL CONSTRUCTION INC.",99,"02482","3271 HOMEWARD WAY",null,null,"FAIRFIELD",null,"OH","45014","(513)874-5410"]
["BANTA ELECTRICAL CONTRACTORS INC",99,"03564","5701 ST ROUTE 128",null,null,"CLEVES",null,"OH","45002","(513)353-4446"]
["BARDSTOWN ASPHALT COMPANY INC",99,"00320","PO BOX 669",null,null,"BARDSTOWN",null,"KY","40004","(502)348-3953"]
["BARNARD CONSTRUCTION COMPANY INC",99,"03019","701 GOLD AVE",null,null,"BOZEMAN",null,"MT","59715","(406)586-1995"]
["BARNS & BRIDGES OF NEW ENGLAND",99,"03663","9 DAMSON LANE",null,null,"GILFORD",null,"NH","03249","(603)293-0402"]
["BARNS AND BRIDGES OF NEW ENGLAND",99,"02954","9 DAMSON LN",null,null,"GILFORD",null,"NH","03249","(603)293-0402"]
["BARRETT PAVING MATERIALS INC & SUBSIDIAR",99,"00210","3751 COMMERCE BLVD",null,null,"MIDDLETOWN",null,"OH","45005","(513)422-4662"]
["BAR-TIE REINFORCING INC",99,"01700","1520 ADAMS RD",null,null,"OWINGSVILLE",null,"KY","40360","(606)674-9413"]
["BARTLEY MOWING COMPANY",99,"02424","1043 PATTON ROAD",null,null,"GLASGOW",null,"KY","42141","(502)678-3602"]
["BASE CONSTRUCTION CO LTD",99,"03023","1595 FRANK ROAD",null,null,"COLUMBUS",null,"OH","43223","(614)351-8963"]
["BASE CONSTRUCTION TECHNOLOGIES INC",99,"03106","2021 LONGWOOD AVENUE",null,null,"GROVE CITY",null,"OH","43123","(614)351-8963"]
["BASS FOUNDATION DRILLING INC",99,"02214","130 COOPER RUN RD",null,null,"SHEPHERDSVILLE",null,"KY","40165","(502)955-9496"]
["BAYLISS AND RAMEY INC",99,"02021","P.O. BOX 503  2262 ROXALANA ROAD",null,null,"DUNBAR",null,"WV","25064","(304)744-6317"]
["BEACON CONSTRUCTION CO INC DBA BEACON",99,"02226","PO BOX 2426   331 PEACHTREE STREET",null,null,"MUSCLE SHOALS",null,"AL","35662","(256)381-8929"]
["BEACON CONSTRUCTION INC",99,"01427","PO BOX 51626",null,null,"BOWLING GREEN",null,"KY","42102-6626","(270)843-9550"]
["BEAR TRAXX INC",99,"02838","1225 ISSAC PARK RD",null,null,"LOUISA",null,"KY","41230","(606)673-1179"]
["BEATY CONSTRUCTION INC",99,"03575","5292 WEST 100 NORTH",null,null,"BOGGSTOWN",null,"KY","46110","(317)835-2254"]
["BECHTEL INFRASTRUCTURE CORPORATION",99,"03381","5275 WESTVIEW DR",null,null,"FREDRICK",null,"MD","21703","(301)228-7418"]
["BEDROCK CONTRACTING INC",99,"03603","PMB 119  3735 PALOMAR CTR DR STE 150",null,null,"LEXINGTON",null,"KY","40513","(859)224-8533"]
["BELL & ASSOCIATES CONSTRUCTION L P",99,"03038","P O BOX 363",null,null,"BRENTWOOD",null,"TN","37024","(615)373-4343"]
["BELL & ASSOCIATES CONSTRUCTION LLC",99,"03893","P O BOX 363",null,null,"BRENTWOOD",null,"TN","37024","(615)373-4343"]
["BELTLINE ELECTRIC COMPANY INC",99,"03679","P O BOX 546",null,null,"PADUCAH",null,"KY","42002","(270)443-8204"]
["BEN HUR CONSTRUCTION COMPANY",99,"01265","3783 RIDER TRAIL SOUTH",null,null,"ST. LOUIS",null,"MO","63045-1114","(314)298-8007"]
["BENCHMARK CONTRACTING INC",99,"03242","P O BOX 124     1473 TUCKER DRIVE",null,null,"BARDSTOWN",null,"KY","40004","(502)348-6125"]
["BENS HAULING & CLEANUP SERVICE",99,"02350","1664 WITT ROAD",null,null,"FRANKLIN",null,"KY","42134","(502)586-7210"]
["BERKEL & COMPANY CONTRACTORS INC & SUBS",99,"02324","2120 COMMERCE PKWY",null,null,"LA GRANGE",null,"KY","40031","(502)225-0053"]
["BERNARD CONCRETE CUTTING INC",99,"03295","1441 GEST STREET",null,null,"CINCINNATI",null,"OH","45203","(513)421-1950"]
["BERRY CONSTRUCTION & ENGINEERING INC",99,"01294","PO BOX 366",null,null,"BUCKNER",null,"KY","40010-0366","(502)222-1003"]
["BETA INDUSTRIAL PAINTING LLC",99,"03795","3648 POLO BLVD",null,null,"POLAND",null,"OH","44514","(330)565-6127"]
["BH - HWZ LLC DBA HWZ CONTRACTING",99,"02945","4730 ASHLEY DR",null,null,"HAMILTON",null,"OH","45011","(513)671-3300"]
["BH GROUP OHIO LLC",99,"03313","4730 ASHLEY DRIVE",null,null,"HAMILTON",null,"OH","45011","(513)671-3300"]
["BIG SANDY GUARDRAIL INC",99,"02463","P O BOX 3760",null,null,"PIKEVILLE",null,"KY","41502","(606)432-3166"]
["BIG TREES INC",99,"01918","PO BOX 54302",null,null,"LEXINGTON",null,"KY","40555","(859)299-0240"]
["BIG VALLEY SEEDING INC",99,"03858","6689 GATE CITY HWY",null,null,"BRISTOL",null,"VA","24202","(276)466-2735"]
["BILCO CONSTRUCTION CO INC",99,"02636","805 WISTERIA DR",null,null,"SOUTH CHARLESTON",null,"WV","25309","(304)565-3007"]
["BILL ADAMS CONSTRUCTION INC",99,"01454","P O BOX 927    305 ANDRUS DR",null,null,"MURRAY",null,"KY","42071","(270)753-7577"]
["BILL BERRYMAN TREE SERVICE LLC",99,"02507","8 CHICKADEE LANE",null,null,"WINCHESTER",null,"KY","40391","(859)744-0025"]
["BILL LEDFORD & SON INC",99,"02339","P O BOX 58",null,null,"WELLINGTON",null,"KY","40387","(606)768-2742"]
["BILL LUCAS CONTRACTING INC",99,"01915","305 HAMILTON DRIVE",null,null,"SLAUGHTERS",null,"KY","42456","(270)884-7056"]
["BISON PAINTING & SHEETING INC",99,"01618","5949 MCCARTNEY ROAD",null,null,"LOWELLVILLE",null,"OH","44436","(330)536-6126"]
["BISON SERVICES LLC",99,"03502","7152 NORTH AA HIGHWAY",null,null,"FOSTER",null,"KY","41043","(606)747-0322"]
["BIZZACK CONST  J/V WITH BUSH & BURCHETT",99,"03456","P O BOX 12530",null,null,"LEXINGTON",null,"KY","40583"]
["BIZZACK CONSTRUCTION LLC",99,"02958","3009 ATKINSON AVENUE STE 200",null,null,"LEXINGTON",null,"KY","40509","(859)299-8001"]
["BIZZACK INC",99,"00226","PO BOX 12530",null,null,"LEXINGTON",null,"KY","40583","(859)299-8001"]
["BLACK SWAMP STEEL INC",99,"03763","P O BOX 1180  1761 COMMERCE RD",null,null,"HOLLAND",null,"OH","43528","(419)867-8050"]
["BLACKTOP INDUSTRIES & EQUIPMENT COMPANY",99,"02213","PO BOX 29",null,null,"KENOVA",null,"WV","25530","(304)453-6196"]
["BLANKENBERGER BROTHERS INC",99,"01670","11700 WATER TANK RD",null,null,"CYNTHIANA",null,"IN","47612","(812)845-2717"]
["BLASTECH ENTERPRISES INC",99,"03294","2200 VAN DEMAN ST STE 100",null,null,"BALTIMORE",null,"MD","21224","(410)633-7070"]
["BLASTECH ENTERPRISES INC J/V ROYAL BRIDG",99,"03903","2200 VAN DEMAN ST  STE 100",null,null,"BALTIMORE",null,"MD","21224"]
["BLOOMSDALE EXCAVATING COMPANY INC",99,"02816","PO BOX 86  12211 STATE ROUTE Y",null,null,"BLOOMSDALE",null,"MO","63627","(573)483-2564"]
["BLOUNT SANFORD CONTRACTING CO",99,"03656","5275 WEBB PARKWAY",null,null,"LIBURN",null,"GA","30047","(770)638-2959"]
["BLUEGRASS CONCRETE & ASSOCIATES INC",99,"03524","412 DONNELLEY DR",null,null,"GLASGOW",null,"KY","42141","(270)678-2003"]
["BLUEGRASS CONCRETE CUTTING &",99,"02719","4802 E MANSLICK RD",null,null,"LOUISVILLE",null,"KY","40219","(502)969-7175"]
["BLUEGRASS CONTRACTING CORPORATION",99,"00129","1075 RED MILE RD",null,null,"LEXINGTON",null,"KY","40504","(859)231-0069"]
["BLUEGRASS ELECTRICAL CONSULTANTS INC",99,"00899","1495 PRODUCTION DR",null,null,"BURLINGTON",null,"KY","41005","(859)371-2583"]
["BLUEGRASS EROSION CONTROL INCORPORATED",99,"03181","5313 BEECH GROVE ROAD",null,null,"LEBANON JUNCTION",null,"KY","40150","(502)543-2902"]
["BLUEGRASS GROUNDS MAINTENANCE LLC",99,"02962","540 BOOKER PIKE",null,null,"SHELBYVILLE",null,"KY","40065","(502)655-0359"]
["BLUEGRASS PAVING INC",99,"02604","PO BOX 667",null,null,"FLORENCE",null,"KY","41022","(859)372-0075"]
["BLUEGRASS STREAM LLC",99,"02908","259 THREE MILE RD",null,null,"BEATTYVILLE",null,"KY","41311","(606)464-1004"]
["BLYTHE CONSTRUCTION INC",99,"00337","P O BOX 31635",null,null,"CHARLOTTE",null,"NC","28231","(704)375-8474"]
["BMC CONTRACTING LLC",99,"03608","P O BOX 450  481 ADENA DR",null,null,"MT STERLING",null,"KY","40353","(859)499-2885"]
["BOB RAY COMPANY INC",99,"02171","723 LYNDON LN",null,null,"LOUISVILLE",null,"KY","40222","(502)425-7654"]
["BOCA CONSTRUCTION INC",99,"01577","380 EASTPARK DR",null,null,"NORWALK",null,"OH","44857","(419)668-5575"]
["BOCA ENTERPRISES INC",99,"03615","7435 KY RT 321",null,null,"HAGER HILL",null,"KY","41222","(606)454-1694"]
["BODINE SERVICES OF EVANSVILLE LLC",99,"03742","3322 TOWER DRIVE",null,null,"NEWBURGH",null,"IN","47630","(812)423-5106"]
["BOLDEN PIPE CONST CO INC DBA BENCHMARK",99,"02624","7005 WESTBELT DRIVE",null,null,"NASHVILLE",null,"TN","37209","(605)350-6100"]
["BOLENS CONCRETE WORK",99,"02772","PO BOX 181  465 CLAY ST",null,null,"BARLOW",null,"KY","42024","(270)334-3694"]
["BOONE AND BOONE FARMS INC",99,"02951","1700 NEW HOPE RD",null,null,"NEW HAVEN",null,"KY","40051","(502)349-3514"]
["BOONE COLEMAN CONSTRUCTION INC",99,"01942","32 STATE ROUTE 239",null,null,"PORTSMOUTH",null,"OH","45663","(740)858-6661"]
["BOONE EXCAVA INC D/B/A UNDERGRND SOUND",99,"02352","P O BOX 801",null,null,"WINCHESTER",null,"KY","40392-0801","(606)744-4951"]
["BOOTHEEL EXCAVATING INC",99,"02304","P O BOX 755",null,null,"JACKSON",null,"MO","63755","(573)243-4445"]
["BOURNE-CLARK CONSTRUCTION LLC",99,"03357","2070 WINCHESTER ROAD",null,null,"MOUNT STERLING",null,"KY","40353","(859)498-0755"]
["BOWLINGS NURSERY INC",99,"03397","P O BOX 35333",null,null,"LOUISVILLE",null,"KY","40232","(502)635-1922"]
["BOYD FELTNER DBA BOYDS CONSTRUCTION",99,"03791","P O BOX 162",null,null,"BONNYMAN",null,"KY","41719","(606)439-3382"]
["BPJ LLC",99,"03314","11421 STATE ROUTE 97",null,null,"SEDALIA",null,"KY","42079","(270)871-7214"]
["BRACKNEY INC",99,"03604","P O BOX 221",null,null,"BROOKVILLE",null,"IN","47012","(765)647-6551"]
["BRAD CRICK DBA CRICK TRENCHING",99,"03810","P O BOX 811      1811 NEW SALEM CIRCLE",null,null,"NORTONVILLE",null,"KY","42442","(270)676-9595"]
["BRADMAR INC",99,"01042","8212 LACEVINE ROAD",null,null,"LOUISVILLE",null,"KY","40220","(502)274-3669"]
["BRADSHAW CONST CORP DBA BRADSHAW",99,"03040","3600 SAINT JOHNS LANE SUITE B",null,null,"ELLICOTT CITY",null,"MD","21042","(410)461-4466"]
["BRAMER BROS LANDSCAPING INC",99,"03434","6244 OLD LAGRANGE ROAD SUITE #8",null,null,"CRESTWOOD",null,"KY","40014","(502)241-2777"]
["BRAMER SOD FARMS INC",99,"01928","8212 LACEVINE ROAD",null,null,"LOUISVILLE",null,"KY","40220","(502)499-6711"]
["BRANDON & BRANDON PAVING INC",99,"02723","742 CHOCTAW DRIVE",null,null,"MADISONVILLE",null,"KY","42431","(270)383-3638"]
["BRANDON K LOVIN CONTRACTING COMPANY",99,"02494","PO BOX 758",null,null,"ROBBINSVILLE",null,"NC","28771","(828)479-9462"]
["BRANDYWINE EXPLOSIVES & SUPPLY INC",99,"03338","P O BOX 440",null,null,"PARIS",null,"KY","40362","(859)987-3612"]
["BRASFIELD & GORRIE LLC & SUBSIDIARY",99,"03625","3021 7TH AVE S",null,null,"BIRMINGHAM",null,"AL","35233","(205)328-4000"]
["BRAY CONSTRUCTION SERVICES INC",99,"03028","7000 THELMA LEE DR STE 100",null,null,"ALEXANDRIA",null,"KY","41001","(859)635-5681"]
["BRAYMAN FOUNDATIONS LLC",99,"03146","11444 N DIXIE DRIVE",null,null,"VANDALIA",null,"OH","45377","(937)667-1425"]
["BREHM STRIPING CO INC",99,"02356","P O BOX 1170  137 BUSINESS ROW",null,null,"EDDYVILLE",null,"KY","42038","(270)388-5370"]
["BREWSTER BUILDERS INC",99,"01697","P O BOX 4219",null,null,"ONEIDA",null,"TN","37841","(423)569-5363"]
["BRIAN T BLAND",99,"03700","801 WALKER LANE",null,null,"SPRINGFIELD",null,"KY","40069","(859)481-8833"]
["BRIDGES R US PAINTING COMPANY INC",99,"01658","419 BLOSSOM AVENUE",null,null,"CAMPBELL",null,"OH","44405","(330)755-9080"]
["BRIDGESMITH INC",99,"03755","4149 STATE ROAD 43",null,null,"SPENCER",null,"IN","47460","(812)935-5005"]
["BRIGHTON PAINTING COMPANY",99,"02058","P O BOX 1008    4410 WAGON WHEEL ROAD",null,null,"SOUTH ROXANA",null,"IL","62087","(618)254-7861"]
["BROADWAY ELECTRIC SERVICE CORPORATION",99,"03267","1800 NORTH CENTRAL ST",null,null,"KNOXVILLE",null,"TN","37917","(865)524-1851"]
["BROADY-CAMPBELL INC",99,"03581","2115 DR ANDREW J BROWN AVENUE",null,null,"INDIANAPOLIS",null,"IN","46202","(317)925-4261"]
["BROCK EXCAVATING INC",99,"02450","407 HWY 2392",null,null,"CORBIN",null,"KY","40701","(606)523-0694"]
["BROSHEAR CONTRACTORS INC",99,"03220","2520 MILLVILLE ROSS ROAD",null,null,"HAMILTON",null,"OH","45013","(513)863-3388"]
["BROWN COUNTY CONSTRUCTION CO INC",99,"02333","8108 US 52 WEST",null,null,"ABERDEEN",null,"OH","45101","(937)795-2740"]
["BROWN FARMS & EQUIPMENT INC",99,"02701","127 MARSH RD",null,null,"BARBOURVILLE",null,"KY","40906","(606)546-6328"]
["BROWNS FARMS & EQUIPMENT",99,"02211","800  PITZER STREET",null,null,"BARBOURVILLE",null,"KY","40906","(606)546-6328"]
["BRYAN STUMLER EXCAVATING INC",99,"03230","5895 STILLER ROAD",null,null,"FLOYDS KNOBS",null,"IN","47119","(812)923-9772"]
["BTI CONTRACTING INC DBA BLACKTOP INDUSTR",99,"03867","21229 BEAR CREEK RD",null,null,"CATLETTSBURG",null,"KY","41129","(606)739-0049"]
["BUFFALO RUN  LLC",99,"02706","ROUTE 1 BOX 79A",null,null,"ALBANY",null,"KY","42602","(606)387-3119"]
["BUFFALO RUN SOD FARMS",99,"02568","SUGAR VALLEY ROAD",null,null,"ALBANY",null,"KY","42602","(606)387-3119"]
["BUILDERS ONE INC DBA KENTUCKY TURF CO",99,"02176","4822  WINCHESTER ROAD",null,null,"LEXINGTON",null,"KY","40509","(859)299-5954"]
["BUILDING CRAFTS INC",99,"00284","2 ROSEWOOD DRIVE",null,null,"WILDER",null,"KY","41076","(859)781-9500"]
["BUNCH ENTERPRISES LLC",99,"03602","1650 KY 6",null,null,"BARBOURVILLE",null,"KY","40906","(606)627-3210"]
["BUNN ENTERPRISES INC & SUBSIDIARIES",99,"02334","13589 STATE RTE 550",null,null,"FLEMING",null,"OH","45729","(740)678-8430"]
["BURLEIGH CONSTRUCTION CO INC",99,"03769","P O BOX 289     7610 VILLAGE HWY",null,null,"CONCORD",null,"VA","24538","(434)993-2214"]
["BURLINGTON CIVIL INC",99,"03789","2601 WEST 4TH STREET",null,null,"OWENSBORO",null,"KY","42301","(270)683-0050"]
["BURLINGTON PAVERS INC",99,"01399","29024 BUSHNELL ROAD",null,null,"BURLINGTON",null,"WI","53105","(414)539-2128"]
["BURTON PAVING INC",99,"02787","PO BOX 369",null,null,"COLUMBIA",null,"KY","42728","(270)384-7283"]
["BUSH & BURCHETT INC",99,"00349","PO BOX 400",null,null,"ALLEN",null,"KY","41601","(606)874-9057"]
["BUSHELS & BLOOMS LLC",99,"03601","3530 BOWLING GREEN RD",null,null,"FRANKLIN",null,"KY","42134","(270)586-6155"]
["BUSHWHACKERS INC",99,"02982","3444 MEADORS SPUR ROAD",null,null,"MONETA",null,"VA","24121","(540)297-4336"]
["BWY CONSTRUCTION CONTRACTORS LLC",99,"03641","570 MORAN STREET",null,null,"DRESDEN",null,"TN","38225","(731)364-2603"]
["BYASSEE PAVING",99,"03887","84 RONEY PAVING",null,null,"CLINTON",null,"KY","42031","(270)254-0306"]
["BYERLY DESIGN & CONSTRUCTION COMPANY",99,"02207","PO BOX 1255",null,null,"DANVILLE",null,"KY","40423-1255","(859)236-6068"]
["BYRD BROTHERS CONSTRUCTION INC",99,"01469","2663 HIGHWAY 205",null,null,"WEST LIBERTY",null,"KY","41472","(606)743-4419"]
["BYRNE & JONES ENTERPRISES INC",99,"03480","11745 R LACKLAND ROAD",null,null,"SAINT LOUIS",null,"MO","63146","(314)567-4756"]
["BYRNES CONWAY COMPANY",99,"02740","21 BYRNESLAKE CT",null,null,"CINCINNATI",null,"OH","45216","(513)948-8882"]
["C & A CONCRETE LLC",99,"03236","405 NORTH MULBERRY STREET",null,null,"ELIZABETHTOWN",null,"KY","42701","(270)991-3496"]
["C & C CONTRACTING LLC",99,"03374","816 MEADOW LN",null,null,"RUSSELLVILLE",null,"KY","42276","(270)726-7444"]
["C & C DRILLING CO INC",99,"02335","162 LINDEN BRANCH",null,null,"STANVILLE",null,"KY","41659","(606)478-4482"]
["C & H/M EXCAVATING INC",99,"03730","3687 N COUNTRY RD 500 E",null,null,"MILAN",null,"IN","47031","(812)654-2030"]
["C & R ASPHALT LLC",99,"02369","415 REBMANN LN",null,null,"LEXINGTON",null,"KY","40504","(859)277-0464"]
["C & R CONSTRUCTION AND CONSULTING LLC",99,"03697","598 SCHWARTZ RD NW",null,null,"CORYDON",null,"IN","47112","(812)738-4493"]
["C & W BUILDERS INC",99,"01810","560 KY HWY 30 WEST",null,null,"BOONEVILLE",null,"KY","41314","(606)593-5920"]
["C & W EQUIPMENT CO INC",99,"01448","P O BOX 813",null,null,"MANCHESTER",null,"KY","40962","(606)598-8189"]
["C A FULKERSON LLC",99,"03033","P O BOX 336",null,null,"LANESVILLE",null,"IN","47136","(812)952-1777"]
["C BEATTY LLC",99,"03449","15650 PIKE 292",null,null,"BOWLING GREEN",null,"MO","63334","(573)324-6718"]
["C C MOORE CO INC",99,"01439","P O BOX 4107",null,null,"FRANKFORT",null,"KY","40604-4107","(502)223-2490"]
["C D S CONSTRUCTION COMPANY A DIVISION",99,"02634","7400 DISTRIBUTION DRIVE",null,null,"LOUISVILLE",null,"KY","40258","(502)937-8061"]
["C E CONTRACTING LTD OF IOWA",99,"02992","P O BOX 497     1386 B OLIVE AVE",null,null,"HAMPTON",null,"IA","50441","(641)456-5465"]
["C J BRIDGE ERECTING INC",99,"02546","PO BOX 57  3400 SOUTHWEST BLVD",null,null,"GROVE CITY",null,"OH","43123","(614)875-8200"]
["C J BRIDGE ERECTING LLC",99,"02844","3400 SOUTHWEST BLVD",null,null,"GROVE CITY",null,"OH","43123","(614)875-8200"]
["C J HUGHES CONSTRUCTION COMPANY INC",99,"02509","P O BOX 7305",null,null,"HUNTINGTON",null,"WV","25776","(304)522-3868"]
["C J MAHAN CONST J/V PARSONS CONST GROUP",99,"03568","P O BOX 670  3400 SOUTHWEST BLVD",null,null,"GROVE CITY",null,"OH","43123","(614)875-8200"]
["C J MAHAN CONSTRUCTION COMPANY",99,"00579","P O BOX 670 3400 SOUTHWEST BLVD",null,null,"GROVE CITY",null,"OH","43123","(614)875-8200"]
["C J MAHAN CONSTRUCTION COMPANY LLC",99,"02843","250 NORTH HARTFORD AVE",null,null,"COLUMBUS",null,"OH","43222","(614)875-8200"]
["C LEE CONSTRUCTION SERVICES INC",99,"03533","P O BOX 618 1200 W MAIN STREET",null,null,"GRIFFITH",null,"IN","46319","(219)922-7733"]
["C R I CONSTRUCTION INC",99,"02662","PO BOX 250",null,null,"COLUMBIA CITY",null,"IN","46725","(260)248-4550"]
["C2 CONSTRUCTION GROUP LLC",99,"03728","P O BOX 39",null,null,"ANNVILLE",null,"KY","40402","(606)515-2152"]
["C3 CONSTRUCTION LLC",99,"03750","1315 WEST MAIN STREET SUITE C",null,null,"LEXINGTON",null,"KY","40508","(859)389-6976"]
["CABO INC",99,"03029","380 EASTPARK DRIVE",null,null,"NORWALK",null,"OH","44857","(419)668-5575"]
["CACTUS HYDROSEEDING",99,"02665","3016 HI DRIVE",null,null,"KINGSPORT",null,"TN","37663","(423)239-0681"]
["CADE DOZING & EXCAVATION",99,"02939","3377 UPPER LONG BR",null,null,"EZEL",null,"KY","41425","(606)725-9161"]
["CAIN ELECTRIC INC",99,"02281","10005 BUNSEN WAY",null,null,"LOUISVILLE",null,"KY","40299","(502)491-7500"]
["CAMACO INC",99,"01307","P O BOX 675",null,null,"LEBANON",null,"KY","40033","(270)692-3174"]
["CAMBRY CONTRACTING INC",99,"02985","P O BOX 40",null,null,"MORGANTOWN",null,"KY","42261","(270)532-0047"]
["CAMPBELL CONCRETE INC",99,"02998","2858 SANDALWOOD DR",null,null,"NEW ALBANY",null,"IN","47150","(502)664-3741"]
["CAPITAL CONCRETE CUTTING INC",99,"02456","338 HARRIS HILL ROAD  SUITE 110",null,null,"WILLIAMSVILLE",null,"NY","14221","(800)288-2872"]
["CAPITOL DRILLING & SAWING OF KENTUCKY",99,"03252","4700 BARDSTOWN ROAD",null,null,"ELIZABETHTOWN",null,"KY","42701","(270)765-7377"]
["CAPITOL DRILLING SUPPLIES INC",99,"01649","128 HOWELL DRIVE",null,null,"ELIZABETHTOWN",null,"KY","042701","(270)765-7377"]
["CAPITOL TUNNELING INC",99,"00357","2216 REFUGEE RD",null,null,"COLUMBUS",null,"OH","43207","(614)444-0255"]
["CARDINAL-INDIANA INC",99,"03525","P O BOX 816",null,null,"BLOOMINGTON",null,"IN","47402","(812)935-5928"]
["CARLISLE EQUIPMENT GROUP LLC",99,"02535","840 LICKING PIKE",null,null,"WILDER",null,"KY","41076","(606)441-7400"]
["CARLISLE EXCAVATING LLC",99,"02253","840 LICKING PIKE",null,null,"WILDER",null,"KY","41076","(606)441-7400"]
["CARNEAL PROPERTIES INC",99,"02538","2620 SOUTH GREEN RIVER ROAD",null,null,"EVANSVILLE",null,"IN","47715","(812)471-9724"]
["CARPENTER TRUCKING COMPANY INC",99,"02258","P O BOX 368",null,null,"ANNVILLE",null,"KY","40402","(606)364-5424"]
["CARR MITCHELL COMPANY LLC",99,"03064","44 INDUSTRIAL DRIVE",null,null,"CADIZ",null,"KY","42211","(270)522-9255"]
["CARTER DOUGLAS COMPANY LLC",99,"03243","109 ROBINS WAY",null,null,"RUSSELLVILLE",null,"KY","42276","(270)725-8788"]
["CASE FOUNDATION COMPANY",99,"02097","1325 WEST LAKE ST",null,null,"ROSELLE",null,"IL","60172","(630)529-2911"]
["CASEYS CONSTRUCTION",99,"02721","P O BOX 192",null,null,"FREEBURN",null,"KY","41528","(606)456-8123"]
["CAUSIE CONTRACTING INC",99,"01785","201 PLAINS RD",null,null,"MASON",null,"MI","48854","(517)676-3700"]
["CBG CONSTRUCTION CO INC",99,"03069","2424 HWY 987",null,null,"PINEVILLE",null,"KY","40977","(606)269-6588"]
["CCS CONTRACTING LLC",99,"02928","425 ROBINSON LN",null,null,"SONORA",null,"KY","42776","(270)723-2731"]
["CCS ROADWAY ENTERPRISES INC",99,"02989","613 S E INDUSTRIAL DRIVE",null,null,"BLUE SPRINGS",null,"MO","64014","(816)229-5505"]
["CE HUGHES MILLING INC",99,"03481","3113 HOLMANS LN",null,null,"JEFFERSONVILLE",null,"IN","47130","(812)725-8665"]
["CEDAR RIDGE LAND DEVELOPMENT INC",99,"01507","P O BOX 30",null,null,"DUNBAR",null,"KY","42219","(502)526-4000"]
["CEDAR VALLEY SEEDING INC",99,"02791","851 REDMON RD",null,null,"PARIS",null,"KY","40361","(859)749-8006"]
["CENTERS CONTRACTING INC",99,"01722","2709 CUMBERLAND FALLS HWY",null,null,"CORBIN",null,"KY","40701","(606)528-0885"]
["CENTRAL BRIDGE CO LLC J/V L-M ASPHALT PA",99,"03445","3009 ATKINSON AVENUE SUITE 400",null,null,"LEXINGTON",null,"KY","40509"]
["CENTRAL BRIDGE COMPANY LLC",99,"02292","3009 ATKINSON AVE STE 400",null,null,"LEXINGTON",null,"KY","40509","(859)223-7001"]
["CENTRAL BRIDGE J/V BIZZACK CONSTRUCTION",99,"03831","3009 ATKINSON AVE STE 400",null,null,"LEXINGTON",null,"KY","40509","(859)229-9682"]
["CENTRAL CONTRACTING INC",99,"03478","P O BOX 1485  501 6TH AVE",null,null,"SAINT ALBANS",null,"WV","25177","(304)722-4939"]
["CENTRAL ENGINEERING & CONSTRUCTION",99,"03095","3862 N COMMERCIAL PARKWAY",null,null,"GREENFIELD",null,"IN","46140","(317)894-1990"]
["CENTRAL ILLINOIS TILE CO",99,"01326","P O BOX 3755  3302 NORTH MATTIS AVE",null,null,"CHAMPAIGN",null,"IL","61826-3755","(217)359-7945"]
["CENTRAL KENTUCKY REINFORCING STEEL",99,"02896","11713 FOUNTAIN HALL CT",null,null,"LOUISVILLE",null,"KY","40299","(502)266-9469"]
["CENTRAL KENTUCKY STEEL INC",99,"02123","11713 FOUNTAIN HALL COURT",null,null,"LOUISVILLE",null,"KY","40299-4364","(502)266-9469"]
["CENTRAL KENTUCKY TREE SERVICE",99,"03259","11857 KY HWY 1247",null,null,"WAYNESBURG",null,"KY","40489","(859)326-7265"]
["CENTRAL KENTUCKY TREE SERVICE LLC",99,"03711","11857 KY HWY 1247",null,null,"WAYNESBURG",null,"KY","40489","(859)326-7265"]
["CENTRAL PAINTING INC",99,"02862","PO BOX 606",null,null,"SAINT JOHN",null,"IN","46373","(219)365-9856"]
["CENTRAL PAVING COMPANY OF PADUCAH INC",99,"00369","PO BOX 3230",null,null,"PADUCAH",null,"KY","42002","(270)443-1059"]
["CENTRAL ROCK JV BLUEGRASS P",99,"03025","PO BOX 4277",null,null,"LEXINGTON",null,"KY","40544"]
["CENTRAL ROCK JV NALLY & GIBSON",99,"02999","PO BOX 4277",null,null,"LEXINGTON",null,"KY","40544"]
["CENTRAL ROCK MIN CO LLC W/HINKLE CONT.",99,"02549","PO BOX 200",null,null,"PARIS",null,"KY","40362-0200","(606)987-3670"]
["CENTRAL ROCK MINERAL COMPANY INC & SUBS",99,"01130","1256 MANCHESTER STREET",null,null,"LEXINGTON",null,"KY","40504","(606)231-0222"]
["CENTRAL ROCK MINERAL COMPANY LLC",99,"02522","3009 ATKINSON AVE  SUITE 400",null,null,"LEXINGTON",null,"KY","40509"]
["CENTRAL SEAL COMPANY",99,"00370","P O BOX 490",null,null,"DANVILLE",null,"KY","40423","(859)236-2367"]
["CENTURY CONSTRUCTION GROUP INC",99,"03811","P O BOX 1366       705 ROBERT E LEE DR",null,null,"TUPELO",null,"MS","38802","(662)844-3331"]
["CENTURY FENCE COMPANY",99,"00371","P O BOX 466",null,null,"WAUKESHA",null,"WI","53187-0466","(262)547-3331"]
["CERTIFIED COATINGS COMPANY",99,"03167","2320 CORDELIA ROAD",null,null,"FAIRFIELD",null,"CA","94534","(707)639-4414"]
["CERTIFIED COATINGS OF CALIFORNIA INC",99,"02259","1045 DETROIT AVENUE",null,null,"CONCORD",null,"CA","94518-0000","(925)686-1550"]
["CERTIFIED CONSTRUCTION CO INC",99,"02288","1991 ILLINOIS ROAD",null,null,"RADCLIFF",null,"KY","40160-9583","(270)351-2441"]
["CERTIFIED CONSTRUCTION CO OF KY LLC",99,"02882","667 TIP TOP ROAD",null,null,"VINE GROVE",null,"KY","40175","(270)351-2441"]
["CERTIFIED SECURITY SERVICES LLC",99,"03651","4621 OUTER LOOP #199",null,null,"LOUISVILLE",null,"KY","40219","(502)632-0444"]
["CHAMPION PAINTING SPECIALTY SERVICES",99,"03664","130 SW 22 ST",null,null,"FORT LAUDERDALE",null,"FL","33315","(954)462-9079"]
["CHANDLER ELECTRIC INC",99,"02605","905 SPY GLASS CIRCLE",null,null,"VINE GROVE",null,"KY","40175","(270)877-2185"]
["CHARBON BRIDGE COMPANY INC",99,"00196","P O BOX 249",null,null,"MADISONVILLE",null,"KY","42431","(270)821-2742"]
["CHARBON CONTRACTING LLC",99,"02759","475 WHITTINGTON DR",null,null,"MADISONVILLE",null,"KY","42431","(270)821-2742"]
["CHARLES DEWEESE CONSTRUCTION INC",99,"02980","P O BOX 504  765 INDUSTRIAL BYPASS N",null,null,"FRANKLIN",null,"KY","42134","(270)586-9122"]
["CHARLES E AMOS",99,"02117","4168 WHITNEY WOODS ROAD",null,null,"CAVE  CITY",null,"KY","42127","(502)773-4433"]
["CHARLIE NELSON TRUCKING & EXCAVATING LLC",99,"03731","1833 BENTON BRIENSBURG RD",null,null,"BENTON",null,"KY","42025","(270)252-3342"]
["CHARLIE'S ELECTRIC SERVICE INC",99,"02148","PO BOX 353  109 JOHN J JOHNSON AVE",null,null,"FRANKLIN",null,"KY","42135","(270)586-6711"]
["CHARTER CONTRACTING CORP",99,"03119","P O BOX 535",null,null,"CAMPBELL",null,"OH","44405","(330)755-2205"]
["CHAS F MANN PAINTING CO",99,"03050","2823 SOUTH SECOND STREET",null,null,"LOUISVILLE",null,"KY","40208","(502)634-4000"]
["CHASE RELINE INC",99,"03846","P O BOX 21428   6101 AIRWAYS BLVD",null,null,"CHATTANOOGA",null,"TN","37421","(423)713-7201"]
["CHEMI-TROL CHEMICAL CO",99,"00374","2776 C R 69",null,null,"GIBSONBURG",null,"OH","43431","(419)665-2367"]
["CHEMI-TROL CHEMICAL CO  UNIT  HARS CORP",99,"02455","2776 COUNTY ROAD 69",null,null,"GIBSONBURG",null,"OH","43431","(419)665-2367"]
["CHEROKEE CONSTRUCTION AND EXCAVATING LLC",99,"02917","13125 MIDDLETOWN INDUSTRIAL BLVD",null,null,"LOUISVILLE",null,"KY","40223","(502)589-9737"]
["CHESTER BROSS CONSTRUCTION CO W/O/S",99,"02959","6739 COUNTY ROAD 423",null,null,"PALMYRA",null,"MO","63461","(573)221-5958"]
["CH-IK PAINTING INC",99,"02851","1256 INDUSTRIAL PARKWAY",null,null,"BRUNSWICK",null,"OH","44212","(330)220-4233"]
["CHOCTAW TRANSPORTATION COMPANY INC",99,"03505","P O BOX 585",null,null,"DYERSBURG",null,"TN","38025","(731)285-5664"]
["CHOICE CONSTRUCTION COMPANIES INC",99,"03506","N59W14397 BOBOLINK AVENUE",null,null,"MENOMONEE FALLS",null,"WI","53051","(262)703-5080"]
["CHRIS SHIVE",99,"02675","425 ROBINSON LANE",null,null,"SONORA",null,"KY","42776","(270)324-2731"]
["CHRISTOPHERS CONCRETE & CONSTRUCTION CO",99,"02279","5061 POPLAR LEVEL ROAD",null,null,"LOUISVILLE",null,"KY","40219-1120","(502)968-0993"]
["CHURCH & TOWER FIBER TEL W/O/S MASTEC",99,"02178","4598 B   STONEGATE INDUS BLVD",null,null,"STONE MOUNTAIN",null,"GA","30083-1905","(404)508-1666"]
["CHURCHILL MCGEE LLC",99,"03214","1315 W MAIN ST STE C",null,null,"LEXINGTON",null,"KY","40508","(859)389-6976"]
["CIANBRO CORPORATION",99,"00367","P O BOX 1000     101 CIANBRO SQ",null,null,"PITTSFIELD",null,"ME","04967","(207)487-3311"]
["CINCO INCORPORATED",99,"01177","P O BOX 1187",null,null,"MOUNT STERLING",null,"KY","40353","(859)498-6363"]
["CIRCLE C CONSTRUCTION LLC",99,"03296","816 MEADOW LANE",null,null,"RUSSELLVILLE",null,"KY","42276","(270)726-7444"]
["CIVIL COATINGS AND CONSTRUCTION INC",99,"01233","1651 W LINCOLN WAY",null,null,"VALPARAISO",null,"IN","46385","(219)531-5300"]
["CIVIL CONSTRUCTION INC",99,"00195","10310 STATE ROUTE 161 EAST",null,null,"PLAIN CITY",null,"OH","43064","(614)873-8196"]
["CIVIL CONSTRUCTORS LLC",99,"03549","4624 ASTOR ROAD",null,null,"LOUISVILLE",null,"KY","40218","(502)690-4539"]
["CIVIL CONTRACTING LLC",99,"03325","2720B BRIDGE STREET",null,null,"PADUCAH",null,"KY","42003","(270)554-2149"]
["CL COATINGS LLC W/O/S NORTH AMERICAN",99,"03274","8450 W 191ST STREET UNIT 19",null,null,"MOKENA",null,"IL","60448","(815)464-3053"]
["CLARKSON CONSTRUCTION COMPANY",99,"00375","P O BOX 34315     4133 GARDNER AVENUE",null,null,"KANSAS CITY",null,"MO","64120-4315","(816)483-8800"]
["CLASSICKLE INC",99,"02912","4127 E INDIAN TRAIL",null,null,"LOUISVILLE",null,"KY","40213","(502)493-2722"]
["CLAUNCH CONSTRUCTION LLC",99,"03169","624 N COLLEGE STREET",null,null,"HARRODSBURG",null,"KY","40330","(859)734-7964"]
["CLAY CORMAN EXCAVATING INC",99,"03779","1151 JESSAMINE STATION PIKE",null,null,"NICHOLASVILLE",null,"KY","40356","(859)885-4955"]
["CLAY MOHON MOWING LLC",99,"02671","P O BOX 1064",null,null,"HOPKINSVILLE",null,"KY","42241","(270)498-3459"]
["CLAY W MOHON",99,"02585","2396 MADISONVILLE ROAD",null,null,"HOPKINSVILLE",null,"KY","42240","(270)886-8681"]
["CLEARY CONSTRUCTION INC",99,"02233","2006 EDMONTON RD",null,null,"TOMPKINSVILLE",null,"KY","42167","(270)487-1784"]
["CLEMENTS AG SUPPLY INC",99,"02643","PO BOX 47",null,null,"SPRINGFIELD",null,"KY","40069","(859)336-3112"]
["CLEMS PLUMBING INC",99,"02935","P O BOX 4113",null,null,"WINCHESTER",null,"KY","40392","(859)745-1377"]
["CLEVELAND WRECKING COMPANY W/O/S URS",99,"03482","628 EDNA PLACE",null,null,"COVINA",null,"CA","91723","(626)967-9799"]
["CLOSE CUT ENTERPRISES INC",99,"02445","P O BOX 1377",null,null,"INEZ",null,"KY","41224","(606)298-4286"]
["CLR INC",99,"02993","P O BOX 1361",null,null,"VINCENNES",null,"IN","47591","(812)886-0360"]
["COADY CONSTRUCTION INC",99,"01777","1455 EAST FIFTH AVENUE",null,null,"COLUMBUS",null,"OH","43219-2459","(614)253-8723"]
["CODELL CONSTRUCTION COMPANY",99,"03379","P O BOX 17",null,null,"WINCHESTER",null,"KY","40392","(859)744-2222"]
["COFFEYS LANDSCAPE & BUSHHOG MOWING",99,"02690","5285 ELIZAVILLE RD",null,null,"LEBANON",null,"IN","46052","(765)325-4135"]
["COLLIER CONSTRUCTION SERVICES LLC",99,"03879","1661 STATE RTE 522 UNIT 3",null,null,"WHEELERSBURG",null,"OH","45694","(740)529-0895"]
["COLLINS & HERMANN INC & SUDSIDIARY",99,"03062","1215 DUNN RD",null,null,"SAINT LOUIS",null,"MO","63138","(314)869-8000"]
["COLSTON PAVING INC",99,"02642","1631 BENSON VALLEY RD",null,null,"FRANKFORT",null,"KY","40601","(502)223-2642"]
["COMANCHE CONSTRUCTION OF GEORGIA LLC",99,"03900","1734 SANDS PL",null,null,"MARIETTA",null,"GA","30067","(770)675-8090"]
["COMMERCIAL PAVERS INC",99,"00261","1801 PAYNE STREET",null,null,"LOUISVILLE",null,"KY","40206","(502)583-1726"]
["COMMONWEALTH LANDSCAPE INC",99,"00770","PO BOX 436669",null,null,"LOUISVILLE",null,"KY","40253","(502)244-1624"]
["COMPLETE CLEARING INC",99,"03857","510 INDUSTRIAL WAY",null,null,"MARENGO",null,"OH","43334","(419)253-1625"]
["COMPLETE GENERAL CONSTRUCTION COMPANY",99,"01606","1221 E FIFTH AVE",null,null,"COLUMBUS",null,"OH","43219","(614)258-9515"]
["COMPTONS MOWING SERVICE INC",99,"02929","7440 SOUTH 100 EAST",null,null,"STAR CITY",null,"IN","46985","(574)595-7370"]
["CONCRETE CORING & CUTTING OF",99,"02676","150 LIVERS LN",null,null,"SHEPHERDSVILLE",null,"KY","40165","(502)361-2596"]
["CONCRETE CORING CO OF CENTRAL KY INC",99,"02586","835 PORTER PLACE",null,null,"LEXINGTON",null,"KY","40508","(859)233-0367"]
["CONCRETE CORING CO OF CINCINNATI INC",99,"01352","7210 EDINGTON DR",null,null,"CINCINNATI",null,"OH","45249","(513)489-3555"]
["CONCRETE CUTTING & BREAKING CO",99,"02172","4500 AIRWEST DR SE",null,null,"GRAND RAPIDS",null,"MI","49512","(616)554-4876"]
["CONCRETE CUTTING SYSTEMS PITTSBURGH INC",99,"03874","2514 ORTHODOX ST",null,null,"PHILADELPHIA",null,"PA","19137","(888)444-9008"]
["CONCRETE PAVERS INC",99,"01581","2650 N CULLEN AVENUE",null,null,"EVANSVILLE",null,"IN","47715","(812)473-3543"]
["CONCRETE STRATEGIES LLC",99,"03469","2199 INNERBELT BUSINESS CENTRE DRIVE",null,null,"SAINT LOUIS",null,"MO","63114","(314)595-6372"]
["CONCRETE TEXTURES INC",99,"01743","P O BOX 16009",null,null,"DES MOINES",null,"IA","50316","(515)266-5173"]
["CONCRETE TEXTURES LLC",99,"02562","2661 N E BROADWAY",null,null,"DES MOINES",null,"IA","50317","(515)266-7383"]
["CONDOTTE AMERICA INC",99,"02018","9200 S DADELAND BLVD   SUITE 225",null,null,"MIAMI",null,"FL","33156","(305)670-7585"]
["CONGLETON HACKER COMPANY",99,"00783","P O BOX  22640     872 FLOYD DRIVE",null,null,"LEXINGTON",null,"KY","40522","(859)254-6481"]
["CONLEY H GREGORY CONSTRUCTION INC",99,"02513","P O BOX 1835",null,null,"MONTICELLO",null,"KY","42633","(606)348-9250"]
["CONNHURST LLC",99,"03872","879 WILSON RUN RD",null,null,"WALLINGFORD",null,"KY","41093","(606)286-0387"]
["CONTECH CONSTRUCTION PRODUCTS INC",99,"01424","1001 GROVE STREET",null,null,"MIDDLETOWN",null,"OH","45044","(513)425-5896"]
["CONTI ENTERPRISES INC",99,"03631","2045 LINCOLN HIGHWAY",null,null,"EDISON",null,"NJ","08817","(732)520-5000"]
["CONTRACT SWEEPERS & EQUIPMENT CO",99,"01754","2137 PARKWOOD AVE",null,null,"COLUMBUS",null,"OH","43219","(614)221-7441"]
["CONTRACTING ASSISTANCE INC",99,"02555","PO BOX 414  2119 N HWY 25 W",null,null,"WILLIAMSBURG",null,"KY","40769","(606)549-2813"]
["CONTRACTORS CORPORATION",99,"02458","PO BOX 946    810 EMILY CT",null,null,"BOWLING GREEN",null,"KY","42101","(270)843-0989"]
["CONTRACTORS SERVICES UNLIMITED",99,"02204","2101 UTICA PIKE",null,null,"JEFFERSONVILLE",null,"IN","47130","(812)283-1220"]
["CONTROLLED BLASTING INC",99,"02331","1715 DAWKINS ROAD",null,null,"LA GRANGE",null,"KY","40031","(502)222-2246"]
["COPPAGE CONSTRUCTION CO INC",99,"03171","P O BOX 67     11966 TAYLOR MILL RD",null,null,"INDEPENDENCE",null,"KY","41051","(859)356-9221"]
["CORBETT CONSTRUCTION CO INC",99,"03669","200 CARTER AVE",null,null,"LOUISVILLE",null,"KY","40229","(502)957-1955"]
["CORCON INC & SUBSIDIARY",99,"00390","P O BOX 214  3763 MCCARTNEY RD",null,null,"LOWELLVILLE",null,"OH","44436","(330)536-2133"]
["CORNELL HARBISON EXCAVATING INC",99,"01031","2014 EDWARDSVILLE-GALENA ROAD",null,null,"GEORGETOWN",null,"IN","47122","(812)923-5811"]
["CORNERSTONE ENGINEERING INC",99,"03673","2302 HURSTBOURNE VILLAGE DR SUITE 1000",null,null,"LOUISVILLE",null,"KY","40299","(502)493-2717"]
["CORYDON STONE & ASPHALT INC",99,"01625","P O BOX 577",null,null,"CORYDON",null,"IN","47112-0577","(812)738-2216"]
["COS BEC INC DBA J GEORGE ELECTRIC CO",99,"02651","1515 PAYNE STREET",null,null,"LOUISVILLE",null,"KY","40206","(502)568-2030"]
["COSMOS COMPREHENSIVE CONSTRUCTION INC",99,"03035","990 WIMBLETON DRIVE",null,null,"MEDINA",null,"OH","44256","(330)721-9700"]
["COSMOS INDUSTRIAL SERVICES INC",99,"02728","9103 DETROIT AVE",null,null,"CLEVELAND",null,"OH","44102","(216)861-8361"]
["COSTELLO INDUSTRIES INC",99,"01423","123 COSTELLO ROAD",null,null,"NEWINGTON",null,"CT","06111","(860)666-3311"]
["COVER ALL PAVING CONTRACTORS INC",99,"02397","2995 CO ROAD 6",null,null,"ROCK CAMP",null,"OH","45675","(740)533-2270"]
["COWIN & COMPANY INC MINING ENGINEERS",99,"03018","P O BOX 19009",null,null,"BIRMINGHAM",null,"AL","35219","(205)945-1300"]
["COZINE CONCRETE CONSTRUCTION",99,"03251","31 OAK DRIVE",null,null,"EMINENCE",null,"KY","40019","(502)639-4963"]
["CR CLEARING INC",99,"03007","P O BOX 1648",null,null,"RUSSELL SPRINGS",null,"KY","42642","(270)866-5600"]
["CRACKERS EAST CORPORATION",99,"03483","P O BOX 218",null,null,"HASLETT",null,"MI",null,"(517)339-8229"]
["CRAIN SOD LLC",99,"03188","275 OAK LEAF COURT",null,null,"TAYLORSVILLE",null,"KY","40071","(502)477-6464"]
["CRAWFORD CONSTRUCTION COMPANY A DIV",99,"00218","PO BOX 240    1844 N 8TH ST",null,null,"PADUCAH",null,"KY","42002-0240","(270)443-7544"]
["CREECH SERVICES INC",99,"02969","4100 HERALDRY CT",null,null,"LEXINGTON",null,"KY","40513","(859)293-6658"]
["CREEK SOD FARMS INC",99,"01701","P O BOX 1896",null,null,"BOWLING GREEN",null,"KY","42102","(270)781-2050"]
["CREIGHTON CONSTRUCTION",99,"03484","625 OLD HEBRON LANE",null,null,"DUNMOR",null,"KY","42339","(270)657-2848"]
["CRENSHAWS BACKHOE AND EXCAVATING",99,"01341","7135 HARMONY GROVE ROAD",null,null,"CROFTON",null,"KY","42217","(270)886-7474"]
["CRESTLINE PAVING & EXCAVATING CO INC",99,"03036","P O BOX 3356    1913 NEBRASKA AVE",null,null,"TOLEDO",null,"OH","43607","(419)536-8229"]
["CRI CONSTRUCTION CO LLC",99,"03597","P O BOX 134",null,null,"PIERCETON",null,"IN","46562","(260)327-3300"]
["CRIDER & CRIDER INC",99,"02020","1900 S LIBERTY DRIVE",null,null,"BLOOMINGTON",null,"IN","47403","(812)336-4452"]
["CRIMCO INC",99,"02319","P O BOX 634",null,null,"WINCHESTER",null,"KY","40391","(606)744-2588"]
["CROUCH & STRINGER CONCRETE INC",99,"03228","3092 HWY 2227",null,null,"SOMERSET",null,"KY","42503","(606)423-1999"]
["CROUCH BUILDING ASSOCIATES INC",99,"00397","P O BOX J     131 CONSTRUCTION DRIVE",null,null,"MAYFIELD",null,"KY","42066","(270)247-1948"]
["CROWD TRANSPORTERS INC",99,"02916","P O BOX 159",null,null,"BETSY LAYNE",null,"KY","41605","(606)478-9488"]
["CROWLEY COMPANY INC",99,"03297","10630 NASSAU ST NE",null,null,"MINNEAPOLIS",null,"MN","55449","(763)784-1120"]
["CROWLEY ENTERPRISES LLC DBA CROWLEYS",99,"03342","9280 RIDGEWOOD ROAD",null,null,"HENDERSON",null,"KY","42420","(270)827-0421"]
["CROWN CONTRACTING & PAVING LLC",99,"02774","11000 HWY 62 W",null,null,"PRINCETON",null,"KY","42445","(270)365-5999"]
["CROWN ELECTRIC INC",99,"00209","P O BOX 8104",null,null,"PADUCAH",null,"KY","42002","(270)442-3856"]
["CROWN PAINTING INC",99,"03584","10124 187TH STREET",null,null,"MOKENA",null,"IL","60448","(708)478-0505"]
["CRS DEMOLITION LLC",99,"02754","620 WEST SHIPP AVE",null,null,"LOUISVILLE",null,"KY","40208","(502)635-6566"]
["CRU CUTTERS LLC",99,"03485","410 DUDLEY TRACE",null,null,"FLORENCE",null,"KY","41042","(859)630-9995"]
["CSL ENTERPRISES INC",99,"01849","209 QUALITY AVENUE   SUITE # 9",null,null,"NEW ALBANY",null,"IN","47150","(812)923-1809"]
["C-TECH CORPORATION INC",99,"03614","5300 W 100 NORTH",null,null,"BOGGSTOWN",null,"IN","46110","(317)835-2745"]
["C-TRAX CONTRACTING INC",99,"03327","P O BOX 104",null,null,"SELLERSBURG",null,"IN","47172","(812)246-1212"]
["CTW CONTRACTING INC",99,"03301","P O BOX 337",null,null,"WEST LIBERTY",null,"KY","41472","(606)743-4327"]
["CUMBERLAND ROADBUILDERS INC.",99,"02049","P.O. BOX 1648",null,null,"RUSSELL SPRINGS",null,"KY","42642","(270)866-4522"]
["CUMBERLAND TREE EXPERTS INC",99,"02105","P O BOX 713",null,null,"MONTICELLO",null,"KY","42633","(606)307-4017"]
["CUNDIFF CONSTRUCTION COMPANY INC",99,"00398","5810 POPLAR LEVEL ROAD",null,null,"LOUISVILLE",null,"KY","40228","(502)968-2473"]
["CURRENS COMPANY INC",99,"02221","P O BOX 653   1025 DANVILLE ROAD",null,null,"HARRODSBURG",null,"KY","40330","(606)734-7749"]
["CURRY PLUMBING",99,"02782","5170 KNIFLEY RD",null,null,"COLUMBIA",null,"KY","42728","(270)378-0783"]
["CUSTOM CREWS INC",99,"03221","6111 OLD NIAGARA ROAD",null,null,"LOCKPORT",null,"NY","14094","(716)434-6600"]
["CUTLER REPAVING INC",99,"02076","921 E 27TH STREET",null,null,"LAWRENCE",null,"KS","66046-4917","(785)843-1524"]
["CUTTING EDGE MOWING LLC",99,"03621","2477 WHITEWOOD ROAD",null,null,"CAMPBELLSVILLE",null,"KY","42718","(270)849-5916"]
["CYRUS CONTRACTING INC",99,"01384","ROUTE 1   BOX 873",null,null,"LOUISA",null,"KY","41230","(606)673-3585"]
["D & B ROOFING CORPORATION",99,"02271","1819  WEST MAIN STREET",null,null,"LOUISVILLE",null,"KY","40203","(502)589-5151"]
["D & E PARTNERS LLC",99,"02831","P.O. BOX 1974",null,null,"CORBIN",null,"KY","40702","(606)528-0087"]
["D & E PARTNERSHIP",99,"02581","PO BOX 1974",null,null,"CORBIN",null,"KY","40702","(606)528-0087"]
["D & J CONTRACTING LLC DBA JRJ CONTRACT",99,"03653","151 PEARL LANE",null,null,"NICHOLASVILLE",null,"KY","40356","(859)621-9369"]
["D & L CONTRACTING LLC",99,"03048","817 SHANNON PIKE",null,null,"FLEMINGSBURG",null,"KY","41041","(606)776-1023"]
["D & M LANDSCAPING INC",99,"01930","4155 DIXIE HIGHWAY",null,null,"DRY RIDGE",null,"KY","41035","(859)428-2801"]
["D & M MOWING",99,"03061","161 BAKERS ACRE ROAD",null,null,"CARLISLE",null,"KY","40311","(859)351-4842"]
["D & M MOWING INC",99,"03365","5747 MAYSVILLE RD",null,null,"CARLISLE",null,"KY","40311","(859)351-4842"]
["D A D S BOBCAT SERVICE LLC",99,"03732","8325 HWY 154",null,null,"BUTLER",null,"KY","41006","(859)743-0631"]
["D F CRANE CONSTRUCTION CORP",99,"02780","4424 VOGEL ROAD  SUITE 401",null,null,"EVANSVILLE",null,"IN","47715","(812)475-1020"]
["D G LANDSCAPING & NURSERY LLC",99,"03122","P O BOX 854",null,null,"MURRAY",null,"KY","42071","(270)435-4431"]
["D H DEVELOPMENT INC",99,"01685","713 STATE ROUTE 1301",null,null,"CLINTON",null,"KY","42031","(502)653-2832"]
["D H GRIFFIN WRECKING COMPANY INC",99,"00474","P O BOX 7657",null,null,"GREENSBORO",null,"NC","027417","(336)855-7030"]
["D L BRAUGHLER CO INC J/V HEJ CONST CO",99,"03802","2751 KY 519 HIGHWAY",null,null,"MOREHEAD",null,"KY","40351","(606)784-7544"]
["D L BRAUGHLER COMPANY INC",99,"00110","2751 KY HWY 519",null,null,"MOREHEAD",null,"KY","40351","(606)784-7544"]
["D R T CONSTRUCTION INC",99,"02306","PO BOX 708",null,null,"INDEPENDENCE",null,"KY","41051","(859)356-3182"]
["D T READ STEEL CO INC",99,"03437","1751 WEST RD",null,null,"CHESAPEAKE",null,"VA","23323","(757)487-2047"]
["D W WILBURN INC",99,"03427","153 BLUE SKY PKWY",null,null,"LEXINGTON",null,"KY","40509","(859)263-2720"]
["DAICHIBAN INCORPORATED",99,"00399","4308 OLD HEADY ROAD",null,null,"JEFFERSONTOWN",null,"KY","40299","(502)267-1178"]
["DALE BEARDEN CONSTRUCTION INC",99,"03572","P O BOX 8444",null,null,"PADUCAH",null,"KY","42002","(270)554-0299"]
["DALLAS BENGE TRUCKING CO INC",99,"02487","PO BOX 356",null,null,"LONDON",null,"KY","40741","(606)878-0377"]
["DALLAS DEAN INC",99,"03174","P O BOX 296",null,null,"HARRODSBURG",null,"KY","40330","(859)734-7071"]
["DAMALOS & SONS INC",99,"00403","204 TARPON INDUSTRIAL CIRCLE",null,null,"TARPON SPRINGS",null,"FL","34689","(727)942-3377"]
["DAN CRISTIANI EXCAVATING CO INC",99,"03493","1221 OLD HWY 31 E",null,null,"CLARKSVILLE",null,"IN","47129","(812)282-9866"]
["DAN MATHIS DOZING LLC",99,"03514","145 MATHIS LANE",null,null,"MCKEE",null,"KY","40447"]
["DANNY COPE AND SONS EXCAVATING LLC",99,"03407","530 SHARPE SCHOOL ROAD",null,null,"CALVERT CITY",null,"KY","42029","(270)898-7636"]
["DANNYS CONSTRUCTION COMPANY INCORPORATED",99,"03269","P O BOX 11",null,null,"SHAKOPEE",null,"MN","55379","(952)445-4143"]
["DANNYS CONSTRUCTION COMPANY LLC",99,"03594","P O BOX 11",null,null,"SHAKOPEE",null,"MN","55379","(952)445-4143"]
["DARNELL STEEL & CONSTRUCTION LLC",99,"03275","P O BOX 606",null,null,"BENTON",null,"KY","42025","(270)354-9464"]
["DAVE KOLB GRADING INC",99,"03162","5731 WESTWOOD",null,null,"SAINT CHARLES",null,"MO","63304","(636)441-0200"]
["DAVE OMARA CONTRACTOR INC",99,"02273","P O BOX 1139  1100 EAST O&M AVE",null,null,"NORTH VERNON",null,"IN","47265","(812)346-4135"]
["DAVES CONCRETE PRODUCTS INC",99,"02189","P O BOX  367",null,null,"HAGER  HILL",null,"KY","41222","(606)789-6800"]
["DAVID COLE D/B/A SAND CONSTRUCTION CO",99,"02066","P O BOX 102",null,null,"BOONEVILLE",null,"KY","41314","(606)593-5759"]
["DAVID CONSTRUCTION INC",99,"00406","1330 W BRECKINRIDGE STREET",null,null,"LOUISVILLE",null,"KY","40210","(502)589-7777"]
["DAVID COSBY AND ASSOCIATES INC",99,"03173","4605 - B ASTOR ROAD",null,null,"LOUISVILLE",null,"KY","40218","(502)964-0778"]
["DAVID WARD D/B/A WARD BROS LAND IMPROVE",99,"02377","14936 TRAVIS RD",null,null,"CATLETTSBURG",null,"KY","41129-9630","(606)739-4838"]
["DAVIS & BURTON CONTRACTORS INC",99,"00221","11433 MIDLAND TRAIL ROAD",null,null,"ASHLAND",null,"KY","41102","(606)928-2001"]
["DAVIS AND HAYES REINFORCING STEEL INC",99,"01780","7812 SADLER RD",null,null,"LEITCHFIELD",null,"KY","42754","(270)879-9752"]
["DAVIS H ELLIOT COMPANY INC AND SUBSIDIAR",99,"00434","P O BOX 12108    673 BLUE SKY PKWY",null,null,"LEXINGTON",null,"KY","40509","(859)263-5148"]
["DBE SERVICES LLC",99,"03408","331 VERSAILLES ROAD",null,null,"FRANKFORT",null,"KY","40601","(859)684-0538"]
["DBI SERVICES LLC",99,"03672","100 N CONAHAN DR",null,null,"HAZELTON",null,"PA","18201","(570)459-1112"]
["DC CONCRETE LLC",99,"03215","811 SOUTH 2ND STREET",null,null,"LOUISVILLE",null,"KY","40203","(502)992-9422"]
["DDWF1 LLC",99,"03761","695 CARTER LN",null,null,"BOWLING GREEN",null,"KY","42103","(270)779-2284"]
["DEAHL MOWING",99,"02849","P.O. BOX 276",null,null,"HANSON",null,"KY","42413","(270)322-8342"]
["DEAHL MOWING INC",99,"02901","P O BOX 276",null,null,"HANSON",null,"KY","42413","(270)322-8342"]
["DEAN CONTRACTING INC",99,"02865","19100 HOLLAND ROAD",null,null,"BROOK PARK",null,"OH","44142-0000","(440)260-7590"]
["DEANGELO BROTHERS INC",99,"02362","100 N CONAHAN DR",null,null,"HAZLETON",null,"PA","18201","(570)459-1112"]
["DEANGELO BROTHERS LLC",99,"03609","100 N CONAHAN DR",null,null,"HAZELTON",null,"PA","18201","(570)459-1112"]
["DEBCON INC",99,"02575","9714 US RT 60",null,null,"ASHLAND",null,"KY","41102","(606)928-6411"]
["DEBRA - KUEMPEL INC",99,"03780","1833 TAYLOR AVENUE",null,null,"LOUISVILLE",null,"KY","40213","(502)368-0454"]
["DECORATIVE PAVING COMPANY",99,"03626","39 GLENDALE MILFORD RD",null,null,"LOVELAND",null,"OH","45140","(513)576-1222"]
["DEIG BROS LUMBER & CONSTRUCTION CO INC",99,"01952","P O BOX 6429     2804 A ST",null,null,"EVANSVILLE",null,"IN","47719","(812)423-4201"]
["DELHI CONTRACTING INC",99,"01555","P O BOX 38918",null,null,"CINCINNATI",null,"OH","45238","(513)922-9262"]
["DELONG CONCRETE INC",99,"01809","940 DELONG ROAD",null,null,"LEXINGTON",null,"KY","40515-9504","(859)273-1058"]
["DELONG CONCRETE LLC",99,"02612","940 DELONG RD",null,null,"LEXINGTON",null,"KY","40515","(859)273-1058"]
["DELTA ERECTING INC",99,"02527","60 AMERICAN WAY",null,null,"MONROE",null,"OH","45050","(513)539-9104"]
["DELTA PROTECTION SOLUTIONS LLC",99,"03352","2823 ALTA VISTA CT",null,null,"LOUISVILLE",null,"KY","40206","(502)664-2043"]
["DELTA SERVICES LLC",99,"03034","4676 JENNINGS LN",null,null,"LOUISVILLE",null,"KY","40218","(502)491-2202"]
["DEMTECH INC",99,"02544","PO BOX 618",null,null,"DUBOIS",null,"WY","82513-0618","(370)455-2584"]
["DEMTECH LLC",99,"03722","470 DUTCHTOWN ROAD",null,null,"BUTLER",null,"PA","16002","(724)502-4262"]
["DENTON CONCRETE SERVICES COMPANY",99,"02446","22003 HARPER AVENUE",null,null,"ST CLAIR SHORES",null,"MI","48080","(810)777-9444"]
["DER DEVELOPMENT COMPANY LLC",99,"03477","750 US HIGHWAY 50",null,null,"MILFORD",null,"OH","45150","(513)831-7766"]
["DETROIT BRIDGE PAINTING INC",99,"02891","1150 GRISWOLD ST  SUITE 2400",null,null,"DETROIT",null,"MI","48266","(313)963-3070"]
["DEZYNE INC",99,"03396","717 FRAYSER AVE",null,null,"OWENSBORO",null,"KY","42301","(270)683-8176"]
["DGI MENARD INC DBA MENARD USA",99,"02836","150 E MAIN ST STE 500",null,null,"CARNEGIE",null,"PA","15106","(412)620-6000"]
["DIA-L ASSOCIATES",99,"02503","3302 AQUIA DRIVE",null,null,"STAFFORD",null,"VA","22554","(540)659-2264"]
["DIAMOND CORING COMPANY INC WOS ROADWORX",99,"03544","11800 S EWING AVE",null,null,"CHICAGO",null,"IL","60617","(773)978-5000"]
["DIAMOND SURFACE INC & SUBSIDIARY",99,"01712","21025 COMMERCE BLVD STE 900",null,null,"ROGERS",null,"MN","55374","(763)420-5009"]
["DICK CORPORATION AND SUBSIDIARY",99,"01631","PO BOX 10896",null,null,"PITTSBURGH",null,"PA","15236-0896","(412)384-1000"]
["DIGITAL TRAFFIC SYSTEMS INC",99,"03511","6020 ACADEMY RD NE  STE 202",null,null,"ALBUQUERQUE",null,"NM","87109","(505)881-4470"]
["DILLON CONSTRUCTION COMPANY INC",99,"02089","RT 1  BOX 253A",null,null,"FLEMINGSBURG",null,"KY","41041","(606)845-2307"]
["DIRT DIGGERS INC",99,"02547","415 MIDWAY ROAD",null,null,"WINCHESTER",null,"KY","40391","(859)744-1227"]
["DISTEL CONSTRUCTION INC",99,"03448","2227 6TH ST",null,null,"PORTSMOUTH",null,"OH","45662","(740)353-2815"]
["DIX & ASSOCIATES PIPELINE CONTRACTORS IN",99,"02508","210 INDUSTRY PKWY",null,null,"NICHOLASVILLE",null,"KY","40356","(859)887-2661"]
["DIX RIVER STONE INC",99,"01936","P O BOX 461",null,null,"LANCASTER",null,"KY","40444","(859)792-2171"]
["DIXON CONSTRUCTION",99,"02922","1325 ST RT 271 S",null,null,"LEWISPORT",null,"KY","42351","(270)927-6902"]
["DIXON ELECTRIC INC",99,"02360","516 WEST 4TH STREET",null,null,"LEXINGTON",null,"KY","40508","(859)276-2575"]
["DK BAST FOUNDATION SERVICES LLC",99,"03839","P O BOX 635     809 SUNBEAM RD",null,null,"LEITCHFIELD",null,"KY","42755","(615)355-4773"]
["D-LITE EXCAVATION INC",99,"02282","11240 SOLOMON ROAD",null,null,"TROY",null,"IN","47588","(812)547-0008"]
["DO ALL CONSTRUCTION INC",99,"01910","P O BOX 194",null,null,"CANEYVILLE",null,"KY","42721","(270)879-6211"]
["DOME CORPORATION OF NORTH AMERICA",99,"01678","5450 EAST ST",null,null,"SAGINAW",null,"MI","48601","(989)777-2050"]
["DON RUSSELL DBA DON RUSSELL CONSTRUCTION",99,"02979","P O BOX 264",null,null,"FREDONIA",null,"KY","42411","(270)545-7562"]
["DON SALYERS MASONRY INC",99,"02387","5834 CONSTITUTION DRIVE",null,null,"FLORENCE",null,"KY","41042","(606)525-6694"]
["DONALD PETERS CONSTRUCTION INC",99,"02472","4948 HWY 1078 NORTH",null,null,"HENDERSON",null,"KY","42420","(270)827-3209"]
["DONLEY CONCRETE CUTTING COMPANY",99,"03321","P O BOX 272",null,null,"PICKERINGTON",null,"OH","43147","(614)834-0300"]
["DOSCOTE CONTRACTING",99,"02355","3260 MILLER PIKE",null,null,"LEBANON",null,"KY","40033","(502)865-3951"]
["DOSS & HORKY INC",99,"01729","108 GOSE PIKE",null,null,"DANVILLE",null,"KY","40422","(859)236-2690"]
["DOT DIAMOND CORE DRILLING INC",99,"03049","780 SUGAR LN",null,null,"ELYRIA",null,"OH","44035","(440)322-6466"]
["DOTSON ELECTRIC COMPANY INC",99,"02729","551 CAL BATSEL ROAD",null,null,"BOWLING GREEN",null,"KY","42104","(270)782-5083"]
["DOUBLE \"A\" SERVICES INC",99,"02293","4153 BRISCOE BENTON RD",null,null,"HENDERSON",null,"KY","42420","(270)546-7668"]
["DOUBLE G-1 LLC",99,"03118","2852 FAIRVIEW BLVD",null,null,"FAIRVIEW",null,"TN","37062","(615)799-0003"]
["DOUG BRANTLEY & SONS INC",99,"00238","PO BOX 1325",null,null,"OWENSBORO",null,"KY","42302-1325","(270)926-3349"]
["DOUG WATHEN LLC",99,"03216","11934 FAIRWAY LAKES DRIVE",null,null,"FORT MYERS",null,"FL","33913","(239)255-9045"]
["DOWN TA EARTH INC",99,"03894","2580 HEATON FORD RD",null,null,"SCIENCE HILL",null,"KY","42553","(606)423-2120"]
["DRAGADOS USA INC",99,"03386","500 FIFTH AVENUE",null,null,"NEW YORK",null,"NY","10110","(212)779-0900"]
["DRAINAGE & GROUND IMPROVEMENT INC",99,"01253","275 MILLERS RUN ROAD",null,null,"BRIDGEVILLE",null,"PA","15017","(412)257-2750"]
["DRY STONE MASONS",99,"02828","95 CLARCY NICHOLS LANE",null,null,"STANFORD",null,"KY","40484","(859)339-2432"]
["DUDLEY CONSTRUCTION COMPANY INC.",99,"02812","420 DUDLEY TRACE",null,null,"FLORENCE",null,"KY","41042","(859)341-7071"]
["DUMEY CONTRACTING INC",99,"02202","P O BOX 558",null,null,"BENTON",null,"MO","63736","(573)545-3030"]
["DUNN ELECTRIC LLC",99,"03616","4304 MEADOWBEND WAY",null,null,"LOUISVILLE",null,"KY","40218","(502)494-6640"]
["DUNN WRIGHT ELECTRICAL INC",99,"02290","121 LARALAN AVE",null,null,"FRANKFORT",null,"KY","40601","(502)695-9242"]
["DURBIN INTERIOR & EXTERIOR LANDSCAPING",99,"03545","6777 E MIAMI RIVER RD",null,null,"CLEVES",null,"OH","45002","(513)353-3189"]
["DYNAMIC PAINTING CORPORATION",99,"00420","7 WILLIS COURT",null,null,"HICKSVILLE",null,"NY","11801","(516)681-6696"]
["DYNAMIC SURFACE APPLICATIONS LTD CO",99,"03328","373 VILLAGE RD",null,null,"PENNSDALE",null,"PA","17756","(570)546-6041"]
["E & B PAVING INC",99,"02326","286 W 300 N",null,null,"ANDERSON",null,"IN","46012","(765)643-5358"]
["E & B PAVING LLC",99,"03863","286 W 300 N",null,null,"ANDERSON",null,"IN","46012","(765)643-5358"]
["E & E CONSTRUCTION INC",99,"03556","P O BOX 825",null,null,"REGINA",null,"KY","41559","(606)794-2403"]
["E & E CONTRACTING",99,"01953","7680 LAUREL CREEK RD",null,null,"VANCEBURG",null,"KY","41179","(606)796-3222"]
["E & J CONSTRUCTION INC",99,"03334","P O BOX 649",null,null,"HYDEN",null,"KY","41749","(606)672-3216"]
["E A BRIGGS OF KENTUCKY LLC",99,"03364","5535 GOLTS HYDRO ROAD",null,null,"SMITHS GROVE",null,"KY","42171","(270)563-5621"]
["E C MATTHEWS CO INC",99,"03457","2265 HARRODSBURG RD",null,null,"LEXINGTON",null,"KY","40504","(859)278-3131"]
["E I C TECHNOLOGIES INC",99,"02247","1301 PORTLAND AVENUE  SUITE A",null,null,"LOUISVILLE",null,"KY","40203","(502)561-5400"]
["E J BRENEMAN LP",99,"02541","1117 SNYDER ROAD",null,null,"WEST LAWN",null,"PA","19609","(610)678-1913"]
["E J KOKER & COMPANY AND SUBSIDIARIES",99,"01995","P O BOX 250",null,null,"VANDALIA",null,"OH","45377","(937)667-1425"]
["E L PIPE INC",99,"02579","18637 MT ELLIOTT",null,null,"DETROIT",null,"MI","48234-2737","(313)366-9600"]
["E LUKE GREENE COMPANY INC",99,"02724","4807 DOUGLAS DAM RD",null,null,"STRAWBERRY PLAINS",null,"TN","37871","(865)933-5902"]
["E M S CONSTRUCTION INC",99,"02788","4421 CRAFT COLLY RD",null,null,"ERMINE",null,"KY","41815","(606)899-9853"]
["E R TRUCKING COMPANY INC",99,"03518","P O BOX 144",null,null,"HARTFORD",null,"KY","42347","(270)298-7443"]
["E S WAGNER COMPANY",99,"01019","840 PATCHEN RD",null,null,"OREGON",null,"OH","43616","(419)691-8651"]
["E T SIMONDS CONSTRUCTION COMPANY",99,"00716","PO BOX 2107",null,null,"CARBONDALE",null,"IL","62901","(618)457-8191"]
["E Z CONSTRUCTION & EQUIPMENT CO INC",99,"02128","6330  CALLAHAN  RIDGE",null,null,"CATLETTSBURG",null,"KY","41129","(606)739-5207"]
["EA SERVICES INC",99,"03183","13850 GULF FREEWAY SUITE 250",null,null,"HOUSTON",null,"TX","77034","(281)922-4412"]
["EAGLE ELECTRICAL CONTRACTORS LLC",99,"02381","1600 LOTTS CREEK ROAD",null,null,"HAZARD",null,"KY","41701","(606)436-3923"]
["EAGLE GROOVING INC",99,"02807","3600 HWY 317",null,null,"SUWANEE",null,"GA","30024","(770)271-0566"]
["EAGLE INDUSTRIAL PAINTING LLC",99,"03561","3215 MAGNOLIA ROAD NW",null,null,"MAGNOLIA",null,"OH","44643","(330)866-5965"]
["EAGLE PAINTING & MAINTENANCE CO INC",99,"03083","1865 BERNICE ROAD",null,null,"LANSING",null,"IL","60438","(708)862-8712"]
["EAGLE PAINTING & MAINTENANCE COMPANY",99,"02866","1865 BERNICE RD",null,null,"LANSING",null,"IL","60438","(708)862-8712"]
["EAGLE PAINTING INC",99,"02714","PO BOX 633  492 HARMONY LANE",null,null,"CAMPBELL",null,"OH","44405","(330)755-0842"]
["EAGLE PROPERTIES & CONSTRUCTION INC",99,"02272","125  EAGLE NEST DRIVE",null,null,"PADUCAH",null,"KY","42003","(270)898-8425"]
["EARLY CONSTRUCTION SERVICES INC",99,"03189","P O BOX 1483",null,null,"SHELBYVILLE",null,"KY","40066","(502)647-3223"]
["EARTH & ENERGY CONSTRUCTION INC",99,"00897","P O BOX 40  217 CHEROKEE TERRACE",null,null,"FISHERVILLE",null,"KY","40023","(502)266-5475"]
["EARTH IMAGES INC",99,"02944","P O BOX 216    5868 STILLER RD",null,null,"FLOYD KNOBS",null,"IN","47119","(812)923-8386"]
["EARTHWELL ENERGY MANAGEMENT INC",99,"03373","1831 PLANTSIDE DRIVE",null,null,"LOUISVILLE",null,"KY","40299","(502)587-8447"]
["EAST CUMBERLAND LLC",99,"02353","P.O. BOX 11180",null,null,"CHARLESTON",null,"WV","25339","(304)346-5979"]
["EASTERN KENTUCKY ENVIRONMENT SOLUTIONS",99,"03288","717 LITTLE HARDWICKS CREEK ROAD",null,null,"CLAY CITY",null,"KY","40312","(606)663-5998"]
["EASTERN KENTUCKY ENVIRONMENTAL",99,"02786","PO BOX 161",null,null,"JACKSON",null,"KY","41339"]
["EASYRIDER CONSTRUCTION COMPANY",99,"01593","P O BOX 426",null,null,"MOUNT STERLING",null,"KY","40353","(859)498-0092"]
["EATON ASPHALT PAVING CO INC AND",99,"00117","136 E FROGTOWN RD",null,null,"WALTON",null,"KY","41094","(859)331-2303"]
["EATON CONSTRUCTION COMPANY INC",99,"00427","P O BOX 684     653 ISLAND RD",null,null,"CIRCLEVILLE",null,"OH","43113","(740)474-3414"]
["EBERLE ENTERPRISES INC",99,"03182","17500 TURTLE CREEK TR",null,null,"LOUISVILLE",null,"KY","40245","(502)773-8302"]
["EBONY CONSTRUCTION CO",99,"03655","3510 CENTENINAL ROAD",null,null,"SYLVANIA",null,"OH","43560","(419)841-3455"]
["ED GLASS CONSTRUCTION INC",99,"02380","147 HUTCHERSON RD",null,null,"GLASGOW",null,"KY","42141","(270)678-6111"]
["EDDIE BEST CONSTRUCTION CO INC",99,"02596","1202 WESTERN STREET",null,null,"ELIZABETHTOWN",null,"KY","42701","(270)765-2767"]
["EDEN FENCE INC",99,"00432","401 JUDGE KENNETH H GOFF DR",null,null,"LEITCHFIELD",null,"KY","42754","(270)737-4199"]
["EDWARD HALL TRUCKING & EXCAVATING CO",99,"02819","110 NORTHLAND DRIVE",null,null,"CORBIN",null,"KY","40701","(606)523-5037"]
["EDWARD KRAEMER & SONS INC",99,"00544","P O BOX 220  ONE PLAINVIEW ROAD",null,null,"PLAIN",null,"WI","53577","(608)546-2311"]
["EDWARDS MOVING AND RIGGING INC",99,"02166","200 EVERETT HALL RD",null,null,"SHELBYVILLE",null,"KY","40065","(502)633-1961"]
["EDWARDS-KAMADULSKI LLC",99,"03460","2230 CLEVELAND AVENUE",null,null,"EAST SAINT LOUIS",null,"IL","62205","(618)274-7150"]
["EIGHT TREASURES OF KENTUCKY LLC",99,"03114","P O BOX 1367",null,null,"CATLETTSBURG",null,"KY","41129","(606)686-3859"]
["EILTS CONSULTING SERVICES INC",99,"03517","4237 WEST STONES CROSSING ROAD",null,null,"GREENWOOD",null,"IN","46143","(317)535-6174"]
["ELASTIZELL SYSTEMS INC",99,"00860","2475 ARBOR BLVD",null,null,"DAYTON",null,"OH","45439","(937)298-1313"]
["ELDER CONSTRUCTION & ASSOCIATES INC",99,"02747","10197 BUNSEN WAY",null,null,"LOUISVILLE",null,"KY","40299","(502)491-8005"]
["ELECTRICAL SOLUTIONS INC",99,"02383","271 GOLDRUSH RD   P O BOX 23248",null,null,"LEXINGTON",null,"KY","40523","(606)278-2404"]
["ELITE CONCRETE CONSTRUCTION LLC",99,"03733","639 SHOP BRANCH ROAD",null,null,"STANVILLE",null,"KY","41659","(606)478-2049"]
["ELITE CONTRACTORS INC",99,"03055","114 PIN OAK PL",null,null,"CAMPBELL",null,"OH","44405","(330)502-5544"]
["ELITE INDUSTRIAL PAINTING INC",99,"03684","621 HIBISCUS ST STE 3",null,null,"TARPON SPRINGS",null,"FL","34689","(727)940-6001"]
["ELLIOTT CONTRACTING INC",99,"01501","P O BOX 3038",null,null,"PIKEVILLE",null,"KY","41502","(606)437-7368"]
["ELMO GREER & SONS INC",99,"01041","P O BOX 730",null,null,"LONDON",null,"KY","40743","(606)843-6136"]
["ELMO GREER & SONS LLC",99,"02520","PO BOX 730",null,null,"LONDON",null,"KY","40743","(606)843-6136"]
["ELMO STIGALL JR",99,"03685","1640 CCC TRAIL",null,null,"MOREHEAD",null,"KY","40351","(606)780-0337"]
["EMCO ENTERPRISES INC",99,"02286","P O BOX 2438",null,null,"LOUISVILLE",null,"KY","40201","(502)635-5141"]
["EMERINE CONSTRUCTION CO INC",99,"00435","PO BOX 444 ROY GRAHAM ROAD",null,null,"MURRAY",null,"KY","42071","(270)753-8986"]
["EMERY SAPP & SONS INC & SUBSIDIARIES",99,"03842","2301 1-70 DR NW",null,null,"COLUMBIA",null,"MO","65202","(573)445-8331"]
["EMPIRE CONTRACTORS INC",99,"03237","2200 LEXINGTON RD",null,null,"EVANSVILLE",null,"IN","47720","(812)424-3865"]
["EMS CONST INC D/B/A DS UNDERGROUND UTIL",99,"03438","783 MATT WIREMAN CEMETARY RD",null,null,"SALYERSVILLE",null,"KY","41465","(606)205-8315"]
["ENGLAND CONTRACTING LLC",99,"03041","236 FLINT RD",null,null,"MURRAY",null,"KY","42071","(270)753-2630"]
["ENGLISH FOUNDATIONS LLC",99,"03744","403 E SHELBY ST",null,null,"FALMOUTH",null,"KY","41040","(859)620-3038"]
["ENSOR EXCAVATING INC",99,"00429","2002 MAYSVILLE ROAD",null,null,"MT. STERLING",null,"KY","40353","(859)498-2304"]
["ENVIRONMENTAL COMPLIANCE MONITORING INC",99,"02730","P O BOX 98 1192 BOSWELL ROAD",null,null,"DUNDEE",null,"KY","42338","(270)276-9462"]
["ENVIRONMENTAL CONSTRUCTION CORPORATION",99,"01509","5472 LEESTOWN ROAD",null,null,"LEXINGTON",null,"KY","40511","(859)255-0445"]
["ENVIRONMENTAL LANDSCAPE LLC",99,"02903","2723 MUIR STATION RD",null,null,"LEXINGTON",null,"KY","40516","(859)294-5002"]
["ENVISION CONTRACTORS LLC",99,"03598","2960 FAIRVIEW DR",null,null,"OWENSBORO",null,"KY","42303","(270)663-2661"]
["ERBER & MILLIGAN CONSTRUCTION CO INC",99,"01409","200 PIKE STREET",null,null,"CHARLESTOWN",null,"IN","47111","(812)256-7165"]
["ERIE INTERSTATE CONTRACTORS INC",99,"02850","5428 GENESEE STREET",null,null,"LANCASTER",null,"NY","14086","(716)685-3743"]
["ERNIE DAVIS & SONS MECHANICAL INC",99,"02852","1518 E ELEVENTH ST",null,null,"OWENSBORO",null,"KY","42303","(270)926-1350"]
["EROSION & ENVIRONMENTAL SOLUTIONS LLC",99,"03017","148 PHEASANT RUN",null,null,"NICHOLASVILLE",null,"KY","40356","(859)255-1222"]
["EROSION SOLUTIONS LLC",99,"03366","1026 COUNTY ROAD 439",null,null,"ATHENS",null,"TN","37303","(423)745-0028"]
["ERS MATERIALS LLC",99,"03503","662 UPPER MAPLE STREET",null,null,"DANIELSON",null,"CT","06239","(860)333-6575"]
["ESTES BROS CONSTRUCTION INC",99,"01353","ROUTE 3  BOX 740",null,null,"JONESVILLE",null,"VA","24263","(276)346-1227"]
["ETHRIDGE CONSTRUCTION",99,"02318","515 HUGHES ROAD",null,null,"FREDONIA",null,"KY","42411","(502)388-2641"]
["EUBANK ASPHALT PAVING AND SEALING",99,"02517","PO BOX 190",null,null,"CHARLOTTE",null,"TN","37036","(615)789-5761"]
["EUNICE D INC",99,"02278","P O BOX 1924",null,null,"CORBIN",null,"KY","40702","(606)528-0087"]
["EURO PAINT LLC",99,"03078","819 MCCARTNEY RD UNIT 3",null,null,"YOUNGSTOWN",null,"OH","44505","(330)536-6476"]
["EVERS STEEL CONSTRUCTION LLC",99,"03662","P O BOX 53426",null,null,"CINCINNATI",null,"OH","45253","(513)385-7352"]
["EVERS WELDING CO INC",99,"03190","P O BOX 53426",null,null,"CINCINNATI",null,"OH","45253","(513)385-7352"]
["EXCEL EXCAVATING INC",99,"03101","P O BOX 412",null,null,"SELLERSBURG",null,"IN","47172","(812)246-0857"]
["E-Z CONSTRUCTION CO INC",99,"03250","7420 DISTRIBUTION DR",null,null,"LOUISVILLE",null,"KY","40258","(502)937-6855"]
["F D JACOBI SODDING SERVICE  INC",99,"02762","5868 STILLER RD",null,null,"FLOYDS KNOBS",null,"IN","47119-9205","(812)923-8386"]
["F D JACOBI SODDING SERVICE INC",99,"00523","5868 STILLER ROAD",null,null,"FLOYDS KNOBS",null,"IN","47119","(812)923-8386"]
["F E C INC",99,"02515","2117 IMMEL MINE ROAD  PO BOX 7",null,null,"MASCOT",null,"TN","37806-0007","(865)933-3111"]
["F W ELECTRIC INC",99,"02371","P O BOX 1297 INDUSTRIAL PARK RD",null,null,"BENTON",null,"IL","62812","(618)438-9191"]
["FACILITY MAINTENANCE & SERVICES GROUP LL",99,"03866","2121 RICHMOND RD #227",null,null,"LEXINGTON",null,"KY","40502","(859)554-6584"]
["FAHRNER ASPHALT SEALERS INC",99,"02977","P O BOX 95    2800 MECCA DRIVE",null,null,"PLOVER",null,"WI","54467","(715)341-2868"]
["FAHRNER ASPHALT SEALERS LLC",99,"03032","P O BOX 95     2800 MECCA DRIVE",null,null,"PLOVER",null,"WI","54467","(715)341-2868"]
["FALCO DRILLING COMPANY INC",99,"03450","13110 MIDDLETOWN INDUSTRIAL BLVD",null,null,"LOUISVILLE",null,"KY","40223","(502)244-0273"]
["FALCONITE INC W/O/S NATIONAL EQ SVS INC",99,"02536","PO BOX 2477",null,null,"WEST LAFAYETTE",null,"IN","47996","(765)420-8000"]
["FARAWAY WIND ENTERPRISES INC DBA",99,"02994","1020 ENTERPRISE DRIVE STE #1",null,null,"LEXINGTON",null,"KY","40510","(859)233-8990"]
["FAULKNER CONSTRUCTION INC",99,"00854","4623 ILLINOIS AVENUE",null,null,"LOUISVILLE",null,"KY","40213","(502)456-1943"]
["FAULKNER CONSTRUCTION LLC",99,"02452","4623 ILLINOIS AVENUE",null,null,"LOUISVILLE",null,"KY","40213","(502)456-1943"]
["FENCE PROS LLC",99,"03206","2033 HWY 41 N SUITE A",null,null,"HENDERSON",null,"KY","42420","(270)826-7003"]
["FENTON EXCAVATING & CONSTRUCTION INC",99,"03627","44311 REYNOLDS",null,null,"CLINTON TOWNSHIP",null,"MI","48036","(586)329-3496"]
["FIBRWRAP CONSTRUCTION INC",99,"03195","4255 E AIRPORT DRIVE",null,null,"ONTARIO",null,"CA","91761","(909)390-4363"]
["FIBRWRAP CONSTRUCTION LP",99,"03263","4255 E AIRPORT DRIVE",null,null,"ONTARIO",null,"CA","91761","(909)390-4363"]
["FILCON CONSTRUCTION LLC",99,"03105","915 DEATSVILLE RD",null,null,"COXS CREEK",null,"KY","40013","(502)349-3222"]
["FIRE PROTECTION OF LOUISVILLE INC",99,"02263","2241  AMPERE DRIVE",null,null,"LOUISVILLE",null,"KY","40299","(502)266-8687"]
["FIRST STAR SAFETY LLC",99,"03717","310 S COOPER AVE",null,null,"CINCINNATI",null,"OH","45215","(513)661-7827"]
["FISHER CONTRACTING COMPANY",99,"03428","3401 CONTRACTOR DR",null,null,"MIDLAND",null,"MI","48642","(989)835-7771"]
["FIVE D ENTERPRISES INC",99,"03420","P O BOX 102",null,null,"KEENE",null,"KY","40339","(859)275-1652"]
["FIVE STAR CONSTRUCTION INC",99,"02246","P O BOX 1315",null,null,"LONDON",null,"KY","40743-1315","(606)545-9331"]
["FIVE STAR PAINTING INC",99,"00446","6218 WORK ST",null,null,"DEMOTTE",null,"IN","46310","(219)987-6527"]
["FLAGPROS OF KENTUCKY LLC",99,"03644","1239 S DICKERSON ROAD",null,null,"GOODLETTSVILLE",null,"TN","37072","(615)859-5555"]
["FLAME ON INC",99,"02384","12632 WAGNER RD",null,null,"MONROE",null,"WA","98272","(425)397-7039"]
["FLATIRON CONSTR INC J/V MANSON CONST CO",99,"03571","10188 E I-25 FRONTAGE RD",null,null,"FIRESTONE",null,"CO","80504","(303)485-4050"]
["FLATIRON CONSTRUCTORS INC",99,"03367","385 INTERLOCKEN CRESCENT #900",null,null,"BROOMFIELD",null,"CO","80021","(303)485-4050"]
["FLATIRON STRUCTURES COMPANY",99,"02537","PO BOX 2239  10090 I-25 FRONTAGE ROAD",null,null,"LONGMONT",null,"CO","80504-2239","(303)444-1760"]
["FLATIRON STRUCTURES COMPANY LLC",99,"02072","P MO BOX 2239    10090 I-25 FRONTAGE RD",null,null,"LONGMONT",null,"CO","80504","(303)444-1760"]
["FLETCHER EXCAVATION LLC",99,"03554","P O BOX 480",null,null,"SMITHS GROVE",null,"KY","42171","(270)563-2020"]
["FLO-LINE CONTRACTING LLC",99,"03812","189 SUNSTAR BLVD",null,null,"MONTICELLO",null,"KY","42633","(606)340-8000"]
["FLORENCE CEMENT COMPANY",99,"03329","12585 23 MILE ROAD",null,null,"SHELBY TOWNSHIP",null,"MI","48315","(586)997-2666"]
["FLUOR ENTERPRISES INC WOS FLUOR CORPORAT",99,"03388","100 FLUOR DANIEL DRIVE",null,null,"GREENVILLE",null,"SC","29607","(864)281-4404"]
["FLYNN BROTHERS CONTRACTING INC & SUB",99,"00448","4515 BISHOP LN STE A",null,null,"LOUISVILLE",null,"KY","40218","(502)364-9100"]
["FOERTSCH CONSTRUCTION COMPANY INC",99,"02492","PO BOX 16  124724 N SR 245",null,null,"LAMAR",null,"IN","47550","(812)529-8211"]
["FOERTSCH CONTRACTING LLC",99,"03895","P O BOX 16       12724 STATE RD 245",null,null,"LAMAR",null,"IN","47550","(812)529-8211"]
["FOOTHILLS CONTRACTING LLC",99,"03429","P O BOX 368   2485 HWY 460 E",null,null,"WEST LIBERTY",null,"KY","41472","(606)743-4490"]
["FOR EVERY SEASON LLC",99,"02855","575 HUNTERS CROSSING",null,null,"BOWLING GREEN",null,"KY","42104","(270)392-1672"]
["FORD CONSTRUCTION COMPANY & SUBSIDIARIES",99,"00451","1311 E COURT ST",null,null,"DYERSBURG",null,"TN","38024","(731)285-5185"]
["FORD CONTRACTING INC",99,"02563","375 SOUTHWAY DR",null,null,"LANCASTER",null,"KY","40444","(859)792-3708"]
["FORGE CONSTRUCTION LLC",99,"03324","1300 GARDINER LANE SUITE 11",null,null,"LOUISVILLE",null,"KY","40213","(502)456-1943"]
["FOUNTAIN ELECTRICAL SERVICES INC",99,"02486","P O BOX 289",null,null,"CALVERT CITY",null,"KY","42029","(270)395-5399"]
["FOX CONTRACTORS CORP",99,"01579","5430 W FERGUSON RD",null,null,"FORT WAYNE",null,"IN","46809","(260)747-7461"]
["FOX ENGINEERING PLLC",99,"03232","101 NORTH COURT STREET",null,null,"RIPLEY",null,"WV","25271","(304)372-3705"]
["FOX ENTERPRISES INC",99,"02734","P.O. BOX 1718",null,null,"RICHMOND",null,"KY","40476","(859)623-9963"]
["FRAMERS OF TENNESSEE LLC",99,"02735","7045 INDUSTRIAL PARK",null,null,"NUNNELLY",null,"TN","37137","(931)670-8095"]
["FRANCIS E FIGLEY SR DBA UNITY",99,"02629","PO BOX 29",null,null,"EAST PALESTINE",null,"OH","44413","(330)457-3030"]
["FRANCOMPANY CLEANUP DBA FRANCO",99,"03231","5966 HWY 1002",null,null,"WEST LIBERTY",null,"KY","41472","(606)743-4877"]
["FRANKCO CONTRACTORS",99,"02343","8175 HIGHWAY 355",null,null,"OWENTON",null,"KY","40359","(502)484-9983"]
["FRED WEBER INC",99,"03074","P O BOX 2501",null,null,"MARYLAND HEIGHTS",null,"MO","63043","(314)344-0070"]
["FREDERICK & MAY CONSTRUCTION CO",99,"01218","P O BOX 337",null,null,"WEST LIBERTY",null,"KY","41472","(606)743-4327"]
["FREDONIA VALLEY CONSTRUCTION INC",99,"02611","PO BOX 231  612 CASSIDY AVE",null,null,"FREDONIA",null,"KY","42411","(270)545-7562"]
["FREE CONTRACTING INC",99,"02069","1620 OLD FRANKFORT PIKE",null,null,"LEXINGTON",null,"KY","40504","(859)255-2236"]
["FREESEN INC WOS UNITED CONTRACTORS",99,"00450","P O BOX 13420",null,null,"SPRINGFIELD",null,"IL","62791","(217)546-6192"]
["FRITZ-RUMER-COOKE CO INC",99,"02033","P O BOX 07884  1879 FEDERAL PKWY 2ND FL",null,null,"COLUMBUS",null,"OH","43207","(614)444-8844"]
["FRONTIER ENTERPRISES INC",99,"01919","4101 RALPH AVE",null,null,"LOUISVILLE",null,"KY","40211","(502)448-1990"]
["FRONTIER RAILROAD SERVICES LLC",99,"03710","100 BRADY PL STE 200",null,null,"NEW STANTON",null,"PA","15672","(724)925-1210"]
["FRONTIER-KEMPER CONSTRUCTORS INC",99,"01082","P O BOX 6690",null,null,"EVANSVILLE",null,"IN","47719","(812)426-2741"]
["FRU-CON CONSTRUCTION CORPORATION",99,"02042","15933 CLAYTON ROAD     P O BOX 100",null,null,"BALLWIN",null,"MO","63011","(314)391-6700"]
["FULKERSON CONTRACTING INC",99,"02373","2637 CRANDALL LANESVILLE RD NE",null,null,"LANESVILLE",null,"IN","47136","(812)952-2662"]
["G & G PAVING & CONSTRUCTION CO INC",99,"01945","3136 LEESTOWN ROAD",null,null,"LEXINGTON",null,"KY","40511","(859)255-6029"]
["G & H PAVEMENT SEALING COMPANY INC",99,"00458","P O BOX 377",null,null,"LEWISPORT",null,"KY","42351","(270)295-3793"]
["G & J WILLIS INC",99,"03665","1303 CUMBERLAND AVE",null,null,"MIDDLESBORO",null,"KY","40965","(606)269-7277"]
["G & W CONSTRUCTION CO INC",99,"03014","6730 FLEMINGSBURG RD",null,null,"MOREHEAD",null,"KY","40351","(606)784-2396"]
["G B HASTIE FENCE COMPANY INC",99,"03470","P O BOX 571  44 RAMAH CIRCLE SOUTH",null,null,"AGAWAM",null,"MA","01001","(413)786-1254"]
["G L F CONSTRUCTION CORPORATION",99,"02266","80 SOUTH WEST 8TH STREET  SUITE 2201",null,null,"MIAMI",null,"FL","33130","(305)371-9201"]
["G L NAUSE COMPANY",99,"02071","1141 US HWY  50",null,null,"MILFORD",null,"OH","45150","(513)248-1863"]
["G M SIPES CONSTRUCTION INC",99,"02437","503 EAST ADAMS STREET  P O BOX 109",null,null,"RUSHVILLE",null,"IL","62618","(217)322-6543"]
["G YNOT CONTRACTING INC",99,"02657","193 COLLIER AVE",null,null,"JACKSON",null,"KY","41339","(606)666-2767"]
["GABBARD ENTERPRISES",99,"03120","117 LEGACY DRIVE",null,null,"BEREA",null,"KY","40403","(859)661-3696"]
["GADCON INC",99,"02031","P O BOX 1472 725 FRAYSER AVE",null,null,"OWENSBORO",null,"KY","42302","(270)926-0893"]
["GADDIE - SHAMROCK INC",99,"01283","P O BOX 280",null,null,"COLUMBIA",null,"KY","42728","(502)384-2451"]
["GADDIE-SHAMROCK LLC",99,"02493","PO BOX 280",null,null,"COLUMBIA",null,"KY","42728","(270)384-2451"]
["GALLAGHER ASPHALT CORPORATION",99,"02997","18100 S INDIANA AVE",null,null,"THORNTON",null,"IL","60476","(708)877-7160"]
["GALLENSTEIN BROS INC",99,"02115","6801  CREEK ROAD",null,null,"CINCINNATI",null,"OH","45242","(513)891-0150"]
["GALLOWAY ELECTRIC INC",99,"03238","P O BOX 12      1412 SOUTH GREEN ST",null,null,"HENDERSON",null,"KY","42419","(270)826-1224"]
["GALUSHA CONTRACTING LLC",99,"03777","341 MCINTYRE ST",null,null,"BOWLING GREEN",null,"KY","42101","(270)963-6791"]
["GAMBLE PAVING & CONSTRUCTION LLC",99,"03175","5608 FOX HORN CIRCLE # 206",null,null,"LOUISVILLE",null,"KY","40216","(502)974-5050"]
["GAMBLE PAVING CONCRETE AND CONSTRUCTION",99,"02648","1816 BURWELL AVE",null,null,"LOUISVILLE",null,"KY","40210","(502)775-6902"]
["GARDNER PAINT SERVICES INC",99,"01245","P O BOX 5096",null,null,"JOHNSON CITY",null,"TN","37602","(423)928-8351"]
["GARFIELD-INDECON ELECTRICAL SERV INC",99,"01838","5301 LESTER ROAD",null,null,"CINCINNATI",null,"OH","45213","(513)979-7400"]
["GARRISON CONSTRUCTION COMPANY INC",99,"00896","6960 GREENSBURG ROAD",null,null,"GREENSBURG",null,"KY","42743","(270)384-3774"]
["GARY OAKLEY & MIKE OAKLEY DBA OAK BROS",99,"02683","PO BOX 81",null,null,"CALVERT CITY",null,"KY","42029","(270)527-8845"]
["GCCS INC",99,"03409","9700 PARK PLAZA AVENUE UNIT 204",null,null,"LOUISVILLE",null,"KY","40241","(502)365-2850"]
["GECO ENTERPRISES INC",99,"01163","P O BOX 463 1221 EST 4TH STREET",null,null,"LONDON",null,"KY","40743-0463","(606)864-7550"]
["GEHRING UNDERGROUND UTILITIES & PIPELINE",99,"03345","3355 S US HWY 31",null,null,"COLUMBUS",null,"IN","47201","(812)378-3033"]
["GEMSTONE LLC",99,"03254","1010 KENNEDY DR STE 406",null,null,"KEY WEST",null,"FL","33040","(305)294-3233"]
["GEO CON INC OF KY",99,"02443","P O BOX 12736",null,null,"LEXINGTON",null,"KY","40583","(859)224-8533"]
["GEOBUILD LLC",99,"03680","4607 LIBRARY RD STE 220",null,null,"BETHEL PARK",null,"PA","15102","(866)472-6544"]
["GEO-CELL MIDWEST LLC",99,"03705","2668 N FORDHAM AVE",null,null,"FRESNO",null,"CA","93727","(559)294-1274"]
["GEORGE B STONE COMPANY",99,"00738","P O BOX 219",null,null,"SHARPSBURG",null,"KY","40374","(606)247-3461"]
["GEORGE B STONE COMPANY LLC",99,"02595","PO BOX 219",null,null,"SHARPSBURG",null,"KY","40374","(606)247-3461"]
["GEORGE J IGEL & CO INC",99,"03718","2040 ALUM CREEK DRIVE",null,null,"COLUMBUS",null,"OH","43207","(614)445-8421"]
["GEORGE JONES EXCAVATING LLC",99,"02933","P O BOX 1104     1504 EAST MAIN ST",null,null,"MARION",null,"IL","62959","(618)997-6278"]
["GEORGIA ELECTRIC COMPANY",99,"00464","P O BOX 3108  1412 W OAKRIDGE",null,null,"ALBANY",null,"GA","31706-3108","(229)435-2241"]
["GEOSTABILIZATION INTERNATIONAL LLC",99,"03522","4475 E 74TH AVE STE 100",null,null,"COMMERCE CITY",null,"CO","80022","(970)210-6170"]
["GEOTECH SERVICES INC",99,"03322","350 GOLDEN OAK PARKWAY",null,null,"CLEVELAND",null,"OH","44146","(440)439-5821"]
["GERALD CHAMBERS & SONS INC",99,"01224","30 MAIN ST",null,null,"BENTON",null,"KY","42025","(270)527-8757"]
["GERALD DAVID ORR CONTRACTING INC",99,"02930","P O BOX 927",null,null,"ENGLEWOOD",null,"TN","37329","(423)263-4365"]
["GERALD L STALEY",99,"02590","13404 KENTON STATION",null,null,"MORNINGVIEW",null,"KY","41063","(859)356-9324"]
["GERONIMO PAINTING CO INC",99,"02593","PO BOX 418",null,null,"LISBON",null,"OH","44432","(330)424-4504"]
["GFS FENCE GUARDRAIL & SIGNAGE INC",99,"03344","11921 SMITH DRIVE",null,null,"HUNTLEY",null,"IL","60142","(224)654-2122"]
["GILBERT CONSTRUCTION",99,"01759","609 STATE ROUTE 943",null,null,"FULTON",null,"KY","42041","(270)355-2847"]
["GILPIN CONSTRUCTION COMPANY",99,"03681","1219 NORTH MAIN ST",null,null,"LONDON",null,"KY","40741","(606)864-8592"]
["GIRARDEAU CONTRACTORS INC",99,"00465","P O BOX 880",null,null,"CAPE GIRARDEAU",null,"MO","63702-0880","(573)334-5261"]
["GKC PROPERTIES LLC",99,"03208","180 ELLISON ST",null,null,"CORBIN",null,"KY","40701","(606)528-2953"]
["GLASS PAVING & STONE LLC",99,"02974","P O BOX 200",null,null,"PARIS",null,"KY","40362","(859)987-3670"]
["GLASS PAVING INC",99,"02079","P O BOX 836",null,null,"GLASGOW",null,"KY","42142-0836","(270)651-6645"]
["GLEN ROARK CONSTRUCTION COMPANY",99,"02794","P. O BOX 790",null,null,"LONDON",null,"KY","40743","(606)864-4321"]
["GLENWOOD ELECTRIC INC",99,"03666","12250 CHANDLER DR",null,null,"WALTON",null,"KY","41094","(859)485-3700"]
["GLOBAL CONSTRUCTION INC",99,"01532","1476 L & R INDUSTRIAL BLVD",null,null,"TARPON SPRINGS",null,"FL","34689","(727)938-6991"]
["GLOBAL PAINTING COMPANY INC",99,"02641","PO BOX 567",null,null,"CAMPBELL",null,"OH","44405","(330)755-9660"]
["GOAD TRUCKING & EXCAVATING",99,"02784","119 BRONSTON SCHOOL RD",null,null,"BRONSTON",null,"KY","42518","(606)561-9176"]
["GOFF EXCAVATING COMPANY",99,"03212","P O BOX 1470    11 INDUSTRIAL PARK RD",null,null,"MT VERNON",null,"KY","40456","(606)256-4068"]
["GOGGANS CONSTRUCTION CO INC",99,"03757","312 EUCLID AVE",null,null,"PAINTSVILLE",null,"KY","41240","(606)789-6208"]
["GOHMANN ASPHALT AND CONSTRUCTION INC",99,"00182","P O BOX 2428",null,null,"CLARKSVILLE",null,"IN","47131-2428","(812)282-1349"]
["GOHMANN CONSTRUCTION INC",99,"03393","P O BOX 2428",null,null,"CLARKSVILLE",null,"IN","47131","(812)282-1349"]
["GORDON COMPANY PAVEMENT MAINTENANCE INC",99,"03302","105 KAYLAN LN",null,null,"THOMASVILLE",null,"NC","27360","(336)215-2540"]
["GOSSETT MOWING INC",99,"03888","305 ALEXANDER AVE",null,null,"CAVE CITY",null,"KY","42127","(270)773-3622"]
["GOVERNMENT SERVICES HOLDING LLC",99,"03432","P.O. BOX 63",null,null,"WEST PADUCAH",null,"KY","42086","(270)462-8825"]
["GRADEX INC",99,"02640","10220 N ILLINOIS ST",null,null,"INDIANAPOLIS",null,"IN","46290","(317)573-3970"]
["GRADY WHITE CONSTRUCTION INC",99,"02235","1536 US HWY 641 NORTH",null,null,"EDDYVILLE",null,"KY","42038","(502)388-7856"]
["GRANDVIEW WELDING & EQUIPMENT",99,"91013","198 RADIO STATION RD",null,null,"TOMPKINSVILLE",null,"KY","42167","(270)487-8813"]
["GRANITE CONSTRUCTION COMPANY",99,"02057","585 WEST BEACH STREET",null,null,"WATSONVILLE",null,"CA","95076","(831)724-1011"]
["GRANITE INLINER LLC",99,"03709","585 W BEACH ST",null,null,"WATSONVILLE",null,"CA","95076","(831)724-1011"]
["GRANTS EXCAVATING INC",99,"02680","PO BOX 298",null,null,"RICHMOND",null,"KY","40476","(859)626-3478"]
["GRASSHOPPERS LANDCLEARING & TREE SERVICE",99,"02899","2405 BLANKENBAKER RD",null,null,"LOUISVILLE",null,"KY","40299","(502)266-6312"]
["GRAVES CONTRACTING LLC",99,"03824","1109 CISSELLVILLE RD",null,null,"SPRINGFIELD",null,"KY","40069","(502)507-2632"]
["GRAY FOX INC",99,"02155","P O BOX 14186     136 OUTER LOOP",null,null,"LOUISVILLE",null,"KY","40214-0186","(502)361-5766"]
["GRAYS EXCAVATING INC",99,"02488","HC 66 BOX 1304",null,null,"ARTEMUS",null,"KY","40903","(606)598-2623"]
["GREAT LAKES DREDGE & DOCK COMPANY",99,"00469","2122 YORK ROAD",null,null,"OAK BROOK",null,"IL","60523","(630)574-3000"]
["GREAT LAKES DREDGE & DOCK COMPANY LLC",99,"02970","2122 YORK RD  STE 200",null,null,"OAK BROOK",null,"IL","60523","(630)574-3000"]
["GREEN RIVER EQUIPMENT LEASING INC",99,"03734","P O BOX 246",null,null,"MORGANTOWN",null,"KY","42261","(270)526-5816"]
["GREEN RIVER SEED & SOD INC",99,"01705","859 FAIRVIEW AVE SUITE 600",null,null,"BOWLING GREEN",null,"KY","42101","(270)842-0466"]
["GREENWAY INC",99,"02475","1520 PARKER HOLLOW DRIVE",null,null,"LOUISVILLE",null,"KY","40223","(502)254-2477"]
["GREER MINING INC",99,"03375","P O BOX 335",null,null,"EAST BERNSTADT",null,"KY","40729","(606)843-6136"]
["GREERS TREE SERVICE",99,"02330","567 MEADOW VIEW DRIVE",null,null,"ELIZABETHTOWN",null,"KY","42701","(270)737-2998"]
["GREG HALL ENTERPRISES INC",99,"03461","6034 HWY 81",null,null,"OWENSBORO",null,"KY","42301","(270)314-9699"]
["GRIMES CONSTRUCTION CO INC",99,"02358","248 KELLER ROAD",null,null,"LONDON",null,"KY","40741","(606)864-4263"]
["GROUND HOG EXCAVATING & FARM SERVICES IN",99,"03854","P O BOX 910470",null,null,"LEXINGTON",null,"KY","40591","(859)489-7611"]
["GROUND SOLUTIONS LLC",99,"03686","316 TENTH ST",null,null,"PAINTSVILLE",null,"KY","41240","(606)371-0293"]
["GROUNDMASTERS INCORPORATED",99,"02890","131 COMMERCE BLVD",null,null,"LOVELAND",null,"OH","45140","(513)774-7400"]
["GTI SOUTH INC",99,"03163","P O BOX 1567",null,null,"RUSSELLVILLE",null,"KY","42276","(270)725-4935"]
["GULF COAST CONTRACTING LLC",99,"03244","4125 LOUIS AVE",null,null,"HOLIDAY",null,"FL","34691","(727)938-6081"]
["GULF EQUIPMENT CORPORATION",99,"03200","5535 BUSINESS PARKWAY",null,null,"THEODORE",null,"AL","36582","(251)653-3369"]
["GUY F ATKINSON CONSTRUCTION LLC WOS",99,"02841","200 UNION BLVD SUITE 400",null,null,"LAKEWOOD",null,"CO","80228","(303)985-1660"]
["GW EXCAVATING LLC",99,"03723","295 HILLCREST CIRCLE",null,null,"HAWESVILLE",null,"KY","42348","(270)302-3211"]
["H & G CONSTRUCTION COMPANY INC",99,"00237","1108 DOVER ROAD",null,null,"GRAND RIVERS",null,"KY","42045","(270)362-8661"]
["H & S EXCAVATING INC",99,"02275","P O BOX 134",null,null,"CLINTON",null,"KY","42031","(502)653-4714"]
["H & W ENTERPRISES INC",99,"02818","2378 PORTER PIKE",null,null,"BOWLING GREEN",null,"KY","42103","(270)791-9915"]
["H B STANLEY INC",99,"00177","107 E 10TH STREET",null,null,"BEAVER DAM",null,"KY","42320","(270)274-7177"]
["H G MAYS CORP A JV WITH MAGO CONST LLC",99,"03464",null,null,null,null,null,"KY"]
["H G MAYS CORPORATION",99,"00360","P O BOX 797         350 LEWIS FERRY RD",null,null,"FRANKFORT",null,"KY","40602","(502)875-1282"]
["H I P RECYCLING INC A DIV D CRUPI & SONS",99,"02212","1025 W  38TH PL",null,null,"HOBART",null,"IN","46342-2111","(219)785-4213"]
["H P CONTRACTING INC",99,"02302","P O BOX 8",null,null,"PARIS",null,"KY","40362","(606)299-7905"]
["H2O CONSTRUCTION CO INC",99,"03281","470 ZEIGLER DRIVE",null,null,"PIKEVILLE",null,"KY","41501","(606)478-4392"]
["HACO CORP",99,"02188","PO BOX 247",null,null,"NICHOLASVILLE",null,"KY","40340-0247","(859)885-7642"]
["HADLEY MOWING INC",99,"02099","1221 SULPHUR CREEK  ROAD",null,null,"COLUMBIA",null,"KY","42728","(270)384-5183"]
["HAIRE CONSTRUCTION LLC",99,"03901","11214 DECIMAL DR",null,null,"LOUISVILLE",null,"KY","40299","(502)493-4822"]
["HALE CONTRACTING INC",99,"00106","P O BOX 118",null,null,"WILLIAMSTOWN",null,"KY","41097","(859)824-6331"]
["HALL CONTRACTING CORPORATION",99,"00166","P O BOX 560218",null,null,"CHARLOTTE",null,"NC","28256-0218","(704)598-0818"]
["HALL CONTRACTING OF KENTUCKY INC",99,"02691","3800 CRITTENDEN DR",null,null,"LOUISVILLE",null,"KY","40209","(502)367-6151"]
["HALL J/V LOUIS PAV",99,"03137","3800 CRITTENDEN DR",null,null,"LOUISVILLE",null,"KY","40209"]
["HALLS EXCAVATION CORPORATION",99,"02820","337 CLINTON IRON FURNACE ROAD",null,null,"WHEELERSBURG",null,"OH","45694","(740)574-5838"]
["HALVERSON CONSTRUCTION COMPANY INC",99,"02803","P.O. BOX 6039",null,null,"SPRINGFIELD",null,"IL","62708","(217)753-0027"]
["HAMBY CONSTRUCTION INC",99,"02840","11765 NORTONVILLE RD",null,null,"DAWSON SPRINGS",null,"KY","42408","(270)797-8191"]
["HAMHED LLC",99,"03592","200 GALVAN WAY",null,null,"NEW ALBANY",null,"IN","47150","(812)590-1892"]
["HAMILTON HINKLE & RUTH OF GEORGETOWN",99,"01703","100 FARMERS BANK DRIVE ST 400",null,null,"GEORGETOWN",null,"KY","40324","(502)868-0231"]
["HANKA BUILDERS & EXCAVATING LLC",99,"02781","835 E MAIN STREET",null,null,"LOUISVILLE",null,"KY","40206","(502)589-6526"]
["HANSON AGGREGATES MIDWEST INC W/O/S",99,"00191","P O BOX 436329  209 OLD HARRODS CREEK RD",null,null,"LOUISVILLE",null,"KY","40253-6329","(502)244-7550"]
["HAPCO LLC",99,"02512","P O BOX 225",null,null,"SPRINGFIELD",null,"KY","40069","(859)336-6000"]
["HARDCORE CONCRETE SAWING INC.",99,"02801","9505 S CEDER LANE",null,null,"HARDINSBURG",null,"IN","47125","(812)472-9039"]
["HARMON CONSTRUCTION INC",99,"02924","621 S STATE ST",null,null,"NORTH VERNON",null,"IN","47265","(812)346-2048"]
["HARMON STEEL INC",99,"03147","623 S STATE ST",null,null,"NORTH VERNON",null,"IN","47265","(812)346-2064"]
["HAROLD COFFEY CONSTR CO INC WOS COFFEY H",99,"00380","P O BOX 300",null,null,"HICKMAN",null,"KY","42050","(270)236-3102"]
["HARPER CONSTRUCTION LLC",99,"03217","P O BOX 7605    4020 CAIRO RD",null,null,"PADUCAH",null,"KY","42001","(270)538-7500"]
["HARPER INDUSTRIES INC",99,"00216","P O BOX 9186",null,null,"PADUCAH",null,"KY","42002","(270)442-2753"]
["HARPER'S EXCAVATING INC",99,"02374","6391 HIGHWAY 7",null,null,"WEST LIBERTY",null,"KY","41472","(606)743-7438"]
["HARTMAN WALSH PAINTING COMPANY WOS",99,"00483","7144 NORTH MARKET ST",null,null,"SAINT LOUIS",null,"MO","63133","(314)863-1800"]
["HARTZ CONSTRUCTION CORPORATION",99,"03128","P O BOX 21993",null,null,"OWENSBORO",null,"KY","42304","(270)926-6554"]
["HASTINGS PAVEMENT CO INC",99,"02338","30 COMMERCIAL STREET",null,null,"FREEPORT",null,"NY","11520","(516)379-3500"]
["HAWKEYE CONSTRUCTION LLC",99,"02506","P O BOX 1200",null,null,"ROBINSON CREEK",null,"KY","41560","(606)639-9675"]
["HAWKEYE CONTRACTING COMPANY LLC",99,"02769","PO BOX 1000",null,null,"ROBINSON CREEK",null,"KY","41560","(606)639-9675"]
["HAWKINS CONSTRUCTION INC",99,"03637","P O BOX 257",null,null,"LAWRENCEBURG",null,"KY","40342","(502)839-5140"]
["HAYDON BRIDGE CO J/V  LAWRENCE CONSTR &",99,"03444","P O BOX 175",null,null,"SPRINGFIELD",null,"KY","40069"]
["HAYDON BRIDGE COMPANY INC",99,"00138","P O BOX 175  703 OLD LEBANON RD",null,null,"SPRINGFIELD",null,"KY","40069","(859)336-7533"]
["HAYDON BRIDGE J/V BUSH & BURCHETT",99,"03775","P O BOX 175",null,null,"SPRINGFIELD",null,"KY","40069","(859)336-7533"]
["HAYDON BRIDGE J/V HAYDON BROTHERS",99,"02898","P O BOX 175",null,null,"SPRINGFIELD",null,"KY","40069","(859)336-7533"]
["HAYDON BROTHERS CONTRACTING INC",99,"01943","P O BOX 67",null,null,"SPRINGFIELD",null,"KY","40069","(859)336-6000"]
["HAYDON MATERIALS LLC",99,"02848","40 LUCKNOW CT",null,null,"BARDSTOWN",null,"KY","40004","(502)348-3926"]
["HAYES DRILLING INC",99,"02637","15525 S MAHAFFIE ST",null,null,"OLATHE",null,"KS","66062","(913)768-9500"]
["HAYES DRILLING INC DBA HAYES DRILLED FND",99,"01580","8845 PROSPECT",null,null,"KANSAS CITY",null,"MO","64132","(816)363-3040"]
["HAYES INC",99,"01591","P O BOX 159",null,null,"BETSY LAYNE",null,"KY","41605","(606)478-9488"]
["HAZEX CONSTRUCTION COMPANY INC",99,"00173","P O BOX 357    1890 MADISON ST",null,null,"HENDERSON",null,"KY","42419","(270)826-5642"]
["HAZIMIHALIS PAINTING COMPANY INC",99,"02191","627 DUMONT AVENUE   P O BOX 71",null,null,"CAMPBELL",null,"OH","44405","(303)755-0226"]
["HCL DEMOLITION INC",99,"03712","1520 ALGONQUIN PKWY",null,null,"LOUISVILLE",null,"KY","40210","(502)638-9791"]
["HEETER CONSTRUCTION INC",99,"03191","513 CHARLESTON ROAD",null,null,"SPENCER",null,"WV","25276","(304)927-3032"]
["HEJ CONSTRUCTION COMPANY INC",99,"03091","8022 HWY 1110",null,null,"WHICK",null,"KY","41390","(606)568-8814"]
["HENDERSON SERVICES LLC",99,"03410","4502 POPLAR LEVEL RD",null,null,"LOUISVILLE",null,"KY","40213","(502)719-6615"]
["HENDY INC",99,"03233","7968 WESSELMAN RD",null,null,"CLEVES",null,"OH","45002","(513)353-4400"]
["HENKELS & MCCOY INC",99,"02129","985 JOLLY ROAD",null,null,"BLUE BELL",null,"PA","19422","(215)283-7600"]
["HENNECKE DRILLING",99,"02652","568 DRILLER LN",null,null,"ARGILLITE",null,"KY","41121","(606)928-3939"]
["HENRY C RAY",99,"03121","149 REDBUD DRIVE",null,null,"HODGENVILLE",null,"KY","42748","(270)325-4196"]
["HENSEL PHELPS CONSTRUCTION CO",99,"01514","420 SIXTH AVENUE",null,null,"GREELEY",null,"CO","80631","(970)352-6565"]
["HERCULES PAINTING COMPANY INC",99,"00493","1102 SAMPSON STREET",null,null,"NEW CASTLE",null,"PA","16101","(724)654-9741"]
["HERRING CONSTRUCTION CO INC",99,"02607","1072 STATE ROUTE 373 N",null,null,"EDDYVILLE",null,"KY","42038","(270)388-2657"]
["HERZOG CONTRACTING CORPORATION & SUBSIDI",99,"00494","P O BOX 1089",null,null,"SAINT JOSEPH",null,"MO","64502","(816)233-9001"]
["HESSLING CONSTRUCTION INC",99,"03562","12247 COUNTY RD 637",null,null,"DEXTER",null,"MO","63841","(573)614-5850"]
["HG MAYS MAGO & LOU. PAVING TRI VENTURE",99,"03024","BOX 797",null,null,"FRANKFORT",null,"KY","40602"]
["HGC CONSTRUCTION CO",99,"03003","2814 STANTON AVE",null,null,"CINCINNATI",null,"OH","45206","(513)861-8866"]
["HI TECH ROCKFALL CONSTRUCTION INC",99,"02739","PO BOX 674",null,null,"FOREST GROVE",null,"OR","97116","(503)357-6508"]
["HICO INC",99,"02588","950 RADFORD ST",null,null,"CHRISTIANSBURG",null,"VA","24073","(540)382-6532"]
["HICON CONSTRUCTION LLC",99,"02623","3016 NEW HAVEN RD",null,null,"BARDSTOWN",null,"KY","40004","(502)331-8192"]
["HICON JV W/ SALSMAN BROS",99,"02967","358 HITE LANE",null,null,"BARDSTOWN",null,"KY","40004"]
["HICON JV WITH NALLY & HAYDON",99,"03000","358 HITE LN",null,null,"BARDSTOWN",null,"KY","40004"]
["HICON LLC",99,"02329","358 HITE LANE",null,null,"BARDSTOWN",null,"KY","40004","(502)331-9330"]
["HIDDEN HOLLOW CONSTRUCTION INC.",99,"01232","701 DOUBLE SPRINGS ROAD",null,null,"BARDSTOWN",null,"KY","40004","(502)348-1316"]
["HIGDON CONST CO INC W/O/S HIGDON HOLDING",99,"03209","PO BOX 962",null,null,"OWENSBORO",null,"KY","42302","(270)683-4327"]
["HIGH STEEL STRUCTURES INC",99,"00496","PO BOX 10008  1915 OLD PHILADELPHIA PIKE",null,null,"LANCASTER",null,"PA","17605-0008","(717)299-5211"]
["HIGH STEEL STRUCTURES LLC",99,"03605","P O BOX 10008  1915 OLD PHILADELPHA PIKE",null,null,"LANCASTER",null,"KY","17605","(717)299-5211"]
["HIGHLAND PAVING INC",99,"02921","1537 CALEB FORK",null,null,"WEEKSBURY",null,"KY","41667","(606)452-2078"]
["HIGHWAY  MARKINGS INC",99,"02434","PO BOX 70966",null,null,"KNOXVILLE",null,"TN","37938","(865)922-9229"]
["HIGHWAY CONTRACTING INC",99,"02228","P O BOX 808   30 N RING AVE.  SUITE 200",null,null,"TARPON SPRINGS",null,"FL","34689","(813)942-8802"]
["HIGHWAY DRAINAGE CONSULTANTS LLC",99,"02961","748 EMMETT CREEK LN",null,null,"LEXINGTON",null,"KY","40515","(859)272-2372"]
["HIGHWAY SAFETY INC",99,"02195","P O BOX 908",null,null,"CEREDO",null,"WV","25507","(304)453-5636"]
["HIGHWAY SAFETY SERVICES INC",99,"02307","480 ROBERTS AVE",null,null,"LOUISVILLE",null,"KY","40214","(502)366-5602"]
["HIGHWAY SERVICES INC",99,"01309","P O BOX 310",null,null,"ROGERS",null,"MN","55374","(612)428-2244"]
["HIGHWAY TECHNOLOGIES INC W/O/S OF HTS",99,"02846","880 N ADDISON ROAD",null,null,"VILLA PARK",null,"IL","60181","(630)368-0920"]
["HIGHWAYS INC",99,"00501","P O BOX 96",null,null,"BRENTWOOD",null,"TN","37024-0096","(615)373-5445"]
["HIL DON INC",99,"01171","3865 SMITH GROVE ROAD",null,null,"BURKESVILLE",null,"KY","42717","(270)406-8073"]
["HILL & HILL COMPANY",99,"01699","P O BOX 555",null,null,"CORBIN",null,"KY","40702","(606)528-0087"]
["HILL & HILL COMPANY LLC",99,"02620","PO BOX 555",null,null,"CORBIN",null,"KY","40702","(606)528-0087"]
["HILLTOP CONSTRUCTION COMPANY",99,"02234","P O BOX 229    2590SANDY RIVER ROAD",null,null,"KENOVA",null,"WV","25530","(304)453-5348"]
["HINKLE CONST SER LLC J/V HAYDON BRIDGE",99,"03690","P O BOX 607",null,null,"PARIS",null,"KY","40362","(859)987-4462"]
["HINKLE CONST SERVICES J/V MAGO CONST CO",99,"03661","P O BOX 607",null,null,"PARIS",null,"KY","40362","(859)987-4462"]
["HINKLE CONSTRUCTION SERVICES LLC",99,"03645","P O BOX 607",null,null,"PARIS",null,"KY","40362","(859)340-1623"]
["HINKLE CONTRACTING COMPANY LLC",99,"03229","P O BOX 200",null,null,"PARIS",null,"KY","40362","(859)987-3670"]
["HINKLE CONTRACTING CORPORATION",99,"00137","PO BOX 200",null,null,"PARIS",null,"KY","40362-0200","(859)987-3670"]
["HINKLE ENVIRONMENTAL SERVICES LLC",99,"03486","300 ANNA HUME BLVD",null,null,"RICHMOND",null,"KY","40475","(859)624-8010"]
["HI-TECH CONSTRUCTION COMPANY INC",99,"03513","P O BOX 8601",null,null,"SOUTH CHARLESTON",null,"WV","25303","(304)746-0050"]
["HI-VIEW INC",99,"01997","P O BOX 1764",null,null,"CORBIN",null,"KY","40702","(606)523-9670"]
["HI-VIEW LLC",99,"02616","PO BOX 1764",null,null,"CORBIN",null,"KY","40702","(606)523-9670"]
["HI-VIEW LLC J/V HAYDON BRIDGE CO INC",99,"03458","P O BOX 1764",null,null,"CORBIN",null,"KY","40702"]
["HI-WAY PAVING INC",99,"01472","P O BOX 550   4343 WEAVER CT N",null,null,"HILLIARD",null,"OH","43026","(614)876-1700"]
["HIXON AND COMPANY INC",99,"02169","P O BOX 429",null,null,"EAST BERNSTADT",null,"KY","40729","(606)843-7563"]
["HOBBS EXCAVATION INC",99,"02310","4152 NAT ROGERS ROAD",null,null,"BOSTON",null,"KY","40107","(502)348-1999"]
["HOEWORX LLC",99,"03698","P O BOX 455",null,null,"SHEPHERDSVILLE",null,"KY","40165","(502)492-1879"]
["HOLLAND INC",99,"00232","P O BOX 73",null,null,"ROCKFIELD",null,"KY","42274","(270)781-7044"]
["HOLLAND RAIL SERVICES L P",99,"03880","1000 HOLLAND DR",null,null,"CRETE",null,"IL","60417","(708)672-2300"]
["HOLLOWAY - ARNOLD CONSTRUCTION LLC",99,"02870","13501 AIKEN RD",null,null,"LOUISVILLE",null,"KY","40245","(502)245-3466"]
["HOLLOWAY FARMS TRUCKING INC",99,"01908","P O BOX 43277",null,null,"LOUISVILLE",null,"KY","40253","(502)267-8520"]
["HOLTON CONTRACTING INC",99,"01993","365 HAWKINS ROAD",null,null,"HODGENVILLE",null,"KY","42748","(270)324-3675"]
["HOMER TREE SERVICE INC",99,"03582","16464 W 143RD ST",null,null,"LOCKPORT",null,"IL","60441","(815)838-0320"]
["HOOVER INC",99,"00507","P O BOX 1700",null,null,"LA VERGNE",null,"TN","37086","(615)793-2600"]
["HOPKINS CONCRETE",99,"03439","1015 EPHESUS SCHOOL ROAD",null,null,"WAYNESBURG",null,"KY","40489","(859)661-5160"]
["HORN EXCAVATING & TRUCKING",99,"02726","PO BOX 494     6265 RICHMOND ROAD",null,null,"IRVINE",null,"KY","40336","(606)726-9163"]
["HORNBACK CONSTRUCTION COMPANY INC",99,"01563","130 LEE OAK DR",null,null,"HODGENVILLE",null,"KY","42748","(270)358-3289"]
["HORNE & TRAMEL CONSTRUCTION COMPANY",99,"02687","PO BOX 581",null,null,"WEST VAN LEAR",null,"KY","41268","(606)788-0450"]
["HOWARD BROTHERS EXCAVATING INC",99,"02495","ROUTE 5  BOX 1625",null,null,"SANDY HOOK",null,"KY","41171","(606)738-9442"]
["HOWARD ENGINEERING & CONSTRUCTION INC",99,"02080","1303 SOUTH MAIN STREET",null,null,"LONDON",null,"KY","40741","(606)864-8859"]
["HOWARD W PENCE INC",99,"01452","P O BOX 2005",null,null,"ELIZABETHTOWN",null,"KY","42702","(270)737-8723"]
["HOWELL & HOWELL PAINTING CONTRACTORS INC",99,"02654","PO BOX 36097",null,null,"LOUISVILLE",null,"KY","40233-6097","(502)491-7985"]
["HOWELL CONTRACTORS INC",99,"02533","980 HELEN RUTH DRIVE",null,null,"FT. WRIGHT",null,"KY","41017","(859)331-5457"]
["HP2X CONSTRUCTION INC",99,"03471","9171 HARRISON PIKE #1",null,null,"CLEVES",null,"OH","45002","(513)353-0800"]
["HRAY LLC",99,"03226","135 REDBUD DR",null,null,"HODGENVILLE",null,"KY","42748","(270)325-3521"]
["HSF INC",99,"03446","P O BOX 2051",null,null,"ELIZABETHTOWN",null,"KY","42702","(270)769-1005"]
["HTA ENTERPRISES INC",99,"02077","5923 PENDLETON RD",null,null,"LOUISVILLE",null,"KY","40272","(502)933-5900"]
["HUBBS CONTRACTORS INC",99,"02632","P.O. BOX 489",null,null,"CAMDEN",null,"TN","38320","(731)584-8736"]
["HUDSON CONSTRUCTION COMPANY",99,"03639","1615 SHOLAR AVE",null,null,"CHATTANOOGA",null,"TN","37406","(423)624-2631"]
["HUFF CONTRACTING INC",99,"01667","4335 BROOKFIELD FARM ROAD",null,null,"ASHLAND",null,"KY","41102","(606)928-5232"]
["HUFF SEALING CORPORATION",99,"01792","PO BOX 127    896 FUNKHOUSER ST",null,null,"ALBION",null,"IL","62806","(618)445-3148"]
["HUMMEL ELECTRIC INC",99,"01537","2505 MJM INDUSTRIAL DRIVE",null,null,"EVANSVILLE",null,"IN","47715","(812)474-1500"]
["HUNT CONSTRUCTION GROUP INC",99,"03289","2450 SOUTH TIBBS AVE",null,null,"INDIANAPOLIS",null,"IN","46241","(480)368-4723"]
["HUNTING SPECIALIZED PRODUCTS INC",99,"03116","1210 GLENDALE-MILFORD ROAD",null,null,"CINCINNATI",null,"OH","45215","(513)771-9319"]
["HURDS DOZER SERVICE INC",99,"02264","2900 CELINA ROAD",null,null,"TOMPKINSVILLE",null,"KY","42167","(270)487-0088"]
["HUTCHISON DIRECTIONAL DRILLING LLC",99,"03097","13825 OLD HICKORY BLVD",null,null,"ANTIOCH",null,"TN","37013","(615)289-6189"]
["HYDRO GROUP INC",99,"01512","1011 ROUTE 22 WEST",null,null,"BRIDGEWATER",null,"NJ","8807","(908)704-8880"]
["HYDRO-TECHNOLOGIES INC",99,"01589","6200 E HWY 62 BLDG 2501 STE 300",null,null,"JEFFERSONVILLE",null,"IN","47130","(812)284-9376"]
["HYPOWER INC",99,"02147","5913 NW  1ST AVENUE",null,null,"FORT LAUDERDALE",null,"FL","33309","(954)978-9300"]
["HYTECH CONCRETE PAVING INC",99,"02289","7 BENTLEY COURT",null,null,"FLORENCE",null,"KY","41042","(859)525-7076"]
["I K SEARS EXCAVATING",99,"02773","738 ARAPAHO TRAIL",null,null,"GRAY",null,"KY","40734","(606)523-9313"]
["I P I INC",99,"02438","186 CICERONE ROAD",null,null,"SISSONVILLE",null,"WV","25320","(304)988-3400"]
["I V S HYDRO INC WOS I V S GROUP INC",99,"02361","P O BOX 245",null,null,"WAVERLY",null,"WV","26184","(304)464-4340"]
["IDEAL CONSTRUCTION & SUPPLY LLC",99,"03418","1506 CRUMS LANE",null,null,"LOUISVILLE",null,"KY","40216","(502)365-5333"]
["IDEAL CONSTRUCTION LLC",99,"03245","5409 UTICA SELLERSBURG ROAD",null,null,"SELLERSBURG",null,"IN","47172","(812)406-5568"]
["IES KENTUCKY LLC",99,"03405","7001 STATE HWY 136 W",null,null,"CALHOUN",null,"KY","42327","(270)273-9955"]
["IFC LLC",99,"03868","616 NORTHVIEW ST",null,null,"PADUCAH",null,"KY","42001","(270)444-7918"]
["IKON CONSTRUCTION INC",99,"02606","PO BOX 2668",null,null,"BOWLING GREEN",null,"KY","42102","(270)846-7100"]
["ILLINI DRILLED FOUNDATIONS INC",99,"02702","PO BOX 1351",null,null,"DANVILLE",null,"IL","61834","(217)442-8765"]
["IMPACT DRILLING & BLASTING INC",99,"02720","PO BOX 397",null,null,"CHARLESTOWN",null,"IN","47111","(812)256-4282"]
["INDEPENDENCE EXCAVATING  INC",99,"03255","5720 SCHAAF RD",null,null,"INDEPENDENCE",null,"OH","44131","(216)524-1700"]
["INDEPENDENT EXCAVATING INC",99,"03282","7516 KY 11",null,null,"MAYSVILLE",null,"KY","41056","(606)742-0020"]
["INDIANA RELINE INC",99,"03012","P O BOX 5",null,null,"SULPHUR SPRINGS",null,"IN","47388","(765)533-5040"]
["INDIANA SIGN & BARRICADE INC",99,"03527","5240 E 25TH STREET",null,null,"INDIANAPOLIS",null,"IN","46218","(317)377-8000"]
["INDUSTRIAL CLEANING & ENVIR SVS INC",99,"02570","3513 LANDSDOWNE DR",null,null,"LEXINGTON",null,"KY","40517","(859)971-8555"]
["INDUSTRIAL ENTRPRS SANDBLAST &PAINT INC",99,"01105","P O BOX 1547",null,null,"TARPON SPRINGS",null,"FL","34688","(813)938-7300"]
["INDUSTRIAL FENCE & LANDSCAPING INC",99,"03176","12030 PLEASANT STREET",null,null,"DETROIT",null,"MI","48217","(313)297-2997"]
["INFINITY PIPELINE INC",99,"03833","P O BOX 928",null,null,"BOWLING GREEN",null,"KY","42102","(270)796-7209"]
["INFORMATION SECURITY AND TRAINING LLC",99,"03843","6275 UNIVERSITY DR STE 37-243",null,null,"HUNTSVILLE",null,"AL","35806","(256)682-3632"]
["INFRASOURCE CONSTRUCTION SERVICES LLC",99,"03099","1200 ROOSEVELT ROAD STE 400",null,null,"GLEN ELLYN",null,"IL","60137","(630)613-3518"]
["INFRASTRUCTURE CORPORATION OF AMERICA",99,"02428","750 OLD HICKORY BLVD 1-200",null,null,"BRENTWOOD",null,"TN","37027","(615)377-4730"]
["INFRASTRUCTURE SYSTEMS INC",99,"03548","P O BOX 148    260 W VINCENNES ST",null,null,"ORLEANS",null,"IN","47452","(812)865-3309"]
["INNOVATIVE DEMOLITION SERVICE LLC",99,"03826","835 PORTER PL",null,null,"LEXINGTON",null,"KY","40508","(859)800-8194"]
["INSHAALLAH GENERAL CONTRACTING LLC",99,"03818","628 CHESTNUT ST",null,null,"LEXINGTON",null,"KY","40508","(859)489-4707"]
["INSIDE OUT DESIGN LLC",99,"03875","100 OLD GEORGETOWN RD",null,null,"FRANKFORT",null,"KY","40601","(502)695-7020"]
["INSIGHT PIPE CONTRACTING LLC",99,"03876","232 E LANCASTER RD",null,null,"HARMONY",null,"PA","16037","(724)452-6060"]
["INSITUFORM EAST INC",99,"02385","3421 PENNSY DRIVE",null,null,"LANDOVER",null,"MD","20785","(301)386-4100"]
["INSITUFORM TECHNOLOGIES LLC",99,"03590","17988 EDISON AVE",null,null,"CHESTERFIELD",null,"MO","63005","(363)530-8000"]
["INSPEC COATINGS INC",99,"03411","P O BOX 397    464 SYLAMORE DR",null,null,"CAMPBELL",null,"OH","44405","(330)319-0813"]
["INTECH CONTRACTING INC",99,"01867","3131 CUSTER DRIVE SUITE8",null,null,"LEXINGTON",null,"KY","40517","(859)272-0352"]
["INTECH CONTRACTING LLC",99,"02768","3131 CUSTER DR  STE 8",null,null,"LEXINGTON",null,"KY","40517","(859)272-0352"]
["INTEGRATED SIGN & GRAPHIC INC",99,"03270","5801 KINGPOST COURT",null,null,"LEXINGTON",null,"KY","40509","(859)263-2800"]
["INTEGRITY LAWN CARE INC DBA INTEGRITY",99,"03358","1100 BURLEW BLVD",null,null,"OWENSBORO",null,"KY","42303","(270)684-4959"]
["INTERSTATE BUSINESS SOLUTIONS LLC",99,"03813","9190 CORPORATION DR",null,null,"INDIANAPOLIS",null,"IN","46256","(317)607-5717"]
["INTERSTATE CONCRETE CONSTRUCTION LLC",99,"02975","P O BOX 2698",null,null,"CLEVELAND",null,"TN","37320","(423)472-6538"]
["INTERSTATE CONCRETE CONSTRUCTORS LLC",99,"02731","PO BOX 2486  1611 ARNOLD AVE SW",null,null,"CLEVELAND",null,"TN","37320-2486","(423)472-6538"]
["INTERSTATE IMPROVEMENT INC",99,"02996","P O BOX 8",null,null,"FARIBAULT",null,"MN","55021","(507)333-2677"]
["INTERSTATE ROAD MANAGEMENT CORP",99,"02779","P O BOX 188   322 ROCKY ROAD",null,null,"HAZLETON",null,"PA","18201","(570)455-1200"]
["INTERSTATE ROAD MANAGEMENT LLC",99,"03607","P O BOX 188   322 ROCKY ROAD",null,null,"HAZLETON",null,"PA","18201","(570)455-1200"]
["INTERSTATE SEALANT & CONCRETE INC",99,"03084","S40 W24211 ROCKWOOD WAY",null,null,"WAUKESHA",null,"WI","53189","(262)547-6316"]
["INTERSTATE TRAFFIC CONTROL",99,"02301","#1 JENNIFER LANE",null,null,"HUNTINGTON",null,"WV","25704","(304)453-6687"]
["IPR SOUTHEAST LLC WOS IPR ACQUISITION CO",99,"03883","1510 KLONDIKE RD   STE 400",null,null,"CONYERS",null,"GA","30094","(678)221-7837"]
["IRONHORSE INC",99,"03579","P O BOX 152  901 W MYRTLE STREET",null,null,"BALDWIN",null,"IL","62217","(618)785-2221"]
["IRVIN H WHITEHOUSE & SONS CO SUBSIDIARY",99,"00784","P O BOX 32670",null,null,"LOUISVILLE",null,"KY","40232-2670","(502)966-4176"]
["IRVINE CONTRACTING LLC",99,"03523","3637 E LAUREL RD",null,null,"LONDON",null,"KY","40741","(606)864-3542"]
["J & A MOWING",99,"02826","7120 OLD MADISONVILLE ROAD",null,null,"HOPKINSVILLE",null,"KY","42240","(270)885-5785"]
["J & B REBAR INC",99,"02650","9430 SUTTON PLACE",null,null,"HAMILTON",null,"OH","45011","(513)874-1722"]
["J & B STEEL ERECTORS INC",99,"02725","9430 SUTTON PL",null,null,"WEST CHESTER",null,"OH","45011","(513)874-1722"]
["J & D WOOSLEY LLC",99,"02421","1644 KY 136 W",null,null,"CALHOUN",null,"KY","42327","(270)273-3724"]
["J & H ENTERPRISES LLC",99,"02059","P O BOX 100",null,null,"BETSY LAYNE",null,"KY","41605","(606)478-9080"]
["J & J ENVIRONMENTAL INC",99,"02712","7611 EASY STREET",null,null,"MASON",null,"OH","45040","(513)398-4521"]
["J & J PROPERTIES OF OWENSBORO INC",99,"02379","2631 RIVER RD",null,null,"HAWESVILLE",null,"KY","42348","(270)927-6731"]
["J & M CONT/V FEENEY INC JT VEN",99,"02889","4136 SOUTH MARITTA ROAD",null,null,"SHELBYVILLE",null,"IN","46176","(317)729-5544"]
["J & M CONTRACTING INC",99,"02758","4136 SOUTH MARIETTA RD",null,null,"SHELBYVILLE",null,"IN","46176","(317)729-5544"]
["J & M EQUIPMENT AND CONSTRUCTION CO",99,"01805","P O BOX 3037",null,null,"PIKEVILLE",null,"KY","41502","(606)437-4808"]
["J & W CONTRACTING LLC",99,"03022","131 SUMMIT DRIVE  SUITE 302",null,null,"PIKEVILLE",null,"KY","41501","(606)433-1307"]
["J A JONES CONSTRUCTION COMPANY",99,"00532","J A JONES DRIVE",null,null,"CHARLOTTE",null,"NC","28287","(704)553-3000"]
["J A MANNING CONSTRUCTION CO INC",99,"03271","P O BOX 1201",null,null,"ASHVILLE",null,"AL","35953","(205)594-3505"]
["J B ARNOLD COMPANY",99,"02093","PO BOX 999",null,null,"LA FOLLETTE",null,"TN","37766","(423)562-7039"]
["J B I CONSTRUCTION INC & SUBSIDIARY",99,"02627","10335 HEDDEN RD",null,null,"EVANSVILLE",null,"IN","47725","(812)867-5959"]
["J BRANHAM ERECTING & STEEL SERVICE",99,"01230","PO BOX 399",null,null,"PROSPECT",null,"KY","40059","(502)636-1008"]
["J D TRUCKING",99,"02054","451 HIGH POINT ROAD",null,null,"CLARKSVILLE",null,"TN","37042","(931)906-4787"]
["J F SHEA CONSTRUCTION INC",99,"03044","667 BREA CANYON ROAD SUITE 30",null,null,"WALNUT",null,"CA","91789","(909)595-4397"]
["J FLETCHER CREAMER & SON INC",99,"03283","101 EAST BROADWAY",null,null,"HACKENSACK",null,"NJ","07601","(201)488-9800"]
["J H RUDOLPH & CO INC",99,"00697","4590 E CR 2150 N",null,null,"DALE",null,"IN","47523","(812)937-9710"]
["J L DAVIS ELECTRICAL CONTRACTOR INC",99,"03735","P O BOX 1028     235 KNOX STREET",null,null,"BARBOURVILLE",null,"KY","40906","(606)546-8491"]
["J L MANTA INC",99,"00583","P O BOX 1089",null,null,"HAMMOND",null,"IN","46325","(219)933-1100"]
["J L POOLECONSTRUCTION INC",99,"02303","P O BOX 1216",null,null,"HENDERSON",null,"KY","42420","(502)826-3796"]
["J M G INTERNATIONAL",99,"02453","1 N PINELLAS",null,null,"TARPON SPRINGS",null,"FL","34689","(727)934-2817"]
["J P S CONSTRUCTION INC",99,"01695","2021 ALEXANDRIA PIKE",null,null,"HIGHLAND HEIGHTS",null,"KY","41076","(859)441-6872"]
["J RANCK ELECTRIC INC",99,"03298","1993 GOVER PKWY",null,null,"MOUNT PLEASANT",null,"MI","48858","(989)775-7393"]
["J ROLLINS LLC",99,"02879","P O BOX 279",null,null,"BARLOW",null,"KY","042024","(270)334-3725"]
["J S ROLLINS CONSTRUCTION INC.",99,"02802","P.O. BOX 279",null,null,"BARLOW",null,"KY","042024","(270)334-3725"]
["J S ROLLINS INC",99,"02416","P O BOX 40",null,null,"BARLOW",null,"KY","42024","(270)334-3725"]
["J STEPHENS CONSTRUCTION INC",99,"03148","P O BOX 670",null,null,"TOMPKINSVILLE",null,"KY","42167","(270)487-8202"]
["J T LOHRER CONSTRUCTION COMPANY",99,"03085","4200 ROUDEBUSH LN",null,null,"BATAVIA",null,"OH","45103","(513)732-9192"]
["J TOWN CONTRACTORS INC",99,"03192","13040 MIDDLETOWN INDUSTRIAL BLVD",null,null,"LOUISVILLE",null,"KY","40223","(502)244-0291"]
["JACKIE COX D/B/A PERFECTION LAWN CARE",99,"03009","204 POTOMAC DRIVE",null,null,"GEORGETOWN",null,"KY","40324","(502)868-6179"]
["JACKSON CONSTRUCTION AND GENERAL CONTRAC",99,"03844","500 NINEVAH RD",null,null,"FRANKFORT",null,"KY","40601","(502)330-3030"]
["JAD CONTRACTORS INC",99,"02741","743 WESLEY AVENUE",null,null,"TARPON SPRINGS",null,"FL","34689","(727)944-4712"]
["JAG INC",99,"02960","657 BAYSWATER WAY",null,null,"LEXINGTON",null,"KY","40503","(859)523-7507"]
["JAMES CAPE AND SONS COMPANY",99,"02599","PO BOX 044580  6422 N HWY 31",null,null,"RACINE",null,"WI","53404-7012","(262)639-2552"]
["JAMES E BLANKENSHIP",99,"02344","P O BOX 268",null,null,"GRAY",null,"KY","40734","(606)523-5020"]
["JAMES E WHITE",99,"02880","1040 HEINSVILLE RD",null,null,"SHELBYVILLE",null,"KY","040065","(502)747-5925"]
["JAMES H DREW CORPORATION & SUBSIDIARIES",99,"00168","8701 ZIONSVILLE RD",null,null,"INDIANAPOLIS",null,"IN","46268","(317)876-3739"]
["JAMES JONES EXCAVATING INC",99,"03682","P O BOX 309",null,null,"LONDON",null,"KY","40743","(606)864-6519"]
["JAMES MILES CONSTRUCTION INC",99,"03580","825 ESCONDIDA ROAD",null,null,"PARIS",null,"KY","40361","(859)749-7950"]
["JAMES SANDERS NURSERY INC",99,"01312","4123 SCHEIDMAN RD",null,null,"PADUCAH",null,"KY","42003","(270)443-8851"]
["JAMES W COMBS & HELEN COMBS LLC DBA COMB",99,"03172","P O BOX 60",null,null,"LOST CREEK",null,"KY","41348","(606)666-5240"]
["JAMIESON CONSTRUCTION COMPANY",99,"01740","30 JAMIESON LN",null,null,"LONDON",null,"KY","40744","(606)878-7966"]
["JANOD INC",99,"03068","34 BEEMAN WAY",null,null,"CHAMPLAIN",null,"NY","12919","(518)298-5226"]
["JARCO INC",99,"02295","1530 DISTRIBUTION DR",null,null,"BURLINGTON",null,"KY","41005","(859)586-4112"]
["JASPER IRON & METAL COMPANY INC",99,"00139","P O BOX  607",null,null,"LONDON",null,"KY","40743","(606)878-6211"]
["JAVE LLC",99,"03201","2148 ISLAND DR",null,null,"LEXINGTON",null,"KY","40502","(859)402-1241"]
["JAVELINA CONSTRUCTION INC",99,"01433","13476 BRITTON PARK DRIVE",null,null,"FISHERS",null,"IN","46038","(317)841-8364"]
["JAVIER STEEL CORPORATION",99,"01252","P O BOX 7448",null,null,"LOUISVILLE",null,"KY","40257","(502)426-2008"]
["JAY CASHMAN INC",99,"03557","549 SOUTH STREET",null,null,"QUINCY",null,"MA","02169","(617)890-0600"]
["JAY DEE CONTRACTORS INC",99,"03412","38881 SCHOOLCRAFT ROAD",null,null,"LIVONIA",null,"MI","48150","(734)591-3400"]
["JAYS ELECTRIC INC",99,"02907","156 ROSS LN",null,null,"BENTON",null,"KY","42025","(270)527-2201"]
["JEAN HENRY WBE LLC DBA LAWRENCE & ASSOC",99,"03202","1437 HUGH AVE",null,null,"LOUISVILLE",null,"KY","40213","(502)899-9588"]
["JEFF LACY",99,"02047","14250 GREENVILLE ROAD",null,null,"HOPKINSVILLE",null,"KY","42240","(270)269-2214"]
["JEFF ROBARDS CONSTRUCTION INC",99,"03551","4435 N PRESTON HWY",null,null,"SHEPHERDSVILLE",null,"KY","40165","(502)957-5909"]
["JEFFERSON CONTRACTING LLC",99,"03807","P O BOX 225",null,null,"AUGUSTA",null,"KY","41002","(859)322-0135"]
["JENNINGS & LITTLE EXCAVATING",99,"02793","390 HICKORY HILLS DRIVE",null,null,"LIVERMORE",null,"KY","42352","(270)278-9086"]
["JENSEN CONSTRUCTION COMPANY & SUBSIDIARY",99,"03778","5550 NE 22ND ST",null,null,"DES MOINES",null,"IA","50313","(515)266-5173"]
["JENSEN DRILLING COMPANY",99,"00530","1775 HENDERSON AVE",null,null,"EUGENE",null,"OR","97403","(541)726-7435"]
["JERRY MALONEY EXCAVATING",99,"03125","1330 HWY 213",null,null,"JEFFERSONVILLE",null,"KY","40337","(859)498-3369"]
["JERRY ROGERS DBA MASTER SEAL",99,"02441","1768 STEWARTS LANE",null,null,"JUNCTION CITY",null,"KY","40440","(859)236-6023"]
["JHM ENTERPRISES",99,"02949","440 CLAYPOOL BOYCE RD",null,null,"ALVATON",null,"KY","42122","(270)846-2787"]
["JIGSAW ENTERPRISES LLC",99,"03376","190 LEFT FORK OF ISLAND CREEK",null,null,"PIKEVILLE",null,"KY","41501","(606)437-9090"]
["JIM EVANS BLACKTOP LLC",99,"02795","960 VALLANDINGHAM RD",null,null,"DRY RIDGE",null,"KY","41035","(859)428-2740"]
["JIM JOHNSON",99,"09999","99 address line 1",null,null,"99 FRANKFORT",null,"KY","40601","(502)564-3500"]
["JIM SKAGGS INC",99,"01276","2325 AIRWAY COURT",null,null,"BOWLING GREEN",null,"KY","42103","(270)781-4078"]
["JIM SMITH CONTRACTING CO INC AND AFFL",99,"00278","1108 DOVER RD",null,null,"GRAND RIVERS",null,"KY","42045","(270)362-4675"]
["JIM SMITH CONTRACTING COMPANY LLC",99,"02618","1108 DOVER RD",null,null,"GRAND RIVERS",null,"KY","42045","(270)362-8661"]
["JIMMY A DUNN EXCAVATING COMPANY",99,"03361","P O BOX 13335",null,null,"CHARLESTON",null,"WV","25360","(304)984-3246"]
["JJ CUNNINGHAM LLC",99,"03587","200 WOODBINE RD",null,null,"SHAVERTOWN",null,"PA","18708","(570)702-2600"]
["J-MAR INC",99,"02009","1428 HOPKINSVILLE STREET",null,null,"PRINCETON",null,"KY","42445","(270)365-5536"]
["JOASH INCORPORATED",99,"03526","P O BOX 11381",null,null,"LOUISVILLE",null,"KY","40251","(502)664-9737"]
["JOHN A BABB LAND IMPROVEMENT",99,"02837","55 WITCHCRAFT ROAD",null,null,"MADISONVILLE",null,"KY","42431","(270)824-0193"]
["JOHN A BABB LAND IMPROVEMENT INC D/B/A",99,"02893","55 WITCHCRAFT RD",null,null,"MADISONVILLE",null,"KY","42431","(270)824-0193"]
["JOHN B CONOMOS INC",99,"02670","PO BOX 279 COULTER AND STATION STREETS",null,null,"BRIDGEVILLE",null,"PA","15017-0279","(412)221-1800"]
["JOHN BAYS INC",99,"03262","264 SANDY COVE",null,null,"GREENUP",null,"KY","41144","(606)473-7094"]
["JOHN C HOEVEL D/B/A PIECES BREAKING",99,"02398","12486 DEVINE DR",null,null,"SAINT LOUIS",null,"MO","063146","(314)308-9174"]
["JOHN CARLO INC",99,"01021","45000 RIVER RIDGE DRIVE  SUITE 200",null,null,"CLINTON TWP",null,"MI","48038","(800)465-6234"]
["JOHN E GIBSON",99,"02429","999 HWY 437",null,null,"WEST LIBERTY",null,"KY","41472","(606)522-4445"]
["JOHN P TUMLIN & SONS LTD",99,"03100","10848 SAND RUN ROAD",null,null,"HARRISON",null,"OH","45030","(513)353-2107"]
["JOHN R JURGENSEN CO AND SUBSIDIARY",99,"01274","11641 MOSTELLER RD",null,null,"CINCINNATI",null,"OH","45241","(513)771-0820"]
["JOHN T KING",99,"02869","226 EDELEN LN",null,null,"SPRINGFIELD",null,"KY","40069","(859)336-7423"]
["JOHNSON BROS CORP SOUTHLAND CO",99,"03570","608 HENRIETTA CREEK RD",null,null,"ROANOKE",null,"TX","76262","(817)293-4263"]
["JOJAN BUILDERS",99,"02798","634 PARADISE LANE",null,null,"WEST LIBERTY",null,"KY","41472","(606)743-1582"]
["JON WALLACE CONSTRUCTION CO INC",99,"01485","417 RILEY ROAD",null,null,"BENTON",null,"KY","42025","(502)527-9962"]
["JONES & BOURLAND INC",99,"01590","P O BOX 953",null,null,"PRESTONSBURG",null,"KY","41653","(606)874-9315"]
["JONES & SCOTT FENCE INCORPORATED",99,"02972","10620 KEYS FERRY ROAD",null,null,"FAIRDALE",null,"KY","40118","(502)690-8029"]
["JONES & WALTON EXCAVATING LLC",99,"02298","721 HILLCREST ROAD",null,null,"MAYSVILLE",null,"KY","41056","(606)564-3008"]
["JONES BROS CONTRACTORS LLC",99,"03881","P O BOX 1001",null,null,"MT JULIET",null,"TN","37121","(615)864-7388"]
["JONES BROS INC",99,"00528","P O BOX 727",null,null,"MOUNT JULIET",null,"TN","37121","(615)754-4710"]
["JONES SEEDING & STABLE SUPPLY CO INC",99,"02465","1365 ROSSELOTT ROAD",null,null,"SARDINIA",null,"OH","45171","(937)446-4699"]
["JOSEPH R HUGHES & SON EXCAVATING INC",99,"02442","220 HWY 208",null,null,"LEBANON",null,"KY","40033","(270)692-2171"]
["JOSTIN CONSTRUCTION INC",99,"03504","2335 FLORENCE AVENUE",null,null,"CINCINNATI",null,"OH","45206","(513)559-9390"]
["JP EXCAVATING INC",99,"03124","P O BOX 97",null,null,"GLENCOE",null,"KY","41046","(859)643-5757"]
["JUDY C HARP CO J/V NORTH STAR PAINTING",99,"03897","385 BROWN  LN",null,null,"FRANKFORT",null,"KY","40601"]
["JUDY C HARP COMPANY INC",99,"01284","385 BROWNS LN",null,null,"FRANKFORT",null,"KY","40601","(502)803-5737"]
["JUDY C HARP INC J/V DELONG CONCRETE LLC",99,"03882","385 BROWNS LN",null,null,"FRANKFORT",null,"KY","40601","(502)803-5741"]
["JUDY CONSTRUCTION COMPANY",99,"00111","P O BOX 457",null,null,"CYNTHIANA",null,"KY","41031","(859)234-6900"]
["JULIUS JONES CONTRACTING LLC",99,"03177","112 ALLEY FORK",null,null,"EAST POINT",null,"KY","41216","(606)791-1194"]
["JURGENSEN & EATON & HAYDON BRIDGE T/V",99,"03830","11614 MOSTELLER RD",null,null,"CINCINNATI",null,"OH","45241","(513)771-0820"]
["JUSTIN P ABNER D/B/A HANNAH CONTRACTING",99,"02419","708 CARD DRIVE",null,null,"LUFKIN",null,"TX","75901","(404)632-1037"]
["K & I CONSTRUCTION LLC",99,"02152","P.O. BOX 2428",null,null,"CLARKSVILLE",null,"IN","47131-2428","(812)282-1349"]
["K & M BLASTING INC",99,"03246","P O BOX 904",null,null,"SHEPHERDSVILLE",null,"KY","40165","(502)955-1410"]
["K & N PAINTING CO INC",99,"01916","P O BOX 20189",null,null,"KNOXVILLE",null,"TN","37920","(865)579-0101"]
["K & S CONSTRUCTION INC OF KY",99,"02354","2670 NEW PAINTSVILLE ROAD",null,null,"SALYERSVILLE",null,"KY","41465","(606)349-1913"]
["K & S MARKERS INC",99,"03796","2189 NORTH 600 WEST",null,null,"THORNTOWN",null,"IN","46071","(765)482-6184"]
["K CARRENDER CONSTRUCTION CO INC",99,"02860","200 RINGGOLD ROAD",null,null,"SOMERSET",null,"KY","42503","(606)679-2328"]
["K COMPANY INC",99,"02451","1850 NEW COLUMBIA ROAD",null,null,"CAMPBELLSVILLE",null,"KY","42718","(270)789-4888"]
["K HAYES LIMITED",99,"02872","431 SOUTH BROADWAY STE 332",null,null,"LEXINGTON",null,"KY","40508","(859)333-8887"]
["K V K CONTRACTING INC",99,"02122","727 WESLEY AVE",null,null,"TARPON SPRINGS",null,"FL","34689","(727)934-9984"]
["K V W V TRAFFIC CONTROL INC",99,"02600","P O BOX 355",null,null,"ALLEN",null,"KY","41601","(606)874-4050"]
["K WEST GROUP LLC",99,"03814","8305 FREMONT PK",null,null,"PERRYSBURG",null,"OH","43551","(419)874-4284"]
["KALKREUTH ROOFING AND SHEET METAL INC",99,"03884","53 14TH ST   STE 100",null,null,"WHEELING",null,"WV","26003","(304)232-8540"]
["KANAWHA STONE COMPANY INC",99,"02462","PO BOX 503",null,null,"NITRO",null,"WV","25143","(304)755-8271"]
["KARSNER CONSTRUCTION COMPANY INC",99,"00240","1932 STONEY CREEK RD",null,null,"FRANKFORT",null,"KY","40601","(502)227-2813"]
["KAUFMAN CONCRETE CUTTING CO INC",99,"01721","1113 WEST MAIN STREET",null,null,"LOUISVILLE",null,"KY","40203","(502)589-9035"]
["KAY & KAY CONTRACTING INC",99,"00109","1355 KEAVY ROAD",null,null,"LONDON",null,"KY","40744","(606)864-7384"]
["KAY & KAY CONTRACTING LLC",99,"02628","P O BOX 2478",null,null,"LONDON",null,"KY","40743","(606)864-7384"]
["KAY & KAY J/V HAYDON BRIDGE",99,"03266","1355 KEAVY ROAD",null,null,"LONDON",null,"KY","40744"]
["KAYKAR INC",99,"02252","3166 LAMAR DR",null,null,"LEXINGTON",null,"KY","40502-2906","(859)268-1770"]
["KAZANAS INDUSTRIAL MAINTENANCE INC",99,"01520","1025 S FLORIDA AVENUE",null,null,"TARPON SPRINGS",null,"FL","34689","(727)934-0860"]
["KEAWYA CONCRETE INC",99,"03599","250 CHARLES A LIDDLE DRIVE #10",null,null,"LAWRENCEBURG",null,"IN","47025","(812)537-5001"]
["KELCHNER INC",99,"03276","50 ADVANCED DRIVE",null,null,"SPRINGBORO",null,"OH","45066","(937)704-9890"]
["KELCRIS CORPORATION",99,"03067","P O BOX 362",null,null,"WILLIAMSTON",null,"MI","48895","(517)655-4602"]
["KELLER NORTH AMERICA INC",99,"01261","7550 TEAGUE RD STE 300",null,null,"HANOVER",null,"MD","21076","(410)551-1938"]
["KELSEY CONSTRUCTION LLC",99,"02942","P O BOX 904",null,null,"SHEPHERDSVILLE",null,"KY","40165","(502)955-1410"]
["KELVIN WILSON DOZING",99,"03330","6585 LEGRANDE HWY",null,null,"HARDYVILLE",null,"KY","42746","(270)579-2100"]
["KENNETH R HARTMAN INC",99,"01117","P O BOX 902",null,null,"KANKAKEE",null,"IL","60901-0902","(815)933-9364"]
["KENNETH W STEWART CONSTRUCTION",99,"02913","160 BILL LAYTON LN",null,null,"LANCASTER",null,"KY","40444","(859)548-2280"]
["KENNEY INC",99,"01390","P O BOX 1305",null,null,"MOUNT STERLING",null,"KY","40353","(859)498-3686"]
["KENNY CONSTRUCTION COMPANY",99,"00535","585 W BEACH ST",null,null,"WATSONVILLE",null,"CA","95076","(831)724-1011"]
["KENTUCKIANA C0MM CONC LLC DBA KENTUCKIAN",99,"03256","2785 SOUTH FLOYD ST",null,null,"LOUISVILLE",null,"KY","40209","(502)637-3334"]
["KENTUCKIANA OFF-DUTY POLICE &",99,"03219","P O BOX 75",null,null,"BARDSTOWN",null,"KY","40004","(877)880-5677"]
["KENTUCKIANA TRAFFIC & PATROL SERVICES",99,"03512","P O BOX 1826",null,null,"SHEPHERDSVILLE",null,"KY","40165","(502)694-2911"]
["KENTUCKY LOGOS LLC",99,"03740","2129 COMMERCIAL DR STE C",null,null,"FRANKFORT",null,"KY","40601","(502)227-0802"]
["KENTUCKY PRECAST & CONST MATERIALS INC",99,"01771","310 STEEL DRIVE",null,null,"ELIZABETHTOWN",null,"KY","42701","(502)765-7262"]
["KENTUCKY TREE CARE INC",99,"03632","3470 PINEY GROVE ROAD",null,null,"SOMERSET",null,"KY","42501","(606)383-3196"]
["KENTUCKY UNDERGROUND CONSTRUCTION CO IN",99,"01367","2750 N  STATE HIGHWAY 1",null,null,"GRAYSON",null,"KY","41143","(606)474-9314"]
["KENWAY CONTRACTING INC",99,"02655","4520 LOUISVILLE ROAD",null,null,"BOWLING GREEN",null,"KY","42101","(270)781-1932"]
["KENWAY PAVING LLC",99,"02853","1812 LOUISVILLE ROAD",null,null,"BOWLING GREEN",null,"KY","42101","(270)781-5023"]
["KERR BROS & ASSOCIATES INC",99,"01752","P O BOX 110071",null,null,"NASHVILLE",null,"TN","37222","(615)255-8614"]
["KERRVILLE PAINTING COMPANY INC",99,"02174","203 G  STREET  SOUTH",null,null,"KERRVILLE",null,"TX","78028-6105","(830)896-6357"]
["KEVCO CONSTRUCTION LLC",99,"03292","6204 GHEENS MILL ROAD",null,null,"JEFFERSONVILLE",null,"IN","47130","(812)284-1641"]
["KEVIN MATTINGLY & TODD MATTINGLY",99,"02274","750  ST ROSE LEBANON RD",null,null,"SPRINGFIELD",null,"KY","40069","(606)336-3632"]
["KIEWIT INFRASTRUCTURE CO",99,"01989","160 INVERNESS DR W #110",null,null,"ENGLEWOOD",null,"CO","80112","(303)979-9330"]
["KIEWIT INFRASTRUCTURE SOUTH CO",99,"03073","160 INVERNESS DR W #110",null,null,"ENGLEWOOD",null,"CO","80112","(303)979-9330"]
["KIMBERLY RASH FENCE & CONSTRUCTION LLC",99,"03304","1605 E MT ZION ROAD",null,null,"CRESTWOOD",null,"KY","40014","(502)744-3136"]
["KIMBRA CONTRACTING INC.",99,"02811","P O BOX 70046",null,null,"BOWLING GREEN",null,"KY","42102","(270)843-9295"]
["KING CONSTRUCTION COMPANY INC OF TN",99,"03687","25 BR HUMBOLDT HWY",null,null,"TRENTON",null,"TN","38382","(731)234-9740"]
["KING PIPELINE & UTILITY COMPANY INC",99,"03079","520 LESTER AVE",null,null,"NASHVILLE",null,"TN","37210","(615)256-6363"]
["KING WRECKING COMPANY INC",99,"02744","5038 BEECH STREET",null,null,"CINCINNATI",null,"OH","45212","(513)241-1116"]
["KING-CRETE DRILLING INC",99,"03234","P O BOX 40",null,null,"ZOE",null,"KY","41397","(606)464-9797"]
["KINGCRETE READY MIX INC",99,"03129","P O BOX 40",null,null,"ZOE",null,"KY","41397","(606)464-9797"]
["KIRBY WELDING CO INC",99,"02867","1236 MARTIN ST",null,null,"NASHVILLE",null,"TN","037203","(615)242-2701"]
["KLAUSING GROUP INC",99,"03323","1356 CAHILL DRIVE",null,null,"LEXINGTON",null,"KY","40504","(859)254-0762"]
["KLB PROPERTY MAINTENANCE INC",99,"03080","2228 WEST OAK STREET",null,null,"LOUISVILLE",null,"KY","40210","(502)776-5606"]
["KLENCK CO W/O/S JOE W MORGAN INC & SUBS",99,"03487","P O BOX 364",null,null,"EVANSVILLE",null,"IN","47703","(812)423-6219"]
["KLICOS PAINTING COMPANY INC",99,"02285","14910 EDWARD R NOLL DR",null,null,"SPRING HILL",null,"FL","34609","(727)493-0555"]
["KMAC CONTRACTING LLC",99,"02659","1700 HUBERT REID RD",null,null,"MADISONVILLE",null,"KY","42431","(270)836-0679"]
["KMX PAINTING INC",99,"03462","4328 MCCARTNEY RD",null,null,"LOWELLVILLE",null,"OH","44436","(330)536-6760"]
["KNABLE CONCRETE INC",99,"02572","3005 FOX HILL DRIVE",null,null,"FLOYDS KNOBS",null,"IN","47119","(812)948-5874"]
["KNEISEL CONTRACTING CORPORATION",99,"02365","3461 MUSTAFA DR",null,null,"CINCINNATI",null,"OH","45241","(513)554-1300"]
["KNIGHT CONSTRUCTION & EXCAVATING INC",99,"02427","P O BOX 146     80 JEWELL CITY RD",null,null,"SLAUGHTERS",null,"KY","42456","(270)884-7400"]
["KNM ENTERPRISES INC",99,"03612","1970 SCRANTON ROAD",null,null,"CLEVELAND",null,"OH","44113","(216)583-0383"]
["KNOX TREE SERVICE INC",99,"02277","2491 ROANOKE ROAD",null,null,"HODGENVILLE",null,"KY","42748","(502)358-3046"]
["KNUCKLES ENTERPRISES INC",99,"02345","P O BOX 660",null,null,"HARROGATE",null,"TN","37752","(423)523-2971"]
["KOESTER EQUIPMENT INC AND SUBSIDIARIES",99,"00538","14649 HIGHWAY 41 NORTH",null,null,"EVANSVILLE",null,"IN","47725","(812)867-6635"]
["KOETTER PAVE INC.",99,"02799","LAWRENCE BANET ROAD",null,null,"FLOYDS KNOBS",null,"IN","47119","(812)923-5665"]
["KOFI CONSULTING SERVICES INC DBA MARTIN",99,"03440","1207 DURRETT LANE",null,null,"LOUISVILLE",null,"KY","40213","(502)375-3701"]
["KOKER DRILLING COMPANY",99,"02814","P.O. BOX 250",null,null,"VANDALIA",null,"OH","45377","(937)667-1425"]
["KOKOSING CONSTRUCTION COMPANY INC & SUBS",99,"00542","6235 WESTERVILLE RD",null,null,"WESTERVILLE",null,"OH","43081","(614)228-1029"]
["KOLB GRADING LLC",99,"03222","5731 WESTWOOD",null,null,"SAINT CHARLES",null,"MO","63304","(636)441-0200"]
["KORFHAGE LANDSCAPE & DESIGN",99,"01868","9611 TAYLORSVILLE ROAD",null,null,"LOUISVILLE",null,"KY","40299","(502)267-0001"]
["KRAEMER NORTH AMERICA LLC",99,"03822","P O BOX 220",null,null,"PLAIN",null,"WI","53577","(608)546-2311"]
["KRETAN PAINTING INC",99,"01653","3304 KOENIG AVENUE",null,null,"CINCINNATI",null,"OH","45211","(513)481-3744"]
["KRIEB CONCRETE CONSTRUCTION CO",99,"02753","77 WELCH DRIVE",null,null,"MURRAY",null,"KY","42071","(270)753-0005"]
["KS ENERGY SERVICES LLC",99,"03413","19705 W LINCOLN AVE",null,null,"NEW BERLIN",null,"WI","53146","(262)574-5100"]
["K-T HARVESTORE SYSTEMS INC",99,"01892","1896 HOPKINSVILLE ROAD",null,null,"RUSSELLVILLE",null,"KY","42276","(270)726-3641"]
["KYLER BRIDGE COMPANY INC",99,"00174","P O BOX 890",null,null,"CADIZ",null,"KY","42211","(270)522-6716"]
["KYOVA ELECTRICAL SERVICES INC",99,"02693","PO BOX 1264",null,null,"ASHLAND",null,"KY","41105","(606)325-7220"]
["KYTEFCO INC",99,"02805","P.O. BOX 394",null,null,"ELBERFELD",null,"IN","47613","(812)983-2554"]
["L & B CONSTRUCTION INC",99,"00546","1619 DISTRIBUTION DRIVE",null,null,"BURLINGTON",null,"KY","41005","(859)371-1170"]
["L & C MANAGEMENT INC",99,"02897","628 SMUGGLERS NOTCH DR",null,null,"LEXINGTON",null,"KY","40509","(859)264-0517"]
["L & L EXCAVATION AND SITE PREP INC",99,"03724","436 BRAD DRIVE",null,null,"SALYERSVILLE",null,"KY","41465","(606)349-1933"]
["L & M MOWING INC",99,"01898","P O BOX 56",null,null,"WELLINGTON",null,"KY","40387","(606)768-3741"]
["L L BROWN CONSTRUCTION CO INC",99,"01911","1549 N STATE ROAD 203",null,null,"SCOTTSBURG",null,"IN","47170","(502)773-3086"]
["L L BROWN LLC",99,"03528","P O BOX 680    1549 NORTH STATE ROAD 203",null,null,"SCOTTSBURG",null,"IN","47170","(812)752-8787"]
["L M LIGNOS ENTERPRISE",99,"02813","4830 BRIAR ROAD",null,null,"CLEVELAND",null,"OH","44135","(216)265-9644"]
["L M S CONTRACTING INC",99,"02081","2925 CLIFTY DRIVE",null,null,"MADISON",null,"IN","47250","(812)273-5740"]
["L P CAVETT COMPANY",99,"00211","600 SHEPHERD AVENUE",null,null,"LOCKLAND",null,"OH","45215","(513)554-0400"]
["L R CHAPMAN INC",99,"00365","P O BOX 479",null,null,"LEWISPORT",null,"KY","42351","(502)295-3371"]
["L R P TRUCKING CO INC",99,"02622","PO BOX 25 GUTHRIE STREET",null,null,"HORSE CAVE",null,"KY","42749","(270)786-2797"]
["LACY MOWING SERVICES LLC",99,"02878","5110 GREENVILLE RD",null,null,"HOPKINSVILLE",null,"KY","42240","(270)498-6723"]
["LAGCO INC",99,"03578","P O BOX 12510",null,null,"LEXINGTON",null,"KY","40583","(859)293-7473"]
["LAKE ERIE CONSTRUCTION CO",99,"00545","P O BOX 777",null,null,"NORWALK",null,"OH","44857","(419)668-3302"]
["LAKEVIEW CONSTRUCTION CO INC",99,"02000","6525 CLAYS MILL ROAD",null,null,"LEXINGTON",null,"KY","40514","(859)223-4530"]
["LANDMARK CONSTRUCTION LLC",99,"03803","107 FELTNER FARM LN",null,null,"HAZARD",null,"KY","41701","(606)233-4022"]
["LANDMARK CONSTRUCTION SERVICES LLC",99,"03075","9423 CROPPER ROAD",null,null,"PLEASUREVILLE",null,"KY","40057","(502)487-0537"]
["LANDSCAPE ENHANCEMENTS LLC",99,"03692","1710 BRYAN ROAD",null,null,"LEXINGTON",null,"KY","40509","(859)583-6644"]
["LANDVIEW SERVICES LLC",99,"03873","4137 HAMILTON TRENTON RD",null,null,"HAMILTON",null,"OH","45011","(513)737-8055"]
["LANHAM BROTHERS GENERAL CONTRACTORS INC",99,"03421","2119 W 3RD ST",null,null,"OWENSBORO",null,"KY","42301","(270)683-4591"]
["LARKIN ENVIRONMENTAL SOLUTIONS INC",99,"03351","P O BOX 1627",null,null,"ELIZABETHTOWN",null,"KY","42702","(270)769-7700"]
["LARRY D SKAGGS CONTRACTING",99,"01890","781 GLENDALE ROAD",null,null,"HODGENVILLE",null,"KY","42748","(270)358-4548"]
["LARRY GLASS CONSTRUCTION COMPANY INC",99,"01116","1683-B BURKESVILLE RD",null,null,"GLASGOW",null,"KY","42141","(270)651-6911"]
["LARRY SMITH CONTRACTORS INC",99,"01358","5737 DRY FORK ROAD",null,null,"CLEVES",null,"OH","45002","(513)367-0218"]
["LARRY W DOYLE & ASSOCIATES LLC",99,"03108","P O BOX 422",null,null,"BUCKNER",null,"KY","40010","(502)222-5394"]
["LARRYS HEADING & AIR COND SRV INC",99,"02232","1351 S PRESTON STREET",null,null,"LOUISVILLE",null,"KY","40217","(502)636-5558"]
["LASLEYS AND GRAVES EROSION CONTROL INC",99,"03081","4192 BURKESVILLE",null,null,"COLUMBIA",null,"KY","42728","(270)849-5445"]
["LATSHAW TRAFFIC SERVICES INC",99,"02119","P O BOX 5709",null,null,"EVANSVILLE",null,"IN","47716","(812)477-6846"]
["LAUREL EROSION CONTROL LLC",99,"03335","224 CHIPPEWA LANE",null,null,"LONDON",null,"KY","40744","(606)862-1468"]
["LAW COMPANIES OF KENTUCKY INC",99,"02566","10335 HEDDEN ROAD",null,null,"EVANSVILLE",null,"IN","47711","(812)867-5959"]
["LAW CONSTRUCTION INC",99,"02091","10335  HEDDEN ROAD",null,null,"EVANSVILLE",null,"IN","47711","(812)867-5959"]
["LAWHORN ELECTRIC LLC",99,"03331","44 MILL ROAD",null,null,"PARKSVILLE",null,"KY","40464","(859)854-0004"]
["LAWNS & LANDSCAPES LLC",99,"02626","PO BOX 182",null,null,"RUSSELLVILLE",null,"KY","42276","(270)725-8119"]
["LAWRENCE CONSTRUCTION AND LEASING INC",99,"00125","233 SHORELAND DR",null,null,"WALTON",null,"KY","41094","(859)586-5758"]
["LAWRENCE CONSTRUCTION COMPANY INC",99,"01948","P O BOX 1001",null,null,"BURLINGTON",null,"KY","41005","(859)586-5600"]
["LAYNE CHRISTENSEN COMPANY",99,"02314","22537 COLEMANS MILL ROAD",null,null,"RUTHER GLEN",null,"VA","22546","(804)448-8060"]
["LEAK ELIMINATORS LLC",99,"02476","330 LISLE INDUSTRIAL AVE",null,null,"LEXINGTON",null,"KY","40511","(859)388-9422"]
["LEE & SONS CONSTRUCTION INC",99,"03368","P O BOX 27",null,null,"KNOB LICK",null,"KY","42154","(270)565-3200"]
["LEGEND PAINTING INC",99,"03646","403 TENNEY AVE",null,null,"CAMPBELL",null,"OH","44405","(330)953-3264"]
["LEONARD RAY PAIGE TRUCKING CO DBA LRP TR",99,"01958","P O BOX 25    GUTHRIE STREET",null,null,"HORSE CAVE",null,"KY","42749-0025","(270)786-2797"]
["LEONG ENTERPRISES INC",99,"03088","P O BOX 19619",null,null,"LOUISVILLE",null,"KY","40259","(502)364-7611"]
["LET IT GRO LLC",99,"03076","380 WARD-KOEBEL ROAD",null,null,"OREGONIA",null,"OH","45054","(937)289-2104"]
["LEWIS BROTHERS CONSTRUCTION CO",99,"02095","4847 LEFT FORK ROAD",null,null,"VIPER",null,"KY","41774","(606)439-4618"]
["LEWIS BROTHERS INC",99,"03414","4847 LEFT FORK MACES CREEK RD",null,null,"VIPER",null,"KY","41774","(606)439-4618"]
["LEXINGTON BLACKTOP INC",99,"01554","740 FOX INDUSTRIAL RD",null,null,"LEXINGTON",null,"KY","40504","(859)255-7440"]
["LEXINGTON CONTRACTING LLC",99,"03141","1500 LEESTOWN ROAD",null,null,"LEXINGTON",null,"KY","40511","(859)281-6881"]
["LEXINGTON QUARRY COMPANY",99,"02067","3009 ATKINSON AVE STE 300",null,null,"LEXINGTON",null,"KY","40509","(859)543-3361"]
["LIBERTY MAINTENANCE INC",99,"01418","777 N MERIDIAN RD",null,null,"YOUNGSTOWN",null,"OH","44509","(330)755-7711"]
["LIBERTY MAINTENANCE J/V CHAMPION PAINTIN",99,"03891","777 N MERIDIAN RD",null,null,"YOUNGETOWN",null,"OH","44509","(330)755-7711"]
["LIMBERLOST CONSTRUCTION CORPORATION",99,"02366","515 EAST LINE         P O BOX 10",null,null,"GENEVA",null,"IN","46740","(219)368-9333"]
["LINCOLN COUNTY READY MIX INC &",99,"01681","2225 U S  HWY 27 SOUTH",null,null,"STANFORD",null,"KY","40484","(606)365-3501"]
["LINEPORT EXCAVATING LLC",99,"02909","3113 HWY 120",null,null,"BUMPUS MILLS",null,"TN","37028","(931)232-8050"]
["LINK ELECTRIC CO INC",99,"03384","3817 FITZGERALD ROAD",null,null,"LOUISVILLE",null,"KY","40216","(502)778-1155"]
["LINKEL COMPANY",99,"01723","1081 MORRIS ROAD",null,null,"BATESVILLE",null,"IN","47006","(812)934-5190"]
["LINKEL COMPANY LLC",99,"03792","1081 MORRIS RD",null,null,"BATESVILLE",null,"IN","47006","(812)934-5190"]
["LIONMARK INC AND SUBSIDIARIES",99,"00559","1620 WOODSON ROAD",null,null,"OVERLAND",null,"MO","63114","(314)991-2180"]
["LIPPS PAVING LLC",99,"03806","198 NAPIER RD",null,null,"LONDON",null,"KY","40744","(606)862-0323"]
["LITHKO RESTORATION TECHNOLOGIES LLC",99,"03848","900 N GARVER RD",null,null,"MONROE",null,"OH","45050","(513)863-5500"]
["LITTEN STEVEN SMITH D/B/A S & L CO",99,"02254","127 DRIFT HOLLOW ROAD",null,null,"MCDOWELL",null,"KY","41647","(606)377-0583"]
["LITTLE MIAMI CONSTRUCTION COMPANY LLC",99,"03277","5325 WOOSTER ROAD",null,null,"CINCINNATI",null,"OH","45226","(513)321-1050"]
["L-M ASPHALT DBA ATS J/V NALLY & GIBSON",99,"03404","3009 ATKINSON AVENUE SUITE 400",null,null,"LEXINGTON",null,"KY","40509","(859)223-7001"]
["L-M ASPHALT PARTNERS LTD D/B/A",99,"01947","3009 ATKINSON AVENUE STE 400",null,null,"LEXINGTON",null,"KY","40509","(859)223-7001"]
["L-M DBA ATS CONST/GADDIE-SHAMROCK JV",99,"03051","1332 OLD FRANKFORT PIKE",null,null,"LEXINGTON",null,"KY","40578","(859)223-7001"]
["LMS ENVIRONMENTAL CONTRACTING INC",99,"02386","6515 W 500 N",null,null,"MADISON",null,"IN","47250","(812)273-5740"]
["LOJAC INCORPORATED AND SUBSIDIARIES",99,"01145","P O BOX 998",null,null,"LEBANON",null,"TN","37088-0998","(615)449-1401"]
["LOLA MILLER SERVICES INC",99,"03595","720 E LOUDON AVENUE",null,null,"LEXINGTON",null,"KY","40505","(859)252-0720"]
["LONG FOUNDATION DRILLING CO",99,"01493","3014 BRANDAU RD",null,null,"HERMITAGE",null,"TN","37076","(615)885-5664"]
["LONKARD CONSTRUCTION COMPANY",99,"02223","P O BOX 123",null,null,"UNION",null,"KY","41091","(859)384-3223"]
["LOTS & MORE INC",99,"03332","9462 BROWNSBORO ROAD",null,null,"LOUISVILLE",null,"KY","40241","(502)821-8787"]
["LOU PAVING HINKLE & HALL CONT TRI-VENT",99,"03170","1801 PAYNE ST",null,null,"LOUISVILLE",null,"KY","40206"]
["LOUISA CONSTRUCTION COMPANY",99,"03185","P O BOX 178",null,null,"LOUISA",null,"KY","41230","(606)638-9231"]
["LOUISVILLE PAVING CO J/V HAYDON BRIDGE",99,"03560","1801 PAYNE STREET",null,null,"LOUISVILLE",null,"KY","40206","(502)583-1726"]
["LOUISVILLE PAVING COMPANY INC",99,"00563","15415 SHELBYVILLE RD",null,null,"LOUISVILLE",null,"KY","40245","(502)583-1726"]
["LOVIN CONTRACTING COMPANY INC & SUBSIDIA",99,"02578","PO BOX 758",null,null,"ROBBINSVILLE",null,"NC","28771","(828)479-9462"]
["LOVINS CONCRETE CONSTRUCTION INC",99,"02829","11129 PLEASANT RIDGE ROAD",null,null,"UTICA",null,"KY","42376","(270)691-0432"]
["LOX CONSULTING INC",99,"02587","PO BOX 1219",null,null,"NICHOLASVILLE",null,"KY","40340-1219","(859)231-8134"]
["LU INC",99,"03877","P O BOX 607",null,null,"KINGSTON SPRINGS",null,"TN","37082","(615)952-5501"]
["LUCAS BROTHERS INC",99,"01256","885 N GARDNER STREET",null,null,"SCOTTSBURG",null,"IN","47170","(812)752-3347"]
["LUHN & OAK CONSTRUCTION COMPANY INC",99,"01725","P O BOX 481",null,null,"CARROLLTON",null,"KY","41008","(502)732-6321"]
["LUHRMAN LAND CLEARING",99,"03285","P O BOX 69",null,null,"VERONA",null,"KY","41092","(859)363-3092"]
["LUMBER JACKS INC",99,"02449","2590 HILL GROVE ROAD",null,null,"GUSTON",null,"KY","40142","(270)828-8124"]
["LUNDA CONSTRUCTION COMPANY",99,"03816","P O BOX 669    620 GEBHARDT RD",null,null,"BLACK RIVER FALLS",null,"WI","54615","(715)284-9491"]
["LUNDY REBAR INC",99,"02911","3645 WOODLAWN RD",null,null,"BARDSTOWN",null,"KY","40004","(502)510-3796"]
["LUSK MECHANICAL CONTRACTORS INC",99,"03284","P O BOX 340",null,null,"MULDRAUGH",null,"KY","40155","(502)942-6966"]
["LUTGRING BROS INC",99,"00235","5980 SHILOH RD",null,null,"TELL CITY",null,"IN","47586","(812)836-4300"]
["LYKINS REINFORCING INC",99,"02249","P O BOX  21325",null,null,"LOUISVILLE",null,"KY","40221","(502)634-5030"]
["LYNDCO INC",99,"03164","56301 PERRY LANDING ROAD",null,null,"SHADYSIDE",null,"OH","43947","(740)671-4855"]
["LYNDON MILLWORK INC",99,"01853","2360 AMPERE DR",null,null,"LOUISVILLE",null,"KY","40299","(502)266-0073"]
["LYNN CONTRACTING LLC",99,"02666","257 IVY ROAD",null,null,"MAYFIELD",null,"KY","42066","(270)247-6484"]
["M & A CONSTRUCTION INC",99,"02491","4605 ILLINOIS AVE",null,null,"LOUISVILLE",null,"KY","40213","(502)458-1657"]
["M & B FARMS LLC",99,"03370","1981 WARDS BRANCH RD",null,null,"LEBANON",null,"KY","40033","(270)699-5392"]
["M & D GENERAL CONTRACTORS INC",99,"01766","P O BOX 1447",null,null,"BARBOURVILLE",null,"KY","40906","(606)546-2286"]
["M & J CONSTRUCTION CO INC",99,"03472","P O BOX 397",null,null,"SPRINGFIELD",null,"KY","40069","(859)336-9055"]
["M & J CONSTRUCTION CO OF PINELLAS",99,"02112","809 S SAFFORD AVE",null,null,"TARPON SPRINGS",null,"FL","34689","(727)938-6478"]
["M & J PAINTING COMPANY",99,"00569","P O BOX 604",null,null,"CAMPBELL",null,"OH","44405","(330)755-4988"]
["M & K CONSTRUCTION LLC",99,"02926","P O BOX 193   59 SCHOOL ST",null,null,"FREEBURN",null,"KY","41528","(606)456-8282"]
["M & M CENTRAL CONTRACTING INC",99,"01531","P O BOX 9",null,null,"WILLIAMSTOWN",null,"KY","41097","(606)824-5231"]
["M & M CONTRACT MOWING LLC",99,"03126","153 COUNTY ROAD 404",null,null,"MADISONVILLE",null,"TN","37354","(423)519-5587"]
["M & M ELECTRIC INC",99,"01665","PO BOX 790",null,null,"DANVILLE",null,"KY","40423-0790","(859)236-7588"]
["M & M SERVICES CO INC",99,"00131","229 MIDLAND TR",null,null,"MOUNT STERLING",null,"KY","40353","(859)499-3201"]
["M & W EXCAVATION CO INC",99,"03047","P O BOX 36",null,null,"ALEXANDRIA",null,"KY","41001","(859)635-3431"]
["M A S MARKERS INCORPORATED",99,"02299","1625 S 400 E",null,null,"LEBANON",null,"IN","46052","(317)769-7200"]
["M A T METAL SOLUTIONS LLC",99,"03247","1060 RIVER ROAD",null,null,"LAWRENCEBURG",null,"KY","40342","(502)859-3544"]
["M B C CONSTRUCTION INC",99,"02498","PO BOX 1090",null,null,"SPOTSYLVANIA",null,"VA","22553-1090","(540)239-0876"]
["M B E INC OF FLORIDA",99,"02192","PO BOX 1292",null,null,"TARPON SPRINGS",null,"FL","34688","(727)942-9628"]
["M BOWLING INC",99,"03197","P O BOX 491",null,null,"HENDERSON",null,"KY","42419","(270)826-2803"]
["M D S CONSTRUCTION INC D/B/A",99,"02357","2201 WEST JEFFERSON STREET",null,null,"LOUISVILLE",null,"KY","40212","(502)778-7311"]
["M G C INC",99,"03716","P O BOX 115",null,null,"BOLT",null,"WV","25817","(304)573-6520"]
["M H P ELECTRIC",99,"02121","P O BOX 2696",null,null,"MIDDLESBORO",null,"KY","40965-2696","(606)248-5007"]
["M P G CONSTRUCTION INC",99,"01415","1845 OAKMONT AVENUE",null,null,"TARPON SPRINGS",null,"FL","34689","(727)938-6078"]
["M P G PAINTING CO INC",99,"02261","481 HARMONY LANE",null,null,"CAMPBELL",null,"OH","44405","(216)750-0301"]
["M P LAWSON CONSTRUCTION LLC",99,"03618","8355 BLANDVILLE ROAD",null,null,"PADUCAH",null,"KY","42001","(270)554-3072"]
["M&J PAINTING JV ADELPHI INC",99,"03317","P O BOX 604 2 SHORT ST",null,null,"CAMPBELL",null,"KY","44405"]
["MAC CONSTRUCTION & EXCAVATING INC",99,"00568","1500 ENVOY CIRCLE  STE 1510",null,null,"LOUISVILLE",null,"KY","40299","(812)941-7895"]
["MAGIC SWEEP SERVICES LLC",99,"02854","1805 ROOSEVELT AVENUE",null,null,"LOUISVILLE",null,"KY","40242","(502)939-1825"]
["MAGO CONST CO LLC JV NALLY&HAYDON SURFAC",99,"03492","P O BOX 669",null,null,"BARDSTOWN",null,"KY","40004","(502)348-3953"]
["MAGO CONSTRUCTION COMPANY INC",99,"00270","P O BOX 669",null,null,"BARDSTOWN",null,"KY","40004","(502)348-3953"]
["MAGO CONSTRUCTION COMPANY LLC",99,"02432","PO BOX 669",null,null,"BARDSTOWN",null,"KY","40004","(502)348-3953"]
["MALCOLM DRILLING CO INC & SUBSIDIARY",99,"02315","92 NATOMA ST",null,null,"SAN FRANCISCO",null,"CA","94105","(415)901-4400"]
["MANGANAS ENTERPRISES INC",99,"02770","235 LINDEN CREEK ROAD",null,null,"CANONSBURG",null,"PA","15317","(724)745-3301"]
["MANGANAS PAINTING COMPANY INC",99,"01068","235 LINDEN CREEK ROAD",null,null,"CANONSBURG",null,"PA","15317","(412)343-3384"]
["MANIS DRILLING INC",99,"02164","408  BRICE AVENUE",null,null,"GLASGOW",null,"KY","42141","(502)651-6360"]
["MANSON CONSTRUCTION CO",99,"03569","5209 E MARGINAL WAY S",null,null,"SEATTLE",null,"WA","98134","(206)762-0850"]
["MARINE BUILDERS INC",99,"91014","5821 UTICA PIKE",null,null,"UTICA",null,"IN","47130","(812)283-7932"]
["MARK RITE LINES OF MONTANA INC",99,"02270","P O BOX 31431    524 JERRIE LANE",null,null,"BILLINGS",null,"MT","59107","(406)245-8710"]
["MARK SWARTZ DBA SWARTZ ENTERPRISES",99,"02824","1450 WATERWORKS ROAD",null,null,"WINCHESTER",null,"KY","40391","(859)339-7505"]
["MARKETING ASSOC INC & COMBINED",99,"02382","PO BOX 6007",null,null,"MOUNT AIRY",null,"NC","27030","(336)789-6159"]
["MAR-KING INC",99,"03045","339 CLEVELAND ROAD",null,null,"NORWALK",null,"OH","44857","(419)663-1707"]
["MARKING SPECIALIST CORPORATION",99,"00892","P O BOX 745",null,null,"ARLINGTON HEIGHTS",null,"IL","60005","(847)253-7349"]
["MARK-LANG INC",99,"01821","P O BOX 322  436 OBRECHT ROAD",null,null,"MILLERSVILLE",null,"MD","21108","(410)647-2244"]
["MARKSBURY CORNETT ENGINEERING",99,"00585","PO BOX 43517",null,null,"LOUISVILLE",null,"KY","40253","(502)244-5000"]
["MARLOW/ROSS INC",99,"02341","P O BOX 860",null,null,"JELLICO",null,"TN","37762","(423)784-2255"]
["MARRILLIA INTERESTS LLC DBA MARRILLIA",99,"03240","794 MANCHESTER ST",null,null,"LEXINGTON",null,"KY","40508","(859)685-0414"]
["MARTIN ASPHALT & CONCRETE CONSTR CO",99,"03538","1832 KOEFOOT DRIVE",null,null,"INDIANAPOLIS",null,"IN","46214","(317)757-9002"]
["MARTIN CONTRACTING INC",99,"03451","2371 IRVINE ROAD",null,null,"RICHMOND",null,"KY","40475","(859)623-0112"]
["MARTY D HOLDER DBA H & HA CONTRACTING",99,"01986","P O BOX 1153",null,null,"ROBBINSVILLE",null,"NC","28771","(828)479-9150"]
["MARVIN GAMBLE DBA G & G MOWING",99,"02444","PO BOX 174",null,null,"EZEL",null,"KY","41425","(606)725-5122"]
["MASSMAN CONSTRUCTION COMPANY",99,"00588","4400 W 109TH ST STE 300",null,null,"OVERLAND PARK",null,"KS","66211","(913)291-2600"]
["MASSMAN-WALSH A JOINT VENTURE",99,"03558","8901 STATE LINE ROAD SUITE 240",null,null,"KANSAS CITY",null,"KS","64114","(816)523-1000"]
["MASTEC I T S INC",99,"02649","2230 TOWNE LAKE PKWY  BLDG 1300 STE 100",null,null,"WOODSTOCK",null,"GA","30189","(678)445-8121"]
["MASTEC NORTH AMERICA INC",99,"02708","300 PARKBROOKE PLACE SUITE 240",null,null,"WOODSTOCK",null,"GA","30189","(678)445-8121"]
["MATHIEU TIMBER CLEARING CO INC",99,"01359","1044 MEADOWBROOK LANE",null,null,"LOUISA",null,"KY","41230","(606)638-3900"]
["MATRIX HIGHWAY CONSTRUCTION & SUPPLY INC",99,"02489","1269 MUZZY ROAD  PO BOX 38177",null,null,"URBANA",null,"OH","43078","(937)653-6085"]
["MATSUDA CONTRACTING LLC",99,"03494","1010 S PRESTON HWY",null,null,"SHEPHERDSVILLE",null,"KY","40165","(502)957-3071"]
["MATSUDA INC",99,"01016","P O BOX  279   3201 CORAL RIDGE RD",null,null,"BROOKS",null,"KY","40109","(502)955-9669"]
["MATSUDA LLC",99,"02694","PO BOX 279  3201 CORAL RIDGE ROAD",null,null,"BROOKS",null,"KY","40109","(502)955-9669"]
["MATTINGLY BROS INC",99,"02682","750 ST ROSE-LEBANON RD",null,null,"SPRINGFIELD",null,"KY","40069","(859)481-3153"]
["MATTINGLY CONTRACTING",99,"02348","426 EDELEN ROAD",null,null,"SPRINGFIELD",null,"KY","40069","(859)481-3156"]
["MAXIM CRANE WORKS LP W/O/S MAXIM CRANE",99,"03166","840 LICKING PIKE",null,null,"WILDER",null,"KY","41076","(859)441-7400"]
["MCAFEE MOWING & LANDSCAPING INC DBA TEAM",99,"02952","114 NORTH SECOND STREET",null,null,"DANVILLE",null,"KY","40422","(859)236-6969"]
["MCALISTER EXCAVATING CO INC",99,"01254","12883 NORTH BRANCH RD",null,null,"PATRIOT",null,"IN","47038","(812)594-2402"]
["MCANINCH CORPORATION AND AFFILIATES",99,"02943","6800 LAKE DR SUITE 125",null,null,"WEST DES MOINES",null,"IA","50266","(515)267-2500"]
["MCCAIN BROS EXCAVATING LLC",99,"03628","P O BOX 208",null,null,"SPRINGFIELD",null,"KY","40069","(859)300-3614"]
["MCCARTHY BROTHERS COMPANY",99,"01059","1341 NORTH ROCK HILL ROAD",null,null,"ST. LOUIS",null,"MO","63124-1498","(314)968-3300"]
["MCCARTHY IMPROVEMENT COMPANY",99,"03519","5401 VICTORIA AVENUE SUITE 700",null,null,"DAVENPORT",null,"IA","52807","(563)359-0321"]
["MCCORD ENGINEERING AND CONTRACTING INC",99,"02667","1041 EASTLAND DRIVE",null,null,"LEXINGTON",null,"KY","40505","(859)254-7918"]
["MCCRITE MILLING & CONSTRUCTION CO INC",99,"02325","810 INDUSTRIAL BLVD",null,null,"NEW ALBANY",null,"IN","47150","(812)941-0252"]
["MCGOWAN EXCAVATING INC",99,"02738","285 RICHARDSON RD",null,null,"NANCY",null,"KY","42544","(606)871-7445"]
["MCKENZIE CONCRETE CURB INC",99,"03134","P O BOX 36",null,null,"FARMERS",null,"KY","40319","(606)784-2644"]
["MCKENZIE CONCRETE CURBS LLC",99,"02800","1067 PENDLETON BRANCH ROAD",null,null,"OLYMPIA",null,"KY","40358","(606)784-2644"]
["MCKENZIE CONCRETE OF KENTUCKY INC",99,"03241","P O BOX 36",null,null,"FARMERS",null,"KY","40319","(606)784-2644"]
["MCKINNEY DRILLING COMPANY",99,"00619","P O BOX 5005",null,null,"ODENTON",null,"MD","21113","(410)874-1235"]
["MCKINNEY DRILLING COMPANY LLC",99,"03139","7550 TEAGUE RD STE 300",null,null,"HANOVER",null,"MD","21076","(410)551-8200"]
["MCKINNEY PAINTING INC",99,"03362","104 INDUSTRY DR",null,null,"VERSAILLES",null,"KY","40383","(859)873-6424"]
["MCKINNON BRIDGE COMPANY INC",99,"01181","P O BOX 681669",null,null,"FRANKLIN",null,"TN","37068-1669","(615)794-2552"]
["MCKNIGHT & ASSOCIATES INC",99,"03745","25 COMMERCIAL DR",null,null,"LONDON",null,"KY","40744","(606)878-6631"]
["MCMILLEN SOIL STABILIZATION",99,"01804","350 HAGGIN LANE",null,null,"WILMORE",null,"KY","40390","(606)858-3875"]
["MCNABB CONSTRUCTION COMPANY INC",99,"03037","3477 PREWITT-GRASSY LICK ROAD",null,null,"MOUNT STERLING",null,"KY","40353","(859)498-0559"]
["MCNALLY TUNNELING CORPORATION",99,"03043","24700 CENTER RIDGE RD  SUITE 215",null,null,"CLEVELAND",null,"OH","44145","(440)835-0053"]
["MCNEIL CONTRACTING INC",99,"03102","104 BRADYL STREET",null,null,"CORBIN",null,"KY","40701","(606)528-6043"]
["MCNUTT CONSTRUCTION COMPANY",99,"03030","P O BOX 431",null,null,"ELIZABETHTOWN",null,"KY","42702","(270)737-8518"]
["MCPEEK GENERAL CONTRACTING INC",99,"02571","US HWY 23 SOUTH  PO BOX 197",null,null,"DORTON",null,"KY","41520","(606)639-0032"]
["MCVEY LAND DEVELOPMENT LLC",99,"03082","89 DANIEL BOONE DRIVE",null,null,"BARBOURVILLE",null,"KY","40906","(606)546-3572"]
["MEADOWBROOK CONCRETE LLC",99,"03797","P O BOX 314",null,null,"MOREHEAD",null,"KY","40351","(606)780-8844"]
["MEDLEY FARMS LLC",99,"03071","2229 ST ROSE-LEBANON ROAD",null,null,"SPRINGFIELD",null,"KY","40069","(859)336-1083"]
["MEEKS ELECTRICAL INC",99,"00590","1333 NORTH 8TH STREET",null,null,"PADUCAH",null,"KY","42001","(270)444-7779"]
["MELCO GREER LLC",99,"02617","PO BOX 755",null,null,"LONDON",null,"KY","40743-0755","(606)878-8900"]
["MELCO-GREER INC",99,"00201","P O BOX 755",null,null,"LONDON",null,"KY","40743-0755","(606)878-8900"]
["MENIFEE MILLING COMPANY INC",99,"01060","101 CODY LANE",null,null,"CLAY CITY",null,"KY","40312","(606)663-1954"]
["MERCIERS INC",99,"03377","2393 CO RD 1",null,null,"SOUTH POINT",null,"OH","45680","(740)377-9914"]
["MERIDIAN COMMUNICATIONS & CONSTRUCTION",99,"03193","P O BOX 372",null,null,"HUNTINGTON",null,"WV","25708","(304)522-3080"]
["MERKLE LAWN CARE COMPANY INC",99,"02124","210 VINE ST",null,null,"WILDER",null,"KY","41076","(859)781-8652"]
["MERRICK CONST COS INC D/B/A MERRICK-KEMP",99,"02238","3808 RALPH AVENUE    P O BOX 185",null,null,"LOUISVILLE",null,"KY","40201","(502)449-1234"]
["MESSER CONSTRUCTION CO",99,"03849","643 W COURT ST",null,null,"CINCINNATI",null,"OH","45203","(859)231-8199"]
["MESSIER AND ASSOCIATES INC",99,"02953","P O BOX 21293",null,null,"LOUISVILLE",null,"KY","40221","(502)515-2451"]
["METRO FENCE INDUSTRIES INC",99,"02229","4521 BISHOP LN",null,null,"LOUISVILLE",null,"KY","40218","(502)458-8701"]
["METROPOLIS CONSTRUCTION LLC",99,"03286","3710 LEES LANE",null,null,"LOUISVILLE",null,"KY","40216","(502)447-4250"]
["MEYER MIDWEST INC",99,"02710","2150 COMMERCIAL DR",null,null,"FRANKFORT",null,"KY","40601","(502)695-8835"]
["MEZZETTA CONSTRUCTION SERVICES INC",99,"03535","6983 CORPORATE CIRCLE",null,null,"INDIANAPOLIS",null,"IN","46278","(317)328-8003"]
["MICHAEL HARRIS CONSTRUCTION COMPANY",99,"00488","P O BOX 810  2100 HOWARDS MILL RD",null,null,"MOUNT STERLING",null,"KY","40353","(859)229-1914"]
["MICHAEL STAMPER DBA MOBILE MAINTANCE",99,"02631","PO BOX 1252",null,null,"NEW ALBANY",null,"IN","47151","(812)246-0730"]
["MICHELS CORPORATION",99,"02763","P O BOX 128      817 WEST MAIN ST",null,null,"BROWNSVILLE",null,"WI","53006","(920)583-3132"]
["MICK-MURF CONSTRUCTION INC",99,"01490","930 SHIVE LN",null,null,"BOWLING GREEN",null,"KY","42103","(270)843-2216"]
["MICROSURFACING CONTRACTORS LLC",99,"03784","13940 ST CHARLES ROCK RD",null,null,"BRIDGETON",null,"MO","63044","(314)989-9001"]
["MID AMERICA MILLING COMPANY",99,"00594","2227-B  KOETTER DRIVE",null,null,"CLARKSVILLE",null,"IN","47129","(812)282-2751"]
["MID AMERICA MILLING COMPANY LLC",99,"02322","6200 E HWY 62 BLDG 2501 STE 400",null,null,"JEFFERSONVILLE",null,"IN","47130","(812)282-2751"]
["MID ATLANTIC MAINTENANCE CORPORATION",99,"03447","P O BOX 3405",null,null,"PARKERSBURG",null,"WV","26103","(304)372-7770"]
["MID STAR CONSTRUCTION INC",99,"02614","722 NORTHLAKE BLVD",null,null,"TARPON SPRINGS",null,"FL","34689","(727)939-1501"]
["MID-AMERICA BRIDGE CO INC",99,"00598","6900 FRANKFORT ROAD",null,null,"VERSAILLES",null,"KY","40383","(859)421-9698"]
["MIDDLEFORK CONTRACTING LLC",99,"03767","3127 HWY 315",null,null,"BOONEVILLE",null,"KY","41314","(606)424-4717"]
["MIDSTATES CONSTRUCTION INC",99,"01157","PO BOX 253",null,null,"PADUCAH",null,"KY","42002-0253","(270)442-5477"]
["MIDWEST FOUNDATION CORPORATION W/O/S",99,"02224","P O BOX 1207  22260 IL RTE 9",null,null,"TREMONT",null,"IL","61568","(309)925-2831"]
["MIDWEST MOLE INC & SUBSIDIARY",99,"00596","6814 W 350 N",null,null,"GREENFIELD",null,"IN","46140","(317)545-1335"]
["MIDWEST STEEL INC",99,"03576","2525 E GRAND BLVD",null,null,"DETROIT",null,"MI",null,"(313)873-2220"]
["MIK INDUSTRIAL LLC",99,"03165","419 BLOSSOM AVE SUITE #2",null,null,"CAMPBELL",null,"OH","44405","(330)755-5100"]
["MIKE DENNISTON INC",99,"01896","P O BOX 99",null,null,"DENNISTON",null,"KY","40316","(606)768-3045"]
["MIKE ENYART & SONS INC",99,"03488","P O BOX 9",null,null,"SOUTH POINT",null,"OH","45680","(740)523-0235"]
["MIKE SWARTZ CONSTRUCTION & TREE REMOVAL",99,"03369","P O BOX 39",null,null,"OLYMPIA",null,"KY","40358","(606)674-3960"]
["MIKE W MATTINGLY DBA MIKE W MATTINGLY MO",99,"02349","1846 JIMTOWN RD",null,null,"SPRINGFIELD",null,"KY","40069","(859)336-7609"]
["MILESTONE CONTRACTORS L P & SUBSIDIARY",99,"02107","P O BOX 421459",null,null,"INDIANAPOLIS",null,"IN","46242","(317)788-6885"]
["MILLER AND SONS PAVING INC",99,"03871","555 W 3RD AVE",null,null,"ONEIDA",null,"TN","37841","(423)569-6323"]
["MILLER BROS CONST INC",99,"00223","P O BOX 30   1613 S DEFIANCE ST",null,null,"ARCHBOLD",null,"OH","43502","(419)445-1015"]
["MILLER CABLE COMPANY",99,"01571","210 SOUTH BROADWAY",null,null,"GREEN SPRINGS",null,"OH","44836","(419)639-2091"]
["MINCON INC",99,"02045","PO BOX 790  100 MCGRATH STREET",null,null,"DANVILLE",null,"KY","40423-0790","(859)236-9200"]
["MINE EQUIPMENT AND MILL SUPPLY CO",99,"03422","4 NW 2ND STREET",null,null,"EVANSVILLE",null,"IN","47708","(812)402-4070"]
["MISSOURI PETROLEUM PRODUCTS COMPANY LLC",99,"03149","1620 WOODSON RD",null,null,"SAINT LOUIS",null,"MO","63114","(314)991-2180"]
["MITCHELL CONSTRUCTION COMPANY INC",99,"01793","P O BOX 1186",null,null,"VIDALIA",null,"GA","30475","(912)537-2231"]
["MITCHELL CONSTRUCTION LLC",99,"03850","342 CALVERT DR",null,null,"PADUCAH",null,"KY","42003","(270)898-0790"]
["MITER MASONRY CONTRACTORS INC",99,"03520","421 MAPLE AVENUE",null,null,"CINCINNATI",null,"OH","45215","(513)821-3334"]
["MIXONSITE USA INC",99,"03885","1501 ABBOTT CT",null,null,"BUFFALO GROVE",null,"IL","60030","(847)415-9601"]
["MJM CONSTRUCTION LLC",99,"02832","P O BOX 417",null,null,"TARPON SPRINGS",null,"FL","34688","(727)934-6846"]
["MLS 2 INC",99,"03130","100 PINE LAKE DR",null,null,"COLUMBIA",null,"KY","42728","(270)634-0531"]
["MLS II",99,"03086","375 OFFICE PARK DRIVE",null,null,"COLUMBIA",null,"KY","42728","(270)384-9169"]
["MNJ CONSTRUCTION SERVICES LLC",99,"03785","P O BOX 855",null,null,"JONESBOROUGH",null,"TN","37659","(423)948-5247"]
["MODERN CONSTRUCTION INC",99,"01672","P O BOX 187",null,null,"STANVILLE",null,"KY","41659","(606)478-5600"]
["MODERN CONTINENTAL CONSTRUCTION CO INC",99,"02327","600 MEMORIAL DRIVE",null,null,"CAMBRIDGE",null,"MA","02139","(617)864-6300"]
["MONARCH CONTRACTING LLC",99,"03864","4865 HALIFAX RD",null,null,"SCOTTSVILLE",null,"KY","42164","(270)392-9847"]
["MONOKO INC",99,"01941","1037 PENINSULA AVE",null,null,"TARPON SPRINGS",null,"FL","034689","(727)938-4949"]
["MONOKO LLC",99,"03380","760 BAYSHORE DR",null,null,"TARPON SPRINGS",null,"FL","34689","(727)940-3244"]
["MONTGOMERY BROTHERS CONTRACTING INC",99,"03348","P O BOX 181",null,null,"DANVILLE",null,"KY","40423","(859)238-2222"]
["MORE THAN MULCH INC",99,"03008","1450 FLEMINGSBURG ROAD",null,null,"MOREHEAD",null,"KY","40351","(606)784-3095"]
["MORETRENCH AMERICAN CORPORATION",99,"03600","100 STICKLE AVENUE",null,null,"ROCKAWAY",null,"NJ","07866","(973)627-2100"]
["MOTT EXCAVATING INC",99,"02716","PO BOX 613",null,null,"VIENNA",null,"IL","62995","(618)658-2605"]
["MOUNTAIN CONTRACTING LLC",99,"03010","P O BOX 11849",null,null,"LEXINGTON",null,"KY","40578","(859)223-7001"]
["MOUNTAIN ENTERPRISES INC",99,"02938","P O BOX 13130",null,null,"LEXINGTON",null,"KY","40583","(859)299-7001"]
["MOUNTAIN ENTERPRISES INCORPORATED",99,"00272","P O BOX 13070",null,null,"LEXINGTON",null,"KY","40583-3070","(859)299-7001"]
["MOUNTAIN EXCAVATION LLC",99,"03853","395 TOWN BRANCH RD",null,null,"JEFFERSONVILLE",null,"KY","40337","(859)404-7860"]
["MOUNTAIN STATES CONTRACTORS LLC",99,"03441`","P O BOX 1004",null,null,"MOUNT JULIET",null,"TN","37121","(615)754-4710"]
["MOUNTAIN STATES CONTRACTORS LLC",99,"03441","P O BOX 158067",null,null,"NASHVILLE",null,"TN","37215","(615)862-7388"]
["MOUNTAIN STATES INFRASTRUCTURE LLC",99,"02526","PO BOX 727",null,null,"MOUNT JULIET",null,"TN","37121","(615)773-0965"]
["MOUNTAIN TOP HYDROSEEDING INC",99,"02821","P.O. BOX 766",null,null,"SALYERSVILLE",null,"KY","41465","(606)349-4570"]
["MOUNTAIN TOP INC",99,"03635","P O BOX 766",null,null,"SALYERSVILLE",null,"KY","41465","(606)349-4570"]
["MOUNTAINEER CONTRACTORS INC & SUBSIDIARY",99,"03701","15237 S PRESTON HWY",null,null,"KINGWOOD",null,"WV","26537","(304)329-2129"]
["MOUNTAINVIEW SERVICES",99,"02877","586 JOHNSON BRANCH RD",null,null,"BOONEVILLE",null,"KY","041314","(606)295-5347"]
["MOUNTS ELECTRIC INC",99,"00616","P O BOX 3273",null,null,"EVANSVILLE",null,"IN","47731","(812)422-5358"]
["MS CONCRETE LLC",99,"03798","P O BOX 1285",null,null,"ELKHORN CITY",null,"KY","41522","(606)616-1307"]
["MT CARMEL STABILIZATION GROUP INC",99,"01044","P O BOX 458",null,null,"MOUNT CARMEL",null,"IL","62863","(618)262-5118"]
["MTN CONSTRUCTION INC",99,"02859","1194 ARMORY PLACE SUITE D",null,null,"BRANDENBURG",null,"KY","40108","(270)422-4069"]
["MUDD FARM INC",99,"02678","625 SEIBERT CREEK LN",null,null,"SPRINGFIELD",null,"KY","40069","(859)481-8547"]
["MUNICIPAL & CONTRACTORS SEALING PRODUCTS",99,"03748","7740 REINHOLD DRIVE",null,null,"CINCINNATI",null,"OH","45237","(513)482-3300"]
["MURPHY CONCRETE CONSTRUCTION CO INC",99,"03150","601 SEGO ROAD",null,null,"MOUNT EDEN",null,"KY","40046","(502)477-5952"]
["MURPHY EXCAVATING LLC",99,"03781","9210 STATE ROUTE 56",null,null,"OWENSBORO",null,"KY","42301","(270)929-2477"]
["MURPHYS ASPHALT SEALING & STRIPING INC",99,"02785","289 MELTON RD",null,null,"BURKESVILLE",null,"KY","42717","(270)433-5822"]
["MURRAY PAVING INC",99,"01592","1161 STATE ROUTE 64 E",null,null,"MURRAY",null,"KY","42071","(270)753-0411"]
["MURTCO INC",99,"02576","815 ABELL ST",null,null,"PADUCAH",null,"KY","42003","(270)444-0679"]
["MUSIC CONSTRUCTION INC",99,"02157","2510 MARGARET ANN DRIVE",null,null,"MT. STERLING",null,"KY","40353-9725","(859)333-2545"]
["MW CONSTRUCTION LLC",99,"03713","94 BAYS BRANCH",null,null,"EAST POINT",null,"KY","41216","(606)263-2758"]
["MYERS FENCE LLC",99,"03111","5001 PARK CENTRAL",null,null,"NICHOLASVILLE",null,"KY","40356","(859)552-6775"]
["N & N CONTRACTING INC",99,"01800","P O BOX 1437",null,null,"MOUNT VERNON",null,"KY","40456","(606)256-5202"]
["N E S COMPANIES LP DBA INTERSTATE",99,"02584","1 JENNIFER LANE",null,null,"HUNTINGTON",null,"WV","25704","(304)453-6687"]
["N E S TRAFFIC SAFETY LP",99,"02707","4301 FIRST AVE",null,null,"NITRO",null,"WV","25143","(304)755-1200"]
["N F H INC",99,"02408","445 CROSS POINTE BLVD #110 BOX 5603",null,null,"EVANSVILLE",null,"IN","47716-5603","(812)476-3251"]
["N G PAINTING INC",99,"02262","313 MILL RUN",null,null,"KERRVILLE",null,"TX","78028-9339","(830)257-5940"]
["N H STONE INC",99,"00241","PO BOX 239",null,null,"SHARPSBURG",null,"KY","40374","(606)247-2311"]
["N I SPANOS PAINTING INC",99,"02244","P O BOX 10908",null,null,"MERRILLVILLE",null,"IN","46410","(219)662-9092"]
["N W K CONSTRUCTION INC",99,"02679","P O BOX 486",null,null,"HARRODSBURG",null,"KY","40330","(859)733-0763"]
["NAC HEAVY HIGHWAY INC",99,"02162","310 CUTTERS HILL CT",null,null,"LEXINGTON",null,"KY","40509","(859)263-3102"]
["NAC INC",99,"01782","276 BLUE SKY PARKWAY",null,null,"LEXINGTON",null,"KY","40509","(606)263-5503"]
["NALLY & GIBSON GEORGETOWN LLC DBA",99,"02892","100 FARMERS BANK DR  STE 400",null,null,"GEORGETOWN",null,"KY","40324","(502)868-0231"]
["NALLY & HAYDON INC AND SUBSIDIARIES",99,"00628","40 LUCKNOW COURT",null,null,"BARDSTOWN",null,"KY","40004-2113","(502)348-3926"]
["NALLY & HAYDON LLC AND SUBSIDIARIES",99,"02457","40 LUCKNOW COURT",null,null,"BARDSTOWN",null,"KY","40004-2113","(502)348-3926"]
["NATIONAL ENGINEERING & CONTRACTING",99,"00132","12608 ALAMEDA DRIVE",null,null,"STRONGSVILLE",null,"OH","44149","(440)238-3331"]
["NATIONAL ENVIRONMENTAL CONTRACTING INC",99,"03063","2660 TECHNOLOGY DR",null,null,"LOUISVILLE",null,"KY","40299","(502)261-0800"]
["NATIONAL GUNITE INC",99,"02839","1000 CIVIC CIRCLE",null,null,"LEWISVILLE",null,"TX","75067","(972)221-1979"]
["NATIONAL PROJECTS INC",99,"01829","P O BOX 11     720 PARK BLVD",null,null,"BOISE",null,"ID","83707","(208)386-6789"]
["NATIONWIDE FENCE COMPANY INC",99,"03425","7660 LAGRANGE ROAD",null,null,"SMITHFIELD",null,"KY","40068","(502)743-0077"]
["NATTCO INC",99,"03092","P O BOX 245",null,null,"STANVILLE",null,"KY","41659","(606)478-9488"]
["NATTCO INC J/V CROWD TRANSPORTERS  INC",99,"03652","P O BOX 245",null,null,"STANVILLE",null,"KY","41659","(606)478-9488"]
["NATURCHEM INC",99,"02936","270 BRUNER RD",null,null,"LEXINGTON",null,"SC","29072","(803)957-8989"]
["NATURCHEM WEST INC",99,"02756","3101 AMBROSE AVE",null,null,"NASHVILLE",null,"TN","37207","(615)228-5440"]
["NEWBRIDGE SERVICES INC",99,"03151","367 WEST SHORT STREET",null,null,"LEXINGTON",null,"KY","40507","(859)254-8622"]
["NICHOLSON CONSTRUCTION COMPANY",99,"01023","12 MCCLANE STREET",null,null,"CUDDY",null,"PA","15031","(412)221-4500"]
["NIKA CONTRACTING INC",99,"03390","4001 VIA CASSIA",null,null,"YOUNGSTOWN",null,"OH","44514","(330)318-8285"]
["NO LIMIT EXCAVATION & CONSTRUCTION LLC",99,"03819","470 BURNING FORK RD",null,null,"PIKEVILLE",null,"KY","41501","(606)471-5585"]
["NORTEX CONCRETE LIFT & STABILIZATION INC",99,"02940","P O BOX 4935",null,null,"FORT WORTH",null,"TX","76164","(817)831-1240"]
["NORTH STAR PAINTING COMPANY INC",99,"01513","3526 MCCARTNEY RD",null,null,"YOUNGSTOWN",null,"OH","44505","(330)743-2333"]
["NORTHEAST CONSTRUCTION COMPANY LLC",99,"03178","115 CREED CIRCLE",null,null,"CAMPBELL",null,"OH","44405","(330)755-3312"]
["NORWOOD CONSTRUCTION COMPANY INC",99,"00637","764 WESTLAND DRIVE",null,null,"LEXINGTON",null,"KY","40504","(606)255-6658"]
["NU STAR DISTRIBUTION CENTER INC",99,"02346","1522 WALNUT AVE",null,null,"EAST ST LOUIS",null,"IL","62207","(618)271-7959"]
["NU-TOP SEALERS INCORPORATED",99,"02401","HC 76 BOX 410",null,null,"GARRISON",null,"KY","41141","(606)757-4211"]
["NY-MAC ENTERPRISES INC",99,"03746","3415 S CREYTS ROAD",null,null,"LANSING",null,"MI","48917","(517)381-1928"]
["O C C I INC & SUBSIDIARIES",99,"02540","3200 COUNTY RD 257",null,null,"FULTON",null,"MO","65251","(573)642-6087"]
["OAKLEY BROTHERS CONSTUCTION INC",99,"02775","2730 STATE ROUTE 93 NORTH",null,null,"KUTTAWA",null,"KY","42055","(270)388-4952"]
["ODYSSEY CONTRACTING CORPORATION",99,"02268","P O BOX 97  2435 W PIKE STREET",null,null,"HOUSTON",null,"PA","15342","(724)745-1022"]
["OGLESBY CONSTRUCTION INC",99,"00640","1600 TOLEDO RD",null,null,"NORWALK",null,"OH","44857","(419)668-0418"]
["OHIO CONC SAWING & DRILLING-DAYTON",99,"02193","314  CONOVER",null,null,"FRANKLIN",null,"OH","45005","(513)746-8999"]
["OHIO VALLEY ASPHALT INC",99,"02083","P O BOX 200",null,null,"PARIS",null,"KY","40362-0200","(606)987-3670"]
["OHIO VALLEY ASPHALT LLC",99,"02395","PO BOX 200   395 N MIDDLETOWN ROAD",null,null,"PARIS",null,"KY","40361","(859)987-3670"]
["OHIO VALLEY J/V COMMERCIAL PAVERS",99,"02900","P O BOX 200",null,null,"PARIS",null,"KY","40362-0200"]
["OHIO VALLEY PIPELINE CONSTRUCTION INC",99,"02830","2717 KOTTER AVENUE",null,null,"EVANSVILLE",null,"IN","47715","(812)474-0189"]
["OLCO INC",99,"01899","24053 VOTE RD",null,null,"BATESVILLE",null,"IN","47006","(812)933-0205"]
["OLD HEADY CONSTRUCTION INC",99,"01565","217 CHEROKEE TERRACE",null,null,"FISHERVILLE",null,"KY","40023","(502)266-5475"]
["OLYMPIC PAINTING AND SHEETING CO INC",99,"00641","2649 BRUNSWICK  ROAD",null,null,"YOUNGSTOWN",null,"OH","44511","(303)792-7832"]
["OLYMPUS PAINTING CONTRACTORS INC",99,"02548","556 ANCLOTE RD",null,null,"TARPON SPRINGS",null,"FL","34689","(727)942-4149"]
["OLYMPUS PAINTING CONTRACTORS J/V SOUTHER",99,"03886","556 ANCLOTE RD",null,null,"TARPON SPRINGS",null,"FL","34689","(727)942-4149"]
["OLYMPUS PAINTING J/V MONOKO",99,"03620","556 ANCLOTE ROAD",null,null,"TARPON SPRINGS",null,"FL","34689","(727)942-4149"]
["OMEGA COATING & CONSTRUCTION LLC",99,"03805","118 EAST TARPON AVE SUITE 204",null,null,"TARPON SPRINGS",null,"FL","34689","(727)940-7423"]
["OMEGA DEMOLITION CORP",99,"03529","31W566 SPAULDING ROAD",null,null,"ELGIN",null,"IL","60120","(630)837-3000"]
["ONEAL LANDSCAPING COMPANY INC",99,"01884","532 HARRISON FERRY ROAD",null,null,"MCMINNVILLE",null,"TN","37110","(931)473-5786"]
["OOTEN COAL CORPORATION",99,"02845","P.O. BOX 2886",null,null,"PIKEVILLE",null,"KY","41502","(606)432-0361"]
["OOTEN CONSTRUCTION AND DESIGN INC",99,"01466","P O BOX 2886",null,null,"PIKEVILLE",null,"KY","41502","(606)432-0361"]
["OPPELT INC",99,"02733","4911 HAMBURG PIKE",null,null,"JEFFERSONVILLE",null,"IN","47130","(812)283-3886"]
["OR COMMUNICATIONS INC.",99,"02792","5400B LODEMA WAY",null,null,"LOUISVILLE",null,"KY","040219","(502)966-9292"]
["ORDERS CONSTRUCTION COMPANY INC & SUBSID",99,"00644","P O BOX 1448     501 6TH AVE",null,null,"SAINT ALBANS",null,"WV","25177","(304)722-4237"]
["ORICA USA INC W/O/S ORICA LIMITED",99,"03336","P O BOX 7",null,null,"CHARLESTOWN",null,"IN","47111","(812)256-7800"]
["OROURKE WRECKING COMPANY & SUBSIDIARIES",99,"02685","660 LUNKEN PARK DR",null,null,"CINCINNATI",null,"OH","45226","(513)871-1400"]
["ORR CONTRACTING INC",99,"02931","P O BOX 310",null,null,"ROBBINSVILLE",null,"NC","28771","(828)479-8868"]
["OTTE - HILLVIEW NURSERY INC",99,"02727","5710 SCOTTSVILLE ROAD",null,null,"BOWLING GREEN",null,"KY","42104","(270)781-3220"]
["OVERHEAD DOOR CO OF CAMPBELLSVILLE INC",99,"00638","P O BOX 1077  3616 OLD LEBANON ROAD",null,null,"CAMPBELLSVILLE",null,"KY","42719","(270)465-6616"]
["OVERHEAD DOOR OF EASTERN KENTUCKY LLC",99,"03531","86 N RICE ROAD",null,null,"BANNER",null,"KY","41603","(606)874-4262"]
["OVERLAY INC",99,"00808","P O BOX 133   11174 HWY 34",null,null,"MITCHELLSBURG",null,"KY","40452","(859)332-7860"]
["OWENS CHEVROLET DBA DIX RIVER STONE",99,"03552","376 SOMERSET STREET",null,null,"STANDFORD",null,"KY","40484","(606)365-7400"]
["OWENS EXCAVATING INC DIV OWENS CHEVROLET",99,"01379","2405 LEBANON ROAD",null,null,"DANVILLE",null,"KY","40422","(859)792-1901"]
["P & G CONST CO",99,"02755","1217 SLEEPY ACRES LANE",null,null,"HUNTINGTON",null,"WV","25704","(304)429-1663"]
["P & H STUCCO & CONSTRUCTION INC",99,"02242","1600 MEXICO AVENUE",null,null,"TARPON SPRINGS",null,"FL","34689","(727)937-5648"]
["P C I INTERNATIONAL INC",99,"03463","26 COOPER AVENUE",null,null,"TONAWANDA",null,"NY","14150","(716)834-0260"]
["P I A COMPANY INC",99,"02227","P O BOX 1590",null,null,"MARTIN",null,"KY","41649","(606)285-9472"]
["P K CONTRACTING INC",99,"02313","1965 BARRETT",null,null,"TROY",null,"MI","48084","(248)362-2130"]
["P N L INDUSTRIAL CORP",99,"02699","PO BOX 632",null,null,"CAMPBELL",null,"OH","44405","(330)750-0454"]
["PACE CONTRACTING LLC",99,"02336","15415 SHELBYVILLE RD",null,null,"LOUISVILLE",null,"KY","40245","(502)815-4142"]
["PACKS INC",99,"03567","75 BALDRIDGE RD",null,null,"MOREHEAD",null,"KY","40351","(606)784-4108"]
["PADGETT INC",99,"03546","901 EAST 4TH STREET",null,null,"NEW ALBANY",null,"IN","47150","(812)945-2391"]
["PAINT CITY CONTRACTORS INC",99,"02467","4027 EASTERN AVE  2ND FLOOR  PO BOX 8808",null,null,"BALTIMORE",null,"MD","21224","(410)276-8700"]
["PANNEX PAINTING COMPANY INC.",99,"02808","9400 SCHILLER BOULEVARD",null,null,"FRANKLIN PARK",null,"IL","60131","(847)288-9560"]
["PANTHER INDUSTRIAL PAINTING LLC",99,"02948","15790 SPRINGMILL DR",null,null,"MISHAWAKA",null,"IN","46545","(574)258-6032"]
["PARCO CONSTRUCTION INC",99,"01815","P O BOX 99339",null,null,"LOUISVILLE",null,"KY","40299","(502)266-7877"]
["PARCO CONSTRUCTORS GROUP LLC",99,"03719","P O BOX 99339",null,null,"LOUISVILLE",null,"KY","40269","(502)266-7877"]
["PARKS DRILLING COMPANY",99,"03152","5745 AVERY ROAD",null,null,"DUBLIN",null,"OH","43016","(614)761-7707"]
["PARKWAY CONSTRUCTION INC",99,"01583","P O BOX 388",null,null,"GREENVILLE",null,"KY","42345","(270)338-2300"]
["PARRISH CO INC",99,"01811","501 BETHLEHEM PIKE",null,null,"PARIS",null,"KY","40361","(859)987-3979"]
["PARSONS CONSTRUCTION GROUP INC",99,"03565","12250 N PECOS ST STE 500",null,null,"WESTMINSTER",null,"CO","80234","(303)566-1140"]
["PATRIOT CONSTRUCTION CO INC",99,"02484","35 DARIUS SULLIVAN ROAD",null,null,"LICK CREEK",null,"KY","41540","(606)835-3450"]
["PATTON & SHEILDS EXCAVATING INC",99,"02660","785 PATTON ROAD",null,null,"BROWNSVILLE",null,"KY","42210","(270)749-5401"]
["PAUL ELZA DBA ELZA RECLAMATION",99,"02332","442 WEST HIGHWAY 30",null,null,"EAST BERNSTADT",null,"KY","40729","(606)843-7458"]
["PAUL MICHELS AND SONS INC",99,"00118","1547 YOUELL RD",null,null,"HEBRON",null,"KY","41048","(859)331-7118"]
["PAUL RACK EXCAVATING AND PAVING COMPANY",99,"02499","5115 NORTH BEND ROAD",null,null,"CINCINNATI",null,"OH","45211","(513)661-3900"]
["PAVCON CONST CO INC DBA COMM PAVING &CON",99,"01430","426 WEST GARDNER",null,null,"MAYFIELD",null,"KY","42066","(502)247-7503"]
["PAVEMENT MAINTENANCE SYSTEMS LLC",99,"03751","384 INDUSTRIAL PKWY",null,null,"IMLAY CITY",null,"MI","48444","(810)724-4767"]
["PAVEMENT MAINTENANCE UNLIMITED LLC",99,"03539","P O BOX 1296",null,null,"DENHAM SPRINGS",null,"LA","70727","(228)452-7772"]
["PAVEMENT MILLING SERVICES INC",99,"01661","P O BOX 335",null,null,"CHARLESTOWN",null,"IN","47111-0335","(812)256-7168"]
["PAVEMENT SPECIALISTS INCORPORATED",99,"00651","P O BOX 349",null,null,"NAPOLEON",null,"OH","43545-0349","(419)599-2065"]
["PAVILION DRAINAGE SUPPLY CO INC",99,"03072","P O BOX 219",null,null,"PAVILION",null,"NY","14525","(585)584-3261"]
["PAVING SOLUTIONS LLC",99,"03861","2711 LOUISA ST",null,null,"CATLETTSBURG",null,"KY","41129","(304)521-2379"]
["PBTHNOJJ CONSTRUCTION COMPANY INC",99,"01698","2670 NEW PAINTSVILLE ROAD",null,null,"SALYERSVILLE",null,"KY","41465","(606)349-1913"]
["PCL CIVIL CONSTRUCTION INC",99,"03474","5440 WADE PARK BLVD STE 102",null,null,"RALEIGH",null,"NC","27607","(919)859-5210"]
["PCL CIVIL CONSTRUCTORS INCORPORATED",99,"01882","2000 S COLORADO BLVD  SUITE # 200",null,null,"DENVER",null,"CO","80222","(303)639-4917"]
["PDM BRIDGE LLC WOS PDM LLC",99,"02749","P O BOX 1545 2800 MELBY ST",null,null,"EAU CLAIRE",null,"WI","54703","(715)835-2250"]
["PEARSON SERVICE INC",99,"02915","1728 CHESTER ROAD  APT# 2",null,null,"LOUISVILLE",null,"KY","40216","(502)448-2150"]
["PENHALL COMPANY & SUBSIDIARIES",99,"02461","7501 ESTERS BLVD  STE 150",null,null,"IRVING",null,"TX","76053","(714)627-9510"]
["PENN LINE SERVICE INC AND SUBSIDIARIES",99,"01325","P O BOX 462",null,null,"SCOTTDALE",null,"PA","15683","(724)887-9110"]
["PENNYRILE ASPHALT LLC",99,"03168","1555 OLD CONCORD LANE",null,null,"HOPKINSVILLE",null,"KY","42240","(270)886-1411"]
["PENROD LUMBER CO INC",99,"03203","P O BOX 570",null,null,"SIMPSONVILLE",null,"KY","40067","(502)722-8825"]
["PENZEL CONSTRUCTION COMPANY INC",99,"00178","PO BOX 330",null,null,"JACKSON",null,"MO","63755-0330","(573)243-3526"]
["PERFORMANCE HYDROBLASTING INC",99,"03104","11957 WHITMAN ROAD",null,null,"DOYLESTOWN",null,"OH","44230","(330)658-6438"]
["PERFORMANCE SITE MANAGEMENT INC",99,"02574","2323 PERFORMANCE PARKWAY",null,null,"COLUMBUS",null,"OH","43207","(614)445-7161"]
["PERINI CORPORATION",99,"00656","73 MT. WAYTE AVENUE",null,null,"FRAMINGHAM",null,"MA","01701","(508)628-2000"]
["PERK INVESTMENTS LLC",99,"03577","650 COLSBY ROAD",null,null,"CAMPBELLSVILLE",null,"KY","42718","(270)789-7538"]
["PETERS CONTRACTING INC",99,"01662","PO BOX 99     2960 FAIRVIEW DR",null,null,"OWENSBORO",null,"KY","42303","(270)926-4520"]
["PETERSON BECKNER INDUSTRIES INC",99,"02008","1310 SPEARS ROAD",null,null,"HOUSTON",null,"TX","77067","(281)872-7722"]
["PETERSON CONTRACTORS INC & SUBS",99,"02947","P O BOX A",null,null,"REINBECK",null,"IA","50669","(319)345-2713"]
["PEYTONS BARRICADE & SIGN COMPANY LLC",99,"03808","814 SPRING ST",null,null,"JEFFERSONVILLE",null,"IN","47130","(812)283-6461"]
["PHANTOM WIRING LLC",99,"02718","1040 GARVIN LANE",null,null,"BOWLING GREEN",null,"KY","42101","(270)843-6956"]
["PHILLIPS & JORDAN INCORPORATED",99,"00660","10201 PARKSIDE DR SUITE 300",null,null,"KNOXVILLE",null,"TN","37922","(865)392-3000"]
["PHILLIPS BROTHERS CONSTRUCTION LLC",99,"03117","120 INSANITY LN",null,null,"VINE GROVE",null,"KY","40175","(270)877-6303"]
["PHILLIPS CONSTRUCTION LLC",99,"02983","3649 US HWY 41A",null,null,"HENDERSON",null,"KY","42420","(270)830-6773"]
["PHILMOR CONTRACTING INC",99,"02806","8363 VETERANS MEMORIAL HWY",null,null,"SHARPSBURG",null,"KY","40374","(606)247-2413"]
["PHOENIX CONTRACTING CORPORATION",99,"02116","P O BOX 2137",null,null,"PIKEVILLE",null,"KY","41520","(606)835-7068"]
["PHOENIX ENGINEERING AND CONSTRUCTION",99,"01029","11172 EAST HWY 60",null,null,"SALT LICK",null,"KY","40371","(606)683-2293"]
["PHOENIX LANDSCAPING LLC",99,"02918","2507 FORTHMANN PLACE",null,null,"CINCINNATI",null,"OH","45211","(513)604-6601"]
["PINNACLE DESIGN / BUILD GROUP INC",99,"03489","5995 PARKWAY NORTH BLVD",null,null,"CUMMING",null,"GA","30040","(770)205-4080"]
["PINNACLE GRINDING AND GROOVING LLC",99,"03588","13375 ROCK CROSSING DRIVE",null,null,"RENO",null,"NV","89511","(253)312-7983"]
["PINNACLE INC",99,"03272","P O BOX 352",null,null,"BENTON",null,"KY","42025","(270)527-1720"]
["PIPE EYES LLC",99,"03736","2393 ALUMNI DRIVE SUITE 100",null,null,"LEXINGTON",null,"KY","40517","(859)983-3873"]
["PIPECHECK LLC",99,"03211","325 R EMMETT AVE",null,null,"BOWLING GREEN",null,"KY","42101","(270)303-1028"]
["PIPELAYERS INC",99,"02925","296 SNAG CREEK ROAD",null,null,"FOSTER",null,"KY","41043","(606)747-5500"]
["PIPELINE AND DRAINAGE CONSULTANTS LLC",99,"03758","P O BOX 173173",null,null,"FORT MITCHELL",null,"KY","41017","(859)393-4356"]
["PITT DES MOINES INC",99,"00664","TOWN CTR 1 1450 LAKE ROBBINS DR  STE 400",null,null,"THE WOODLANDS",null,"TX","77380","(281)765-4600"]
["PLANET INC",99,"02822","920 N FRONT ST",null,null,"ROCKWOOD",null,"TN","37854","(865)354-0605"]
["POLICE SECURITY SERVICES LLC",99,"03622","10705 GRAPE ARBOR DR",null,null,"LOUISVILLE",null,"KY","40272","(502)619-2833"]
["POLLARD & SONS EXCAVATING LLC",99,"03475","222 POND RIVER COLLIERS RD",null,null,"MADISONVILLE",null,"KY","42431","(270)824-8499"]
["POLY CARB INC",99,"02804","33095 BAINBRIDGE ROAD",null,null,"SOLON",null,"OH","44139","(440)248-1223"]
["POWELL DYKES DBA DYKES & SON",99,"02591","825 MAUDE ETTER ROAD",null,null,"MCMINNVILLE",null,"TN","37110","(931)668-8833"]
["POWERS ELECTRIC & PLUMBING CO INC",99,"01089","7016 W HIGHWAY 22",null,null,"CRESTWOOD",null,"KY","40014","(502)241-8541"]
["POZZOLANIC CONTRACTING & SUPPLY CO INC",99,"03355","P O BOX 14186",null,null,"KNOXVILLE",null,"TN","37914","(865)225-0090"]
["PRAJNA DESIGN & CONSTRUCTION INC",99,"03606","P O BOX 54443",null,null,"LEXINGTON",null,"KY","40555","(859)873-6477"]
["PRATTS LAWN & LANDSCAPE INC",99,"03704","P O BOX 1029",null,null,"GEORGETOWN",null,"KY","40324","(502)570-0910"]
["PRECISION APPROACH LLC",99,"03442","874 HARMONY RD",null,null,"EATONTON",null,"GA","31024","(706)485-7201"]
["PRECISION CONTRACTING INC",99,"02688","7625 NEW GLENDALE ROAD",null,null,"GLENDALE",null,"KY","42740","(270)369-9537"]
["PRECISION CONTRACTING SERVICES INC",99,"03495","15834 GUILD COURT",null,null,"JUPITER",null,"FL","33478","(561)743-9737"]
["PRECISION ERECTION COMPANY INC",99,"03753","P O BOX 559    90 KEY VILLAGE ROAD",null,null,"RUSSELL SPRINGS",null,"KY","42642","(270)866-5107"]
["PRECISION MINE REPAIR INC",99,"03660","705 WEST MAIN STREET",null,null,"RIDGEWAY",null,"IL","62972","(618)272-7220"]
["PRECISION SCAN LLC",99,"02418","PO BOX 1183",null,null,"THOMASVILLE",null,"NC","27361","(336)475-7550"]
["PRESSURE CONCRETE INCORPORATED",99,"02810","4158 MUSGROVE DRIVE",null,null,"FLORENCE",null,"AL","35630","(256)764-5941"]
["PRESTRESS SERVICES INDUSTRIES LLC",99,"03153","216 FOUNTAIN COURT SUITE 250",null,null,"LEXINGTON",null,"KY","40509","(859)299-0461"]
["PRICE BACKHOE SERVICE INC",99,"02978","P O BOX 310",null,null,"WINFIELD",null,"TN","37892","(423)286-7362"]
["PRIDDYS CONCRETE CONSTRUCTION INC",99,"03532","11003 RAIDER HOLLOW ROAD",null,null,"UPTON",null,"KY","42784","(270)369-9641"]
["PRIDEMORE CONSTRUCTION COMPANY INC",99,"00126","P O BOX 755  71 N SEVENTH STREET",null,null,"SHELBYVILLE",null,"KY","40065","(502)633-4356"]
["PROBUS CONSTRUCTION INC",99,"02406","9603 MARY DELL LANE 40291-1166",null,null,"LOUISVILLE",null,"KY","40207","(502)239-6322"]
["PRODIGY CONSTRUCTION CORPORATION INC",99,"03737","11106 DECIMAL DRIVE",null,null,"LOUISVILLE",null,"KY","40299","(502)618-1816"]
["PROFESSIONAL CONCRETE CUTTING & DRILLING",99,"03759","14124 E STATE RD 46",null,null,"COLUMBUS",null,"IN","47203","(812)546-0421"]
["PROFESSIONAL FENCE CO INC",99,"01663","P O BOX 143",null,null,"CRESTWOOD",null,"KY","40014","(502)222-0513"]
["PROFESSIONAL FENCE PROPERTIES LLC DBA",99,"02615","PO BOX 143",null,null,"CRESTWOOD",null,"KY","40014","(502)222-0513"]
["PROJECT HEATING AND COOLING CO",99,"03760","P O BOX 43669",null,null,"LOUISVILLE",null,"KY","40253","(502)245-6683"]
["PRO-MARK INC",99,"02480","P O BOX 1421",null,null,"MOUNT STERLING",null,"KY","40353","(859)497-0533"]
["PROMISE LAND TREE SERVICE LLC",99,"03667","2033 STATE RT 373 N",null,null,"EDDYVILLE",null,"KY","42038","(270)625-8733"]
["PROSHOT CONCRETE INC",99,"03011","4158 MUSGROVE DR",null,null,"FLORENCE",null,"AL","35630","(256)764-5941"]
["PROTACKIL LLC",99,"03825","P O BOX 649    1353 EAST ST",null,null,"MORRIS",null,"IL","60450","(815)585-7111"]
["PROTECTION SERVICES INC",99,"03727","1011 MUMMA ROAD SUITE 101",null,null,"LEMOYNE",null,"PA","17043","(717)236-9307"]
["PROTECTION SERVICES INC WOS STABLER",99,"01503","635 LUCKNOW ROAD",null,null,"HARRISBURG",null,"PA","17110","(717)236-9307"]
["PRUITT CONSTRUCTION & EXCAVATION LLC",99,"03536","534 S BUELL STREET",null,null,"PERRYVILLE",null,"KY","40468","(859)326-0044"]
["PRUS CONSTRUCTION COMPANY",99,"00671","5325 WOOSTER RD",null,null,"CINCINNATI",null,"OH","45226","(513)321-7774"]
["PSD EXECUTIVE PROTECTION SPECIALISTS LLC",99,"03786","P O BOX 206163",null,null,"LOUISVILLE",null,"KY","40250","(502)822-6617"]
["PYRAMID INC DBA PYRAMID CONTRACTORS INC",99,"02752","56 N PEARL ST",null,null,"COLUMBIANA",null,"OH","44408","(330)482-4360"]
["QUALIFIED PAVING LLC",99,"02630","1013 OWENSBORO ROAD",null,null,"LEITCHFIELD",null,"KY","42754","(270)259-3076"]
["QUALITY 1 AUTO SALES LLC",99,"03799","2001 W US 150 BYPASS HWY",null,null,"SPRINGFIELD",null,"KY","40069","(859)336-1234"]
["QUALITY LANDSCAPING LLC",99,"03741","1831 BETHEL ROAD",null,null,"NICHOLASVILLE",null,"KY","40356","(859)885-8313"]
["QUALITY PAINTING & DECORATING INC",99,"00673","1258 BENNY SHORT ROAD",null,null,"JASPER",null,"AL","35504","(205)384-4513"]
["QUALITY PAINTING COMPANY INC",99,"02237","P O BOX 591       247 1/2 ROBINSON ROAD",null,null,"CAMPBELL",null,"OH","44405","(330)755-4333"]
["QUALITY SIGNS & SAFETY PRODUCTS",99,"02478","1648 LAGRANGE ROAD",null,null,"NEW CASTLE",null,"KY","40050","(502)845-1950"]
["QUEEN CITY BLACKTOP CO INC",99,"02981","2130 OSTERFELD STREET",null,null,"CINCINNATI",null,"OH","45214","(513)251-8400"]
["QUEEN CITY RAILROAD CONSTRUCTION INC",99,"00672","12276 SAN JOSE BLVD STE 525",null,null,"JACKVILLE",null,"FL","32223","(904)240-1020"]
["R & B SEALING & STRIPING  OF",99,"02761","8243 W KY 9",null,null,"VANCEBURG",null,"KY","41179","(606)796-0019"]
["R & D RAILROAD CONSTRUCTION INC",99,"03363","P O BOX 1299",null,null,"OLIVE HILL",null,"KY","41164","(606)286-0027"]
["R & M FENCE AND CONSTRUCTION INC",99,"03800","11041 DIXIE HWY",null,null,"WALTON",null,"KY","41094","(859)485-9198"]
["R & N CONTRACTING INC",99,"03299","115 SUNCREST COVE",null,null,"IRVINE",null,"KY","40336","(606)723-5273"]
["R & R BLACKTOPPING INC",99,"01977","P O BOX 110",null,null,"FALMOUTH",null,"KY","41040","(859)654-6154"]
["R & R MOWERS INC",99,"01907","5217 N    L & N TURNPIKE",null,null,"HODGENVILLE",null,"KY","42748","(270)325-3070"]
["R A KNAPP CONSTRUCTION INC",99,"03683","12209 W 88TH ST",null,null,"LENEXA",null,"KS","66215","(913)287-8700"]
["R AND J HORIZONTAL BORING LLC",99,"03617","175 JESSELIN DR",null,null,"LEXINGTON",null,"KY","40503","(859)576-0995"]
["R B JERGENS CONTRACTORS INC",99,"02470","PO BOX 309 11418 N DIXIE DRIVE",null,null,"VANDALIA",null,"OH","45377","(937)669-9799"]
["R C I  INC",99,"02516","812 LYNDON LANE",null,null,"LOUISVILLE",null,"KY","40222","(502)327-7848"]
["R E B T CONSTRUCTION LLC",99,"03127","2546 HATHAWAY ROAD",null,null,"UNION",null,"KY","41091","(859)380-9413"]
["R E HUBER",99,"02411","P O BOX 171",null,null,"WASHINGTON",null,"KY","41096","(606)759-7747"]
["R E HUBER CONSTRUCTION INC",99,"02621","2023 US HWY 68",null,null,"MAYSVILLE",null,"KY","41056","(606)759-7747"]
["R E HUFF INC",99,"02367","9925 NAPLES ROAD",null,null,"ASHLAND",null,"KY","41102","(606)928-2102"]
["R E MOORE & SONS INC",99,"01611","219 EAST BROADWAY",null,null,"MADISONVILLE",null,"KY","42431","(270)821-3000"]
["R G F INC",99,"02409","PO BOX 447",null,null,"FLEMINGSBURG",null,"KY","41041","(606)845-0901"]
["R H BUCHANAN CONSTRUCTION CO INC",99,"01706","206 UHL ROAD",null,null,"COLD SPRING",null,"KY","41076","(606)781-4312"]
["R I E PAINTING INCORPORATED",99,"02391","640 SOUTH MAPLE STREET",null,null,"LANCASTER",null,"OH","43130","(740)654-0740"]
["R J CONSTRUCTION INC",99,"01798","61 CONSTRUCTION LANE",null,null,"VANCEBURG",null,"KY","41179","(606)796-3014"]
["R J CORMAN RAILROAD CO/  MATERIAL SALES",99,"02417","P O BOX 788",null,null,"NICHOLASVILLE",null,"KY","40356","(606)885-9457"]
["R L CAUDILL CONSTRUCTION INC",99,"02601","151 DARNELL  DR",null,null,"OWINGSVILLE",null,"KY","40360","(606)674-6270"]
["R P FOSTER INC",99,"03496","P O BOX 488",null,null,"SCOTT DEPOT",null,"WV","25560","(304)755-8241"]
["R R DAWSON BRIDGE COMPANY LLC",99,"02370","PO BOX 28",null,null,"LEXINGTON",null,"KY","40588","(859)269-4644"]
["R RISNER CONSTRUCTION INC",99,"02407","328 DIXIE LANE",null,null,"WEST LIBERTY",null,"KY","41472","(606)743-4776"]
["R W DAVIDSON CONTRACTING LLC",99,"03838","216 HANNAH RD",null,null,"SHELBYVILLE",null,"KY","40065","(502)220-8027"]
["RACK & BALLAUER EXCAVATING CO INC",99,"03902","11321 PADDYS RUN RD",null,null,"HAMILTON",null,"OH","45013","(513)481-8700"]
["RAGLAND QUARRY INC",99,"02518","1792 OWENSBORO ROAD",null,null,"LEITCHFIELD",null,"KY","42754","(270)259-2000"]
["RAGLE INC",99,"02757","PO BOX 444",null,null,"NEWBURGH",null,"IN","47629","(812)853-9558"]
["RAILROAD CONSTRUCTION COMPANY INC",99,"02746","75-77 GROVE STREET",null,null,"PATERSON",null,"NJ","07503","(973)684-0362"]
["RAIZOR GENERAL CONTRACTORS",99,"02426","87 CLAY VILLAGE ROAD",null,null,"SHELBYVILLE",null,"KY","40065","(502)633-2341"]
["RAM CONSTRUCTION SERVICES OF MICHIGAN",99,"03142","13800 ECKLES RD",null,null,"LIVONIA",null,"MI","48150","(734)464-3800"]
["RAM ENGINEERING & CONSTRUCTION INC",99,"01342","3208 WOODLAND AVENUE",null,null,"LOUISVILLE",null,"KY","40211","(502)778-6484"]
["RAME CONTRACTING LLC",99,"03305","P O BOX 293",null,null,"SPRINGFIELD",null,"KY","40069","(859)336-6000"]
["RAMPART HYDRO SERVICES LP",99,"03382","530 MOON CLINTON RD",null,null,"CORAOPOLIS",null,"PA","15108","(412)262-4511"]
["RANDLE-DAVIES CONSTRUCTION COMPANY INC",99,"01674","#1 MILLCREEK PARK",null,null,"FRANKFORT",null,"KY","40601","(502)695-2255"]
["RANDLE-DAVIES CONSTRUCTION COMPANY LLC",99,"03585","#1 MILL CREEK PARK",null,null,"FRANKFORT",null,"KY","40601","(502)695-2255"]
["RANGASWAMY & ASSOCIATES INC",99,"01900","304 WEST LIBERTY STREET    SUITE # 420",null,null,"LOUISVILLE",null,"KY","40202","(502)589-2212"]
["RANGER CONSTRUCTION SERVICES INC",99,"02874","980 HELEN RUTH DR",null,null,"FT. WRIGHT",null,"KY","41017","(859)960-0424"]
["RANGER STEEL INC",99,"03725","1121 OLD JERSEY RIDGE ROAD",null,null,"MAYSVILLE",null,"KY","41056","(606)564-9521"]
["RAY BELL CONSTRUCTION COMPANY INC",99,"02692","PO BOX 363",null,null,"BRENTWOOD",null,"TN","37024","(615)373-4343"]
["RAY C HENSLEY INC",99,"02396","3790 CRABILL ROAD",null,null,"SPRINGFIELD",null,"OH","45502","(937)323-3040"]
["RAY L  GOSSETT",99,"02425","PO BOX 313",null,null,"CAVE CITY",null,"KY","42127","(270)773-3622"]
["RAYCON LLC",99,"03749","135 REDBUD DRIVE",null,null,"HODGENVILLE",null,"KY","42748","(270)325-3521"]
["RB PAVING AND CONSTRUCTION LLC WOS STONE",99,"03859","P O BOX 388    200 S CHERRY ST",null,null,"GREENVILLE",null,"KY","42345","(270)338-2300"]
["RB SOUTH INC",99,"03738","3445 PIEDMONT CIRCLE",null,null,"ERLANGER",null,"KY","41018","(513)738-7000"]
["RCI CONTRACTING INC",99,"03647","P O BOX 2244",null,null,"CLARKVILLE",null,"IN","47131","(812)246-5711"]
["READY ELECTRIC COMPANY INC",99,"03473","3300 GILMORE INDUSTRIAL BLVD",null,null,"LOUISVILLE",null,"KY","40213","(502)893-2511"]
["RECTOR EXCAVATING INC",99,"03754","9561 E BEND RD",null,null,"BURLINGTON",null,"KY","41005","(859)743-5681"]
["RECYCLED ROADWAY INC",99,"02464","P O BOX 21548",null,null,"SOUTH EUCLID",null,"OH","44121","(216)382-7688"]
["RED RIVER RANCH INC",99,"02764","1499 MAPLE STREET",null,null,"STANTON",null,"KY","40380","(606)663-9625"]
["RED RIVER RANCH LLC",99,"03356","1499 MAPLE STREET",null,null,"STANTON",null,"KY","40380","(606)663-9625"]
["REDSTONE INTERNATIONAL INC",99,"03837","1200 E NATIONAL PIKE",null,null,"SCENERY HILL",null,"PA","15360","(724)439-1500"]
["REINTHALER AND SONS LLC",99,"03312","530 MIDDLE FORK",null,null,"HAGERHILL",null,"KY","41222","(606)297-6730"]
["REINTHALER AND SONS SAWMILL",99,"03261","530 MIDDLE FORK",null,null,"HAGERHILL",null,"KY","41222","(606)297-6730"]
["RELIABLE GLAZING CONTRACTORS INC",99,"02777","P O BOX 1469    813 CLAY ST",null,null,"BOWLING GREEN",null,"KY","42102","(270)843-3979"]
["REMAC INC",99,"03402","P O BOX 9   20103 GOVERNOR HARRISON PKWY",null,null,"FREEMAN",null,"VA","23856","(434)634-2111"]
["REMBCO GEOTECHNICAL CONTRACTORS INC",99,"03194","P O BOX 23009",null,null,"KNOXVILLE",null,"TN","37933","(865)671-2925"]
["RENFRO EQUIPMENT INC",99,"02511","1740 CONTINENTAL DRIVE",null,null,"MADISONVILLE",null,"KY","42431","(270)821-6742"]
["RENFRO MANAGEMENT INC",99,"03452","1740 CONTINENTAL DRIVE",null,null,"MADISONVILLE",null,"KY","42431","(270)821-6742"]
["RENNER & SONS INCORPORATED",99,"03196","517 BLUE SKY PARKWAY",null,null,"LEXINGTON",null,"KY","40509","(859)263-7625"]
["REVELL CONSTRUCTION COMPANY INC",99,"03223","P O BOX 836",null,null,"UNION CITY",null,"TN","38281","(731)885-3555"]
["REYNOLDS SEALING AND STRIPING INC",99,"02050","P O BOX 1558",null,null,"BOWLING GREEN",null,"KY","42102","(270)781-6609"]
["REYNOLDS-CENTRAL SEAL A JOINT VENTURE",99,"03634","720 BEECH STREET",null,null,"BOWLING GREEN",null,"KY","42101","(270)781-6609"]
["RICHARD GOETTLE INC & SUBSIDIARY",99,"01028","12071 HAMILTON AVE",null,null,"CINCINNATI",null,"OH","45231","(513)825-8100"]
["RICHARDSON CONTRACTING INC",99,"01902","P O BOX 250",null,null,"OWENTON",null,"KY","40359","(502)484-5062"]
["RICK STUTTS DBA STUTTS FORESTRY SERVICES",99,"02647","377 WHISPERING HILLS ROAD",null,null,"MARTIN",null,"TN","38237","(731)799-9024"]
["RIDDELL CONSTRUCTION INC",99,"03706","4245 RICHMOND ROAD",null,null,"IRVINE",null,"KY","40336","(606)723-5800"]
["RIEGLER BLACKTOP INC",99,"00837","165 WEAVER RD",null,null,"FLORENCE",null,"KY","41042","(859)371-8122"]
["RIETH-RILEY CONSTRUCTION CO INC",99,"00179","P O BOX 477",null,null,"GOSHEN",null,"IN","46527","(574)875-5183"]
["RIFLE COAL COMPANY",99,"01420","P O BOX 369",null,null,"WEST LIBERTY",null,"KY","41472","(606)743-7177"]
["RIFLE COAL COMPANY LLC",99,"02743","PO BOX 369",null,null,"WEST LIBERTY",null,"KY","41472","(606)743-7177"]
["RIGGS DEMOLITION COMPANY",99,"02328","901 DUMESNIL STREET",null,null,"LOUISVILLE",null,"KY","40203","(502)634-5514"]
["RIO GRANDE FENCE CO",99,"03424","137 S FORBES RD",null,null,"LEXINGTON",null,"KY","40511","(859)263-7944"]
["RITE LITE SIGNS INC",99,"03896","1000 BISCAYNE DR",null,null,"CONCORD",null,"NC","28027","(704)788-7097"]
["RITE WAY FENCE INC",99,"03224","6539 BURROUGHS AVE",null,null,"STERLING HEIGHTS",null,"MI","48314","(586)262-3730"]
["RIVER TOWN CONST LLC DBA RIVER TOWN",99,"03059","P O BOX 444",null,null,"NEWBURGH",null,"IN","47629","(812)853-8122"]
["RIVERSIDE PAVING & CONTRACTING INC",99,"00689","P O BOX 36386",null,null,"LOUISVILLE",null,"KY","40233","(502)368-4484"]
["RIVERVIEW EXCAVATION",99,"03056","455 NOAH STEENBERGEN ROAD",null,null,"AUSTIN",null,"KY","42123","(270)434-4993"]
["RIVERVIEW EXCAVATION LLC",99,"03394","455 NOAH STEENBERGEN ROAD",null,null,"AUSTIN",null,"KY","42123","(270)434-4993"]
["RLA INVESTMENTS INC WOS RLA HOLDCO INC",99,"02885","389 S WAYNE AVE",null,null,"CINCINNATI",null,"OH","45215","(513)554-1453"]
["RMD HOLDINGS LTD",99,"02987","69951 LOWE PLANK RD",null,null,"RICHMOND",null,"MI","48062","(586)749-6900"]
["RMI WORLDWIDE LLC",99,"03553","10777 BARKLEY ST SUITE 200",null,null,"OVERLAND PARK",null,"KS","66211","(816)931-3111"]
["ROAD BUILDERS INC",99,"01639","P O BOX 388",null,null,"GREENVILLE",null,"KY","42345","(270)338-2300"]
["ROAD BUILDERS LLC",99,"02760","PO BOX 388",null,null,"GREENVILLE",null,"KY","42345","(270)338-2300"]
["ROAD BUILDERS LLC J/V CROWN CONTRACTING",99,"03841","P O BOX 388     200 S CHERRY ST",null,null,"GREENVILLE",null,"KY","42345","(270)338-2300"]
["ROAD CONSTRUCTION AHEAD INC",99,"02973","936 WEEPING WILLOW LN",null,null,"MAINEVILLE",null,"OH","45039","(513)774-0429"]
["ROAD RUNNER SAFETY SERVICES INC",99,"02609","P O BOX 552 10995 US HWY 61 N",null,null,"JACKSON",null,"MO","63755","(573)833-9983"]
["ROAD WORX INC",99,"03827","5651 SOUTH NATIONAL DR",null,null,"KNOXVILLE",null,"TN","37914","(865)765-0008"]
["ROADSAFE TRAFFIC SYSTEMS INC & SUBS",99,"03098","5180 COMMERCE DR",null,null,"YORK",null,"PA","17408","(717)715-1888"]
["ROADWORKS INC",99,"02778","502 MARYLAND COURT",null,null,"ELIZABETHTOWN",null,"KY","42701","(270)737-8059"]
["ROBERT & CASSIE CONSTRUCTION COMPANY INC",99,"03350","P O BOX 70",null,null,"GLADEVILLE",null,"TN","37071","(615)449-3540"]
["ROBERT CLEAR COAL CORPORATION",99,"02375","PO BOX 1385",null,null,"LA FOLLETTE",null,"TN","37766","(423)562-6447"]
["ROBERT GEHRING SR D/B/A BOBBY GEHRING",99,"01874","PO BOX 662",null,null,"MONTICELLO",null,"KY","42633","(606)348-6272"]
["ROBERT H WARD & ASSOCIATES INC",99,"03349","3300 HOLEMAN AVE",null,null,"CHICAGO HEIGHTS",null,"IL","60411","(708)756-0767"]
["ROBERT M. HUDGINS",99,"02887","1078 LEESBURG RD",null,null,"GEORGETOWN",null,"KY","40324","(502)863-1457"]
["ROBERT OSTERHUES",99,"02895","380 WARD-KOEBEL RD",null,null,"OREGONIA",null,"OH","45054","(937)289-2104"]
["ROBERT TERRY INC",99,"01934","PO BOX 369",null,null,"CALVERT CITY",null,"KY","42029","(270)395-8313"]
["ROBERT W BRITZ PAINTING COMPANY INC",99,"02531","14272 FRAZEE ROAD",null,null,"DIVERNON",null,"IL","62530","(217)628-3511"]
["ROBERTS CONSTRUCTION COMPANY",99,"00811","P O BOX 610",null,null,"LOUISA",null,"KY","41230","(304)648-7131"]
["ROBERTSON CONTRACTORS INC",99,"03346","1909 SOUTH WESTWOOD BLVD",null,null,"POPLAR BLUFF",null,"MO","63901","(573)785-0880"]
["ROBERTSON INC BRIDGE AND GRADING",99,"01467","P O BOX 880",null,null,"POPLAR BLUFF",null,"MO","63902","(573)686-2464"]
["ROBINSON EQUIPMENT RENTAL  INC",99,"01176","PO BOX 2023",null,null,"ASHLAND",null,"KY","41105-2023","(606)739-5139"]
["ROBINSON PIPE CLEANING COMPANY",99,"03650","2656 IDLEWOOD RD",null,null,"PITTSBURG",null,"PA","15205","(412)921-2100"]
["ROCK & WATER CREATIONS INC",99,"03031","6717 W HIGHWAY 42",null,null,"GOSHEN",null,"KY","40026","(502)228-7710"]
["ROCK SOLUTIONS LLC",99,"03596","2006 EDMONTON RD",null,null,"TOMPKINSVILLE",null,"KY","42167","(270)487-1784"]
["ROD-TECHS INC",99,"03860","P O BOX 101",null,null,"MILFORD",null,"OH","45150","(513)319-2187"]
["ROE ENTERPRISES INC DBA SWARTZ PIPELINE",99,"02269","P O BOX 44",null,null,"OLYMPIA",null,"KY","40358","(606)674-3125"]
["ROEDERER CONSTRUCTION INC",99,"03782","2150 ALLEN LANE",null,null,"LA GRANGE",null,"KY","40031","(502)225-0033"]
["ROGERS GROUP INC",99,"00818","P O BOX 1045",null,null,"HOPKINSVILLE",null,"KY","42241","(270)886-3344"]
["ROHRSCHEIB SONS CAISSONS INC",99,"03154","56085 GRAND RIVER AVE",null,null,"NEW HUDSON",null,"MI","48165","(248)437-2005"]
["ROMAC INC",99,"01494","136 OUTER LOOP  PO BOX 14098",null,null,"LOUISVILLE",null,"KY","40214-0098","(502)361-7333"]
["RON ELDRIDGE EXCAVATING INC",99,"03771","1337 S MAIN ST",null,null,"NICHOLASVILLE",null,"KY","40356","(859)887-2620"]
["RONALD B JENKINS DBA RONS CONCRETE",99,"03258","458 COLBY ROAD",null,null,"CYNTHIANA",null,"KY","41031","(859)234-0864"]
["RONNIE MULLINS & SONS INC",99,"02217","P O BOX  427",null,null,"ELKHORN CITY",null,"KY","41522","(606)754-8969"]
["RONS CONCRETE LLC",99,"03507","458 COLBY ROAD",null,null,"CYNTHIANA",null,"KY","41031","(859)234-0864"]
["ROSCH COMPANY LLC",99,"03239","406 E WABASH AVE",null,null,"O' FALLON",null,"MO","63366","(636)978-7770"]
["ROSE CONSTRUCTION COMPANY INC",99,"00190","P O BOX 309  3016 NEW HAVEN ROAD",null,null,"BARDSTOWN",null,"KY","40004","(502)348-9241"]
["ROSE SEEDING & SODDING INC",99,"02857","3718 CRESCENT ROAD",null,null,"CHARLESTOWN",null,"IN","47111","(812)256-4323"]
["ROSIEK CONSTRUCTION CO INC",99,"01878","2000 E LAMAR BLVD  SUITE 410",null,null,"ARLINGTON",null,"TX","76006","(817)277-4342"]
["ROSS BROTHERS CONSTRUCTION CO  WOS",99,"00695","P O BOX 767",null,null,"ASHLAND",null,"KY","41105-0767","(606)739-5139"]
["ROXANNA FAY DRAPER DBA FAYS CONCRETE",99,"02589","PO BOX 864",null,null,"ELKTON",null,"KY","42220","(270)265-5238"]
["ROYAL BRIDGE INC",99,"02523","3601 ALT 19 STE A",null,null,"PALM HARBOR",null,"FL","34683","(727)934-6042"]
["RRC COMPANY LLC",99,"03290","279 BLACKBURN ROAD",null,null,"CYNTHIANA",null,"KY","41031","(859)983-6456"]
["RUBBERIZED CRACKFILLING SEALANTS INC",99,"03089","5519 BRUCE AVE",null,null,"LOUISVILLE",null,"KY","40214","(502)361-7526"]
["RUBY CONSTRUCTION CO INC & SUBSIDIARY",99,"00199","PO BOX 2476  4806 WRIGHT DR",null,null,"SMYRNA",null,"GA","30081","(770)432-2900"]
["RUDIS LLC",99,"02703","6085 ELWOOD AVE",null,null,"BURLINGTON",null,"KY","41005","(859)586-7221"]
["RUDIS MOBILE REPAIR & WELDING",99,"02297","6085 ELWOOD AVE",null,null,"BURLINGTON",null,"KY","41005","(859)586-7221"]
["RUEFF SIGN COMPANY",99,"03649","1530 E WASHINGTON",null,null,"LOUISVILLE",null,"KY","40206","(502)582-1714"]
["RUSSELL STANDARD CORPORATION",99,"02559","PO BOX 479  2 PRESTLEY ROAD",null,null,"BRIDGEVILLE",null,"PA","15017","(412)221-7300"]
["RUST OF KENTUCKY INC",99,"01835","6582 BEAVER DAM ROAD",null,null,"CROMWELL",null,"KY","42333","(270)526-5505"]
["RUTH PAVING CORPORATION",99,"01165","P O BOX 1056",null,null,"MOREHEAD",null,"KY","40351","(606)784-3820"]
["RYAN INCORPORATED EASTERN",99,"01460","786 SOUTH MILITARY TRAIL",null,null,"DEERFIELD BEACH",null,"FL","33442","(954)427-5599"]
["S & D INDUSTRIAL PAINTING INC",99,"02209","1575 RAINVILLE ROAD",null,null,"TARPON SPRINGS",null,"FL","34689","(727)937-2080"]
["S & M CONTRACTING LLC",99,"03693","5979 HWY 711",null,null,"WEST LIBERTY",null,"KY","41472","(606)743-7090"]
["S & S AND ASSOCIATES INC",99,"01376","P O BOX 14305  474 ROBERTS AVENUE",null,null,"LOUISVILLE",null,"KY","40214","(502)367-4331"]
["S & S BACKHOE INC",99,"03359","161 DONES LANE",null,null,"BOSTON",null,"KY","40107","(502)249-0593"]
["S & S BLASTING INC",99,"02477","474 ROBERTS AVENUE",null,null,"LOUISVILLE",null,"KY","40214","(502)367-4331"]
["S & S ELECTRIC INC",99,"01443","P O BOX 51148",null,null,"BOWLING GREEN",null,"KY","42101","(270)842-8681"]
["S & S READY MIX INC AND SHAFFERS CONST",99,"02558","PO BOX 524",null,null,"GRAYSON",null,"KY","41143","(606)474-7089"]
["S & T PARTNERS LLC",99,"03278","3215 VALE WOOD COURT",null,null,"LOUISVILLE",null,"KY","40220","(502)550-6157"]
["S A K CONSTRUCTION LLC",99,"03042","103 NORTH COOL SPRINGS ROAD",null,null,"O' FALLON",null,"MO","63366","(636)532-3890"]
["S A S CONTRACTING CORPORATION",99,"02514","7333 MOON LANE",null,null,"CHESTERHILL",null,"OH","43728","(740)554-5172"]
["S AND D CONSTRUCTION MANAGEMENT INC",99,"03591","252 N UPPER ST",null,null,"LEXINGTON",null,"KY","40507","(859)226-0083"]
["S C NEAL ELECTRICAL CONTRACTORS INC",99,"00632","122 EDWARD AVENUE  SUITE 3",null,null,"GEORGETOWN",null,"KY","40324","(502)863-4166"]
["S E JOHNSON COMPANIES INC",99,"01619","P O BOX 29-A    1345 FORD STREET",null,null,"MAUMEE",null,"OH","43537","(419)893-8731"]
["S G LOEWENDICK & SONS INC",99,"01506","2877 JACKSON PIKE",null,null,"GROVE CITY",null,"OH","43123","(614)539-2582"]
["S I S INC DBA SIS CONSTRUCTION OF",99,"01335","6200 E HWY 62  SUITE 550",null,null,"JEFFERSONVILLE",null,"IN","47130","(812)280-7345"]
["S J COX ENTERPRISES INC",99,"02856","9172 MOREHEAD ROAD",null,null,"FLEMINGSBURG",null,"KY","41041","(606)845-5006"]
["S J EARTH BORING INC",99,"02469","PO BOX 28    239 BRACE-BURKE DR",null,null,"SALVISA",null,"KY","40372","(859)865-2063"]
["S T CONSTRUCTION LLC",99,"02529","8685 STATE RT 94 W",null,null,"WATERVALLEY",null,"KY","42085","(270)210-5117"]
["SAFE ZONE SERVICES LLC WOS UEC HOLDINGS",99,"03889","4333 ROBARDS LN",null,null,"LOUISVILLE",null,"KY","40218","(502)459-1518"]
["SAFETY GROOVING & GRINDING LP",99,"03096","P O BOX 431   13-226 COUNTY ROAD R",null,null,"NAPOLEON",null,"OH","43545","(419)592-8666"]
["SAFETY IMPROVEMENTS LLC",99,"03537","11753 CHESTERVILLE ROAD",null,null,"KENNEDYVILLE",null,"MD","21645","(410)648-5582"]
["SAFFO CONTRACTORS INC",99,"03708","3235 KITTY HAWK RD",null,null,"WILMINGTON",null,"NC","28405","(910)371-9499"]
["SAF-TI-CO INC",99,"00701","2400 MILLERS LN",null,null,"LOUISVILLE",null,"KY","40216","(502)772-2511"]
["SAK CONSTRUCTION LLC",99,"03657","864 HOFF ROAD",null,null,"O'FALLON",null,"MO","63366","(636)385-1000"]
["SALAZAR CONTRACTING LLC",99,"03904","P O BOX 186   165 DRY CREEK",null,null,"TELLICO PLAINS",null,"TN","37385","(423)253-3215"]
["SALSMAN BROTHERS INC",99,"00215","PO BOX 128",null,null,"BARDSTOWN",null,"KY","40004","(502)349-2000"]
["SALTSMAN CONSTRUCTION INC",99,"02239","1191  1ST AVENUE",null,null,"NAPLES",null,"FL","34102","(941)434-9714"]
["SALVAGE HOUND EQUIPMENT CO",99,"03851","12826 US RT 68",null,null,"BETHEL",null,"OH","45106","(937)444-2734"]
["SAM OXLEY & COMPANY INC",99,"01440","P O BOX    743",null,null,"JASPER",null,"IN","47547-0743","(812)683-2565"]
["SAMSON STEEL CORPORATION",99,"01516","1414 GALBRAITH ROAD",null,null,"FRANKFORT",null,"KY","40601","(502)695-5715"]
["SAN MIL CORPORATION",99,"02182","3181 ORCHARD ROAD",null,null,"EVANSVILLE",null,"IN","47720","(812)963-8040"]
["SANDERS REBAR ONE",99,"01708","P O BOX 3112",null,null,"LOUISVILLE",null,"KY","40201","(812)944-1564"]
["SANI-TECH JETVAC SERVICES LLC",99,"03264","P O BOX 40348",null,null,"NASHVILLE",null,"TN","37204","(615)843-6828"]
["SCHERZINGER DRILLING INC",99,"02681","PO BOX 202",null,null,"MIAMITOWN",null,"OH","45041","(513)738-2000"]
["SCHNABEL FOUNDATION COMPANY",99,"01030","45240 BUSINESS CT  STE 250",null,null,"STERLING",null,"VA","20166","(703)742-0020"]
["SCHNELL CONTRACTORS INC",99,"03403","1343 TILE FACTORY LANE",null,null,"LOUISVILLE",null,"KY","40213","(502)969-7534"]
["SCHROEDER CONSTRUCTION INCORPORATED",99,"03013","616 PEAR ORCHARD ROAD NW",null,null,"ELIZABETHTOWN",null,"KY","42701","(270)737-7717"]
["SCHRUDDE & ZIMMERMAN INC",99,"03066","1671 PARK ROAD SUITE 11",null,null,"FT. WRIGHT",null,"KY","41017","(859)331-3160"]
["SCHWARZ CONSTRUCTION LLC",99,"03862","9 SASSAFRAS LN",null,null,"FLORENCE",null,"KY","41042","(513)646-0589"]
["SCHWEITZER CONSTRUCTION CO",99,"00102","P O BOX 15426 325 CLARK ROAD",null,null,"CINCINNATI",null,"OH","45215","(513)761-4980"]
["SCODELLER CONSTRUCTION INC",99,"02184","51722 GRAND RIVER AVE",null,null,"WIXOM",null,"MI","48393","(248)374-1102"]
["SCOTT AND MURPHY INC",99,"00890","PO BOX 2520",null,null,"BOWLING GREEN",null,"KY","42102","(270)781-9944"]
["SCOTT AND RITTER INC",99,"00889","PO BOX 749",null,null,"BOWLING GREEN",null,"KY","42102","(270)781-9988"]
["SCOTT DERR PAINTING COMPANY",99,"02635","PO BOX 1848",null,null,"FRIENDSWOOD",null,"TX","77549-1848","(281)480-0158"]
["SCOTT ORR CONTRACTING",99,"02496","PO BOX 310",null,null,"ROBBINSVILLE",null,"NC","28771","(828)479-8868"]
["SCOTTS ASPHALT SEALING & STRIPING LLC",99,"02919","P O BOX 370",null,null,"LEITCHFIELD",null,"KY","42755","(270)868-0036"]
["SCOTTYS CONTRACTING AND STONE COMPANY",99,"00835","P O BOX 4500",null,null,"BOWLING GREEN",null,"KY","42102-4500","(502)781-3998"]
["SCOTTY'S CONTRACTING AND STONE LLC",99,"02519","P O BOX 4500",null,null,"BOWLING GREEN",null,"KY","42102","(270)781-3998"]
["SCRUGGS CONSRUCTION INC",99,"03852","6550 W US HWY 50",null,null,"NORTH VERNON",null,"IN","47265","(812)528-8178"]
["SEALCO ASPHALT MAINTENANCE INC",99,"02019","P O BOX 1552",null,null,"ASHLAND",null,"KY","41105-1552","(606)329-0264"]
["SEARS TREE SERVICE LLC",99,"02771","674 DUNCAN RIDGE ROAD",null,null,"LEWISBURG",null,"KY","42256","(270)755-2058"]
["SECURITY FENCE GROUP INC",99,"00708","4260 DANE AVE",null,null,"CINCINNATI",null,"OH","45223","(513)681-3700"]
["SEDAM CONTRACTING CO LLC",99,"03540","302 W LAGRANGE RD",null,null,"HANOVER",null,"IN","47243","(812)866-5607"]
["SEDAM CONTRACTING CORPORATION",99,"01251","302 W LAGRANGE ROAD",null,null,"HANOVER",null,"IN","47243","(812)866-5607"]
["SEIFRING TRUCKING INC",99,"02265","P O BOX 292    3617 MATTINGLY ROAD",null,null,"BUCKNER",null,"KY","40010","(502)222-8935"]
["SELBY ASPHALT MAINTENANCE INC",99,"03039","551 BLAIR SCHOOL RD",null,null,"RUSSELL SPRINGS",null,"KY","42642","(270)866-2014"]
["SELCO CONSTRUCTION SERVICES INC",99,"02968","P O BOX 190",null,null,"SWORDS CREEK",null,"VA","24649","(276)880-2300"]
["SEMINOLE EQUIPMENT INC",99,"02817","204 TARPON INDUSTRIAL DR",null,null,"TARPON SPRINGS",null,"FL","34689","(727)944-4481"]
["SENSABAUGH DESIGN & CONSTRUCTION LLC",99,"03179","744 JONES RD",null,null,"BEREA",null,"KY","40403","(859)358-6386"]
["SENTRY STEEL INC",99,"03248","4531 KNOPP AVE",null,null,"LOUISVILLE",null,"KY","40213","(502)361-5445"]
["SERVICE ELECTRIC COMPANY",99,"03815","1631 E 25TH ST",null,null,"CHATTANOOGA",null,"TN","37404","(423)265-3161"]
["SEWELL ROOFING LLC",99,"03054","113 12TH STREET",null,null,"LEXINGTON",null,"KY","40505","(859)221-9260"]
["SHADOWENS CONTRACTING CO",99,"03138","395 WHEELER ROAD",null,null,"UPTON",null,"KY","42784","(270)537-4389"]
["SHAFFER LANDSCAPING",99,"02956","4825 SOUTHERN PARKWAY",null,null,"LOUISVILLE",null,"KY","40214","(502)500-2294"]
["SHAMROCK CONCRETE CONSTRUCTION INC",99,"03809","P O BOX 991428",null,null,"LOUISVILLE",null,"KY","40269","(502)817-2488"]
["SHAMROCK INTERNATIONAL CORPORATION",99,"00185","PO BOX 13070",null,null,"LEXINGTON",null,"KY","40583","(859)543-4532"]
["SHAW CREEK CONTRACTING LLC",99,"02545","1822 SHAW CREEK ROAD",null,null,"BIG CLIFTY",null,"KY","42712","(270)242-0045"]
["SHAWN COLE DBA ROCK CONSTRUCTION",99,"02565","PO BOX 772",null,null,"BOONEVILLE",null,"KY","41314","(606)593-6863"]
["SHELBY GRADING & POWER SEEDING INC",99,"03026","9423 CROPPER ROAD",null,null,"PLEASUREVILLE",null,"KY","40057","(502)487-0537"]
["SHELBYVILLE ASPHALT COMPANY LLC",99,"02711","PO BOX 669",null,null,"BARDSTOWN",null,"KY","40004","(502)348-3953"]
["SHELCON CONSTRUCTION CO LLC",99,"03293","11876 CAPITAL WAY",null,null,"LOUISVILLE",null,"KY","40299","(502)266-0139"]
["SHELLY AND SANDS INC",99,"03307","P O BOX 1585  3570 S RIVER RD",null,null,"ZANESVILLE",null,"OH","43701","(740)453-0721"]
["SIERRA BRAVO CONTRACTORS LLC",99,"02863","P O BOX 130     7038 HWY 154",null,null,"SESSER",null,"IL","62884","(618)625-3456"]
["SIERRA BRAVO INC",99,"02308","P O BOX 956",null,null,"SESSER",null,"IL","62884","(618)625-2681"]
["SIGNAL POWER & LIGHT INC",99,"02460","P O BOX 2410",null,null,"DANVILLE",null,"KY","40423","(859)236-2501"]
["SILVER OAKS VENTURES LLC",99,"02964","P O BOX 243",null,null,"SALT LICK",null,"KY","40371","(606)683-2278"]
["SIMPSON BRIDGE COMPANY INC",99,"00717","P O BOX 436",null,null,"CHARLESTON",null,"TN","37310","(423)559-1864"]
["SINGLETON ROAD BORING INC",99,"03694","991 LEWIS-BRAY RD",null,null,"BURNSIDE",null,"KY","42519","(606)561-4141"]
["SIPCO SERVICES & MARINE INC",99,"02026","18150 IH  45 NORTH",null,null,"WILLIS",null,"TX","77378-6918","(409)344-4444"]
["SISCO MARINE DBA MARINE INLAND FABRIC",99,"91011","1725 BUCHANAN",null,null,"PANAMA CITY",null,"FL","32409","(850)265-1383"]
["SITE SAFE PRODUCTS LLC",99,"02663","P.O. BOX 287  609 WEST MAIN STREET",null,null,"CLARKSON",null,"KY","42726","(270)242-0636"]
["SITE-SAFE PRODUCTS LLC",99,"03508","200 JUDGE KENNETH H GOFF DR",null,null,"LEITCHFIELD",null,"KY","42754","(270)230-0115"]
["SITE-SAFE PRODUCTS OF KENTUCKY LLC",99,"03143","P O BOX 287    609 WEST MAIN STREET",null,null,"CLARKSON",null,"KY","42726","(270)242-0636"]
["SKANSKA FLATIRON DRAGADOS",99,"03501","55 IVAN ALLEN JR BLVD",null,null,"ATLANTA",null,"GA","30308"]
["SKANSKA USA CIVIL SOUTHEAST INC",99,"02248","295 BENDIX ROAD   SUITE 400",null,null,"VIRGINIA BEACH",null,"VA","23452","(757)420-4140"]
["SKILTON EQUIPMENT CO INC AND RELATED CO",99,"01222","301  BLUE SKY PARKWAY",null,null,"LEXINGTON",null,"KY","40509","(859)263-5178"]
["SMILEY LANDSCAPING & EXCAVATING",99,"02847","32E BROADWAY SUITE 206",null,null,"MADISONVILLE",null,"KY","42431","(270)825-1472"]
["SMITH & JOHNSON CONSTRUCTION CO",99,"02783","1745 EAST MAIN STREET",null,null,"COLUMBUS",null,"OH","43205","(614)253-2712"]
["SMITH CONTRACTORS INC",99,"01150","P O BOX 480",null,null,"LAWRENCEBURG",null,"KY","40342","(502)839-4196"]
["SMOCK FANSLER CORPORATION",99,"03287","2910 W MINNESOTA STREET",null,null,"INDIANAPOLIS",null,"IN","46241","(317)248-8371"]
["SODWORKS LLC",99,"02858","7067 RUSSELL CAVE ROAD",null,null,"GEORGETOWN",null,"KY","40324","(859)294-4763"]
["SOIL NAIL LAUNCHER INC.",99,"02815","P O BOX 4709",null,null,"GRAND JUNCTION",null,"CO","81502","(970)210-6170"]
["SOLID CONSTRUCTION LLC",99,"03235","P O BOX 21956",null,null,"LOUISVILLE",null,"KY","40221","(502)471-0902"]
["SOMETHIN BLOOMIN LLC",99,"03638","1045 HIGBEE MILL RD",null,null,"LEXINGTON",null,"KY","40503","(859)296-1624"]
["SORRELL CONSTRUCTION SERVICES LLC",99,"03828","5 SMOOT DR",null,null,"OWINGSVILLE",null,"KY","40360","(606)336-0098"]
["SOUTH CENTRAL CONSTRUCTION LLC",99,"02986","9572 STATE ROUTE 247",null,null,"WEST UNION",null,"OH","45693","(937)544-4061"]
["SOUTH EAST MOWING LLC",99,"03674","1992 HIGHWAY 75",null,null,"BLOUNTVILLE",null,"TN","37617","(423)323-1224"]
["SOUTH EAST RESOURCES INC",99,"03752","2188 SOUTH MAYO TRAIL SUITE 100",null,null,"PIKEVILLE",null,"KY","41501","(606)454-5104"]
["SOUTHEAST GRINDING AND GROOVING LLC",99,"03453","P O BOX 279  115 VILLA ROSA RD",null,null,"TEMPLE",null,"GA","30179","(404)803-5397"]
["SOUTHEAST PAVING CO DIV OF NEWELL ENT",99,"02539","814 W COLUMBIA ST",null,null,"SOMERSET",null,"KY","42501","(606)679-7434"]
["SOUTHEASTERN CONTRACTORS OF KY INC",99,"01386","P O BOX 187",null,null,"ELIZABETHTOWN",null,"KY","42702-0187","(270)765-5932"]
["SOUTHERN AQUATICS INC",99,"03465","150 HILDEN ROAD SUITE 305",null,null,"PONTE VEDRA",null,"FL","32081","(904)824-1110"]
["SOUTHERN BACKHOE INC",99,"03103","808 WEST MAIN STREET",null,null,"CAMPBELLSVILLE",null,"KY","42718","(270)789-9986"]
["SOUTHERN COATINGS OF TARPON SPRINGS LLC",99,"03905","1109 SUNSET DR",null,null,"TARPON SPRINGS",null,"FL","34689","(727)858-6586"]
["SOUTHERN KENTUCKY CONTRACTORS INC",99,"01599","578 KELLY RD",null,null,"BOWLING GREEN",null,"KY","42101","(270)782-8646"]
["SOUTHERN LIVING LANDSCAPES",99,"03534","1041 ANDOVER FOREST DRIVE",null,null,"LEXINGTON",null,"KY","40509","(859)264-8787"]
["SOUTHERN MARINE CONSTRUCTION CO",99,"00888","P O BOX 4539    100 HAMM RD",null,null,"CHATTANOOGA",null,"TN","37405","(423)266-1855"]
["SOUTHERN PIPELINE CONSTRUCTION CO",99,"02035","1272 OLD FERN VALLEY ROAD",null,null,"LOUISVILLE",null,"KY","40219","(502)966-5195"]
["SOUTHERN ROAD & BRIDGE LLC",99,"03589","715 WESLEY AVE",null,null,"TARPON SPRINGS",null,"FL","34689","(727)940-5395"]
["SPARTAN CONSTRUCTION INC",99,"00887","1619 DISTRIBUTION DR",null,null,"BURLINGTON",null,"KY","41005","(859)371-3538"]
["SPARTAN CONTRACTING LLC",99,"03065","5959 W LIBERTY ST",null,null,"HUBBARD",null,"OH","44425","(330)534-7790"]
["SPECIALTIES COMPANY LLC AND SUBSIDIARY",99,"02573","9350 E 30TH ST",null,null,"INDIANAPOLIS",null,"IN","46229","(317)594-0291"]
["SPECIALTY DIVING OF KENTUCKY INC",99,"02722","P O BOX 22641",null,null,"OWENSBORO",null,"KY","42304","(270)685-0071"]
["SPECIALTY GROUPS INC",99,"01985","10771 BUCKHANNON PIKE",null,null,"LOST CREEK",null,"WV","26385","(304)623-3844"]
["SPECTRUM CONTRACTING SERVICES INC",99,"03155","108 WIND HAVEN DRIVE SUITE B",null,null,"NICHOLASVILLE",null,"KY","40356","(877)561-4957"]
["SPILLMAN LAWNCARE LLC",99,"02883","1605 VALLANDINGHAM RD",null,null,"DRY RIDGE",null,"KY","41035","(859)428-3110"]
["SPORLEDER EXCAVATIN INC",99,"03268","1050 W CR 500 N",null,null,"NORTH VERNON",null,"IN","47265","(812)346-7142"]
["SPRINGFIELD PLUMBING INC",99,"02971","1903 W. MARKET ST",null,null,"LOUISVILLE",null,"KY","40203","(502)587-8281"]
["ST LOUIS BRIDGE CONSTRUCTION CO",99,"02267","655 LANDMARK DR",null,null,"ARNOLD",null,"MO","63010","(636)296-3300"]
["STANDAFER BUILDERS INC",99,"02881","P O BOX 247    1178 W MAIN ST",null,null,"WEST LIBERTY",null,"KY","41472","(606)743-4435"]
["STANDARD COATING SERVICE INC",99,"03547","511 E TROY AVENUE",null,null,"INDIANAPOLIS",null,"IN",null,"(317)331-8826"]
["STANLEY PIPELINE INCORPORATED",99,"02797","5425 PARIS ROAD",null,null,"WINCHESTER",null,"KY","40391","(859)745-2576"]
["STANSELL ELECTRIC COMPANY INC",99,"03027","860 VISCO DR",null,null,"NASHVILLE",null,"TN","37210","(615)329-4944"]
["STAR CONSTRUCTION INC",99,"02046","PO BOX 1166 450 BROWN ST",null,null,"MADISONVILLE",null,"KY","42431","(270)821-3841"]
["STAR INC",99,"00733","120 HENDERSON ROAD",null,null,"PAINT LICK",null,"KY","40461","(606)925-4331"]
["STATE ELECTRIC COMPANY INC",99,"03675","140 COLLEGE AVENUE",null,null,"CROFTON",null,"KY","42217","(270)424-8242"]
["STATEWIDE ENGINEERING INC",99,"00735","2815 FLORICAN CIRCLE",null,null,"LEXINGTON",null,"KY","40511","(606)255-2893"]
["STEELE CONSTRUCTION AND LANDSCAPING INC",99,"03309","10657 STATE 44",null,null,"CALEDONIA",null,"MN","55921","(507)724-5598"]
["STEINROCK ROOFING & SHEET METAL INC",99,"03906","1034 STORY AVE STE B",null,null,"LOUISVILLE",null,"KY","40206","(502)587-1034"]
["STEMALY EXCAVATING INC",99,"02963","2010 FUQUAY RD   P O BOX 15445",null,null,"EVANSVILLE",null,"IN","47716","(812)475-8438"]
["STEPHENS MFG",99,"91015","PO BOX 488",null,null,"TOMPKINSVILLE",null,"KY","42167","(270)487-6774"]
["STEWART CONTRACTING CORP",99,"03415","P O BOX 402",null,null,"RICHMOND",null,"KY","40476","(859)353-5349"]
["STEWART HURST INC",99,"03249","3611 LOUISVILLE ROAD",null,null,"BARDSTOWN",null,"KY","40004","(502)348-3017"]
["STEWART RICHEY CONSTRUCTION INC",99,"02422","2137 GLEN LILY RD",null,null,"BOWLING GREEN",null,"KY","42101","(270)418-8474"]
["STONES RIVER ELECTRIC INC",99,"02905","510 CAVE RD",null,null,"NASHVILLE",null,"TN","37210","(615)885-0019"]
["STORY ELECTRICAL SERVICE INC",99,"03573","6335 HILL CHAPEL ROAD",null,null,"PADUCAH",null,"KY","42001","(270)534-1655"]
["STOTTS CONSTRUCTION COMPANY INC",99,"03020","P O BOX 1689",null,null,"COLUMBIA",null,"KY","42728","(270)384-2677"]
["STRAIGHT EDGE CONSTRUCTION LLC",99,"03207","75 SALAM RIDGE RD",null,null,"BROOKSVILLE",null,"KY","41004","(606)782-1737"]
["STRAWSER CONSTRUCTION INC & SUBSIDIARIES",99,"03109","1392 DUBLIN RD",null,null,"COLUMBUS",null,"OH","43215","(614)276-5501"]
["STRAWSER INCORPORATED",99,"01129","1595 FRANK ROAD SUITE B",null,null,"COLUMBUS",null,"OH","43223","(614)276-5501"]
["STREEVAL MASONRY INC",99,"02766","6129 ELKHORN ROAD",null,null,"KNIFLEY",null,"KY","42753","(270)789-3484"]
["STRIPING SOLUTIONS LLC",99,"02868","350 R PLACE LN",null,null,"VANCEBURG",null,"KY","41179","(606)541-0088"]
["STRUCTURAL SYSTEMS REPAIR GROUP LLC",99,"03315","2824 STANTON AVE",null,null,"CINCINNATI",null,"OH","45206","(513)751-7774"]
["STRUCTURES HARDSCAPES SPECIALISTS INC",99,"03333","591 CITATION DR",null,null,"SHAKOPEE",null,"MN","55379","(952)937-6257"]
["STURGEON INCORPORATED P O BOX 368",99,"02284","P O BOX 368",null,null,"BEATTYVILLE",null,"KY","41311","(606)464-8954"]
["SUBURBAN CONSTRUCTION SERVICES LLC",99,"02767","P O BOX 99483",null,null,"LOUISVILLE",null,"KY","40269","(502)267-6307"]
["SUGAR RIDGE LAND COMPANY",99,"02241","P O BOX  878",null,null,"HARLAN",null,"KY","40831","(606)573-6300"]
["SULLIVAN & COZART INC",99,"00741","PO BOX 953",null,null,"LOUISVILLE",null,"KY","40201","(502)584-4213"]
["SULLIVAN CONSTRUCTION INC",99,"01950","PO BOX 356",null,null,"PAOLI",null,"IN","47454","(812)723-5640"]
["SUMMERS GRADING SERVICE LLC",99,"02934","8703 HIGH JACKSON RD",null,null,"CHARLESTOWN",null,"IN","47111","(812)246-4839"]
["SUNESIS CONSTRUCTION CO",99,"01923","2610 CRESCENTVILLE RD",null,null,"WEST CHESTER",null,"OH","45069","(513)326-6000"]
["SUNNYTIME SEEDING & LANDSCAPING LLC",99,"03006","582 KEAVY ROAD",null,null,"LONDON",null,"KY","40744","(606)862-1468"]
["SUPER EXCAVATORS INC",99,"03416","N59W14601 BOBOLINK AVENUE",null,null,"MENOMONEE FALLS",null,"WI","53051","(262)252-3200"]
["SUPERIOR CONCRETE CONSTRUCTORS INC",99,"02736","2218 ST JOE INDUSTRIAL PARK DRIVE",null,null,"EVANSVILLE",null,"IN","47720","(812)422-6914"]
["SUPERIOR CONST CO INC DBA SUPERIOR CONST",99,"03729","1455 LOUIS SULLIVAN DR",null,null,"PORTAGE",null,"IN","46368","(219)787-0850"]
["SUPERIOR DEMOLITION INC",99,"02454","764 WESTLAND DRIVE",null,null,"LEXINGTON",null,"KY","40504","(859)255-3889"]
["SUPERIOR PAINTING COMPANY INC",99,"03555","1910 MURDSTONE ROAD",null,null,"PITTSBURGH",null,"PA","15241","(412)835-3858"]
["SUPERIOR PAVEMENT MARKING INC",99,"02002","3131 E GOVERNOR JOHN SEVIER HWY",null,null,"KNOXVILLE",null,"TN","37914","(865)637-2135"]
["SUPREME ENTERPRISES LLC",99,"03869","128 SILLS LN",null,null,"BENTON",null,"KY","42025","(270)205-4108"]
["SURE LIFT INC",99,"03642","151 H D ALDRIDGE ROAD UNIT B",null,null,"BOONE",null,"NC","28607","(828)963-6899"]
["SURFACE PREPARATION TECHNOLOGIES INC",99,"02580","81 TEXACO ROAD",null,null,"MECHANICSBURG",null,"PA","17050","(717)697-1450"]
["SURFACE PREPARATION TECHNOLOGIES LLC",99,"03426","P O BOX 834     44 E MAIN ST",null,null,"NEW KINGSTOWN",null,"PA","17072","(717)697-1450"]
["SURFACE SYSTEMS INC",99,"02208","11612 LIBURN PARK ROAD",null,null,"ST. LOUIS",null,"MO","63146","(314)569-1002"]
["SURFACE TREATMENT PRODUCTS INC",99,"01909","ROUTE #1  BOX 285",null,null,"CORBIN",null,"KY","40701","(606)523-9730"]
["S-WALK INC DBA SEVEN SEAS CONSTRUCTION",99,"03136","P O BOX 16997",null,null,"LOUISVILLE",null,"KY","40256","(502)231-7395"]
["SWANK ASSOCIATED COMPANIES INC",99,"01365","632 HUNT VALLEY ROAD",null,null,"NEW KENSINGTON",null,"PA","15068","(724)335-6000"]
["SWANK CONSTRUCTION COMPANY LLC & SUB",99,"03423","632 HUNT VALLEY CIR",null,null,"NEW KENSINGTON",null,"PA","15068","(724)335-6000"]
["SWANSTON EQUIPMENT COMPANY",99,"00742","3450 MAIN AVENUE",null,null,"FARGO",null,"ND","58103","(701)293-7325"]
["SWARTZ ENTERPRISES LLC",99,"03391","1450 WATERWORKS RD",null,null,"WINCHESTER",null,"KY","40391","(859)339-7505"]
["SWARTZ MOWING INC",99,"01871","P O BOX 124",null,null,"OLYMPIA",null,"KY","40358","(606)674-2971"]
["SWEEP ALL INC",99,"02864","P O BOX 436051",null,null,"LOUISVILLE",null,"KY","40253","(502)267-0066"]
["SWEEPING CORPORATION OF AMERICA INC",99,"01749","713 MELPARK DR",null,null,"NASHVILLE",null,"TN","37204","(615)385-4422"]
["SWIFT & STALEY INC",99,"03430","101 LIBERTY DRIVE SUITE 7",null,null,"KEVIL",null,"KY","42053","(270)462-8821"]
["SWS ENVIRONMENTAL SERVICE INC",99,"03743","12077 MOSTELLER RD",null,null,"CINCINNATI",null,"OH","45241","(513)793-7417"]
["T & C CONTRACTING INC.",99,"01120","P O BOX 72398",null,null,"LOUISVILLE",null,"KY","40272","(502)937-3433"]
["T & T CONSTRUCTION ENTERPRISES LLC",99,"03676","4375 LILAC RD",null,null,"LEITCHFIELD",null,"KY","42754","(270)230-1117"]
["T & T PIPE RENOVATIONS LLC",99,"03766","1367 S STATE RD",null,null,"SALEM",null,"IN","47167","(812)863-6644"]
["T E M GROUP INC & SUBSIDIARY",99,"02577","3560 BASHFORD AVE",null,null,"LOUISVILLE",null,"KY","40218","(502)454-0101"]
["T G I SOD LLC",99,"02991","P O BOX 1057",null,null,"SHELBYVILLE",null,"KY","40066","(502)817-0664"]
["T J LAMBRECHT CONSTRUCTION INC",99,"01713","10 GOUGAR ROAD",null,null,"JOLIET",null,"IL","60432","(815)726-7722"]
["T LUCKEY SONS INC",99,"01837","10251 SUSPENSION BRIDGE ROAD",null,null,"HARRISON",null,"OH","45030","(513)353-2544"]
["TAB CONSTRUCTION COMPANY INC",99,"02737","PO BOX 80791",null,null,"CANTON",null,"OH","44708","(330)477-3737"]
["TAG GRINDING SERVICES INC",99,"03399","1113 HORSESHOE BEND ROAD",null,null,"DADEVILLE",null,"AL","36853","(256)825-4400"]
["TAPCO INC",99,"01217","P O BOX 669",null,null,"BARDSTOWN",null,"KY","40004","(502)348-3953"]
["TC HOLZEN INC",99,"03834","3108 GEARHART RD",null,null,"TROY",null,"OH","45373","(937)667-0870"]
["TEAM CONSTRUCTION LLC",99,"03070","434 ATLAS DRIVE",null,null,"NASHVILLE",null,"TN","37211","(615)781-2096"]
["TEAM CONTRACTING LLC",99,"02323","P O BOX 237    14912 RAILROAD ST",null,null,"MEMPHIS",null,"IN","47143","(812)294-1258"]
["TEAM MOLE",99,"02309","P O BOX 25011",null,null,"LEXINGTON",null,"KY","40524","(606)281-8400"]
["TEDDY CROLEY",99,"02524","374 BLUE LICK ROAD",null,null,"BEREA",null,"KY","40403","(606)985-9792"]
["TEMPLE & TEMPLE EXCAVATING & PAVING INC",99,"03392","1367 S STATE RD 60",null,null,"SALEM",null,"IN","47167","(812)883-6644"]
["TENMILE CREEK EXCAVATING LLC",99,"03648","407 E FORT ST STE 407",null,null,"DETROIT",null,"MI","48226","(313)963-4263"]
["TENNESSEE ASPHALT COMPANY",99,"01444","P O BOX 1111",null,null,"KNOXVILLE",null,"TN","37901-1111","(865)579-2000"]
["TERRATECH INC",99,"02501","101 LOUDEN STREET SW",null,null,"LEESBURG",null,"VA","20175","(703)771-4600"]
["TERRY ASPHALT MATERIALS INC",99,"02990","8600 BERK BLVD",null,null,"HAMILTON",null,"OH","45015","(513)874-6192"]
["TERRY CONSTRUCTION INC",99,"00721","8600 BERK BOULEVARD",null,null,"HAMILTON",null,"OH","45015","(513)874-6192"]
["TERRY LAND DEVELOPMENT INC",99,"02351","130 BRETT CHASE SUITE C",null,null,"PADUCAH",null,"KY","42003","(270)554-2149"]
["TESSA CONSTRUCTION COMPANY",99,"02376","6120 BRANDON AVENUE SUITE 206",null,null,"SPRINGFIELD",null,"VA","22150","(703)451-3040"]
["TEXAS BRIDGE INC",99,"02113","15414 LEE ROAD",null,null,"HUMBLE",null,"TX","77396","(281)441-8913"]
["TEXAS COMMERCIAL FENCE INCORPORATED",99,"02561","320 SOUTHLAND ROAD",null,null,"BURNET",null,"TX","78611","(512)715-9115"]
["THE AERO GROUP LTD",99,"02673","10423 DANNER DRIVE",null,null,"STREETSBORO",null,"OH","44241","(330)995-0100"]
["THE AERO-MARK COMPANY LLC DBA PAVEMENT",99,"03865","10423 DANNER DR",null,null,"STREETSBORO",null,"OH","44241","(330)995-0100"]
["THE ALLEN COMPANY INC",99,"00135","3009 ATKINSON AVE STE 300",null,null,"LEXINGTON",null,"KY","40509","(859)543-3361"]
["THE BARBOUR COMPANY",99,"01807","1784 STATE ROUTE 63   PO BOX 536",null,null,"LEBANON",null,"OH","45036","(513)932-2885"]
["THE BEAVER EXCAVATING COMPANY",99,"01010","P O BOX 6059",null,null,"CANTON",null,"OH","44706","(330)478-2151"]
["THE BRC GROUP LLC",99,"03306","108 CARTER DRIVE",null,null,"LONDON",null,"KY","40741","(606)330-0082"]
["THE BREWER COMPANY",99,"02435","1354 US HWY 50",null,null,"MILFORD",null,"OH","45150","(513)576-6300"]
["THE BRISTOL GROUP INC",99,"03046","1115 DELAWARE AVE",null,null,"LEXINGTON",null,"KY","40505","(859)233-9050"]
["THE CLARK CONSTRUCTION GROUP INC",99,"02321","7500 OLD GEORGETOWN ROAD",null,null,"BETHESDA",null,"MD","20814","(301)986-8110"]
["THE DELTA STEEL CORPORATION",99,"00414","10860 PADDYS RUN ROAD",null,null,"HARRISON",null,"OH","45030","(513)738-1234"]
["THE EVERGREEN GROUP INC",99,"01845","P O BOX 839       7416 HIGHWAY 329",null,null,"CRESTWOOD",null,"KY","40014","(502)241-4171"]
["THE EVERGREEN GROUP INC DBA EVERGREEN AE",99,"03821","1000 1ST ST",null,null,"SHELBYVILLE",null,"KY","40065","(502)633-3939"]
["THE FENCE CO LLC",99,"03542","197 MOHAWK LANE",null,null,"LEITCHFIELD",null,"KY","42754","(270)259-3808"]
["THE FISHEL COMPANY & SUBSIDIARIES",99,"02167","1366 DUBLIN RD",null,null,"COLUMBUS",null,"OH","43215","(614)274-8100"]
["THE FORD DEVELOPMENT CORP",99,"02505","11148 WOODWARD LN",null,null,"CINCINNATI",null,"OH","45241","(513)772-1521"]
["THE GREAT LAKES CONSTR CO WOS THE GREAT",99,"03378","2608 GREAT LAKES WAY",null,null,"HINCKLEY",null,"OH","44233","(330)220-3900"]
["THE H C NUTTING COMPANY",99,"02347","P O BOX C",null,null,"CINCINNATI",null,"OH","45226","(513)321-5816"]
["THE HARPER COMPANY DBA THE W L HARPER CO",99,"00124","P O BOX 420",null,null,"HEBRON",null,"KY","41048","(859)586-8890"]
["THE HARRIS GROUP",99,"02748","2378 PORTER PIKE",null,null,"BOWLING GREEN",null,"KY","42101","(270)791-9915"]
["THE HARRIS GROUP INC",99,"03291","557 SIMS PIKE",null,null,"GEORGETOWN",null,"KY","40324","(502)867-9966"]
["THE HOOSIER COMPANY INC",99,"00506","P O BOX 681064",null,null,"INDIANAPOLIS",null,"IN","46268","(317)872-8125"]
["THE HUNT PAVING CO INC",99,"02583","2450 SOUTH TIBBS AVENUE",null,null,"INDIANAPOLIS",null,"IN","46241","(480)368-4723"]
["THE J W ELERY COMPANY LLC",99,"02732","1908 WESTMINSTER DR",null,null,"LEXINGTON",null,"KY","40504","(859)225-9184"]
["THE JUDY COMPANY INC",99,"02698","8334 RUBY AVE",null,null,"KANSAS CITY",null,"KS","66111","(913)422-5088"]
["THE LANE CONSTRUCTION CORPORATION",99,"00549","90 FIELDSTONE COURT",null,null,"CHESHIRE",null,"CT","06410","(203)235-3351"]
["THE MARR COMPANY INC",99,"03227","833 PEARL ST",null,null,"NEW ALBANY",null,"IN","47150","(812)945-1977"]
["THE NEAL COMPANY LLC",99,"03087","1410 VERSAILLES ROAD",null,null,"LEXINGTON",null,"KY","40504","(859)425-4025"]
["THE NELSON STARK COMPANY",99,"03144","7685 FIELDS ERTEL RD",null,null,"CINCINNATI",null,"OH","45241","(513)489-0866"]
["THE P J CASANAVE LAND CLEARING COMPANY",99,"00361","P.O. BOX 370",null,null,"SHACKLEFORDS",null,"VA","23156-0000","(804)785-2392"]
["THE RUHLIN COMPANY & SUBSIDIARY",99,"00698","P O BOX 190   6931 RIDGE RD",null,null,"SHARON CENTER",null,"OH","44274","(330)239-2800"]
["THE RUTH COMPANY",99,"01614","955 OWINGSVILLE RD",null,null,"MOUNT STERLING",null,"KY","40353","(859)498-1448"]
["THE RUTH CONSTRUCTION COMPANY",99,"02011","PO BOX 911046",null,null,"LEXINGTON",null,"KY","40591","(859)296-1143"]
["THE TANNER CORPORATION",99,"01529","P O BOX 668",null,null,"CYNTHIANA",null,"KY","41031","(606)289-7411"]
["THE TOWNSEND CORPORATION OF INDIANA",99,"01197","PO BOX 7015",null,null,"MUNCIE",null,"IN","47308","(765)468-1421"]
["THE TRUESDELL CORPORATION WOS TRUESDELL",99,"03593","1310 W 23RD ST",null,null,"TEMPE",null,"AZ","85282","(602)437-1711"]
["THE U COMPANY LLC",99,"03521","453 MAEWEST ROAD",null,null,"CONFLUENCE",null,"PA","15424","(724)329-5627"]
["THE VELOTTA COMPANY AND SUBSIDIARY",99,"01476","P O BOX 157   6740 RIDGE ROAD",null,null,"SHARON CENTER",null,"OH","44274","(330)239-1211"]
["THE W M BRODE COMPANY",99,"00344","P.O. BOX 0299  100 ELIZABETH STREET",null,null,"NEWCOMERSTOWN",null,"OH","43832-0299","(740)498-5121"]
["THE WAGNER-SMITH COMPANY",99,"00161","P O BOX 672",null,null,"DAYTON",null,"OH","45401","(937)298-7481"]
["THE WALKER COMPANY OF KENTUCKY INC",99,"00229","P O BOX 308",null,null,"MOUNT STERLING",null,"KY","40353","(859)498-0092"]
["THERESA HOWARD EXCAVATION INC",99,"02532","2330 SUTTON LANE",null,null,"LANCASTER",null,"KY","40444","(859)548-2360"]
["THIRD ROCK CONSULTANTS LLC",99,"03835","2526 REGENCY RD STE 180",null,null,"LEXINGTON",null,"KY","40503","(859)977-2000"]
["THOMAS GRINDING INC",99,"02556","PO BOX 1083 1020 FOXLANE SW",null,null,"MOORE HAVEN",null,"FL","33471","(863)261-8832"]
["THOMAS INDUSTRIAL COATINGS INC",99,"02287","2070 HWY Z",null,null,"PEVELY",null,"MO","63070","(636)475-3500"]
["THOMAS INDUSTRIAL COATINGS J/V CHAMPION",99,"03898","2070 HIGHWAY Z",null,null,"PEVELY",null,"MO","63070","(636)475-3500"]
["THOMAS WHALEN D/B/A CINCINI SWEEPER CO",99,"02414","459 GREENBRIER ROAD",null,null,"SEAMAN",null,"OH","45679","(937)927-5416"]
["THOMPSON BROTHERS CONSTRUCTION LLC",99,"03417","3691 RINGOS MILL RD",null,null,"HILLSBORO",null,"KY","41049","(606)776-0516"]
["THOMSON & THOMSON INC",99,"02717","PO BOX 10037",null,null,"JACKSON",null,"TN","38308","(731)668-1950"]
["THREE STAR PAINTING INC",99,"02861","3001 CROWSNEST DRIVE",null,null,"HOBART",null,"IN","46342","(219)942-7806"]
["THUNDER DISASTER SERVICES INC",99,"03490","18001 GREAT SMOKY MTN EXP",null,null,"WAYNESVILLE",null,"NC","28786","(828)452-3335"]
["TILFORD CONTRACTORS INC",99,"00750","P O BOX 1396  1928 N 8TH STREET",null,null,"PADUCAH",null,"KY","42002-1396","(270)443-7308"]
["TILTON EXCAVATING LLC",99,"03021","828 TILTON LANE",null,null,"MOUNT OLIVET",null,"KY","41064","(606)782-5039"]
["TIM HARRISON",99,"02372","2717 CARTER CREEK RD",null,null,"GREENVILLE",null,"KY","42345","(270)338-4905"]
["TIMMONS ELECTRIC CO INC",99,"03383","103 N COURT ST",null,null,"MORGANFIELD",null,"KY","42437","(270)389-2420"]
["TITAN INDUSTRIAL SERVICES INC",99,"03878","4054 N POINT RD",null,null,"BALTIMORE",null,"MD","21222","(410)477-1857"]
["TITAN REINFORCING LLC",99,"03156","900 N GARVER ROAD",null,null,"MONROE",null,"OH","45050","(513)539-4163"]
["TMS CONSTRUCTION INC",99,"03131","60 BONNIE LN",null,null,"FORT THOMAS",null,"KY","41075","(859)750-4234"]
["TNT CONSTRUCTION INC",99,"03090","486 BERRYTOWN ROAD",null,null,"RINEYVILLE",null,"KY","40162","(270)737-1587"]
["TODD JOHNSON CONTRACTING INC",99,"02065","497 DILLEHAY ST",null,null,"DANVILLE",null,"KY","40422","(859)238-9489"]
["TOM BROWN CONSTRUCTION CO",99,"02686","7965 NATIONAL TURNPIKE",null,null,"LOUISVILLE",null,"KY","40214","(502)361-0666"]
["TOM CHESNUT EXCAVATION & CONST LLC",99,"03497","1794 HIGHBRIDGE RD",null,null,"LANCASTER",null,"KY","40444","(859)333-8080"]
["TOM JONES",99,"02689","905 MANTON RD",null,null,"LORETTO",null,"KY","40037","(270)865-5057"]
["TOM WRIGHT CONSTRUCTION INC",99,"02646","950 COLLINS HWY",null,null,"PIKEVILLE",null,"KY","41501","(606)639-4416"]
["TOMMY COX COMPANY",99,"02823","919 FORDS MILL ROAD",null,null,"VERSAILLES",null,"KY","40383","(859)873-5089"]
["TOMMY WELLS CONSTRUCTION COMPANY INC",99,"00187","47 GREEN HILLS ROAD",null,null,"GLASGOW",null,"KY","42141","(270)678-2146"]
["TOMMY WELLS CONSTRUCTION INC",99,"02920","4474 BURKESVILLE RD",null,null,"GLASGOW",null,"KY","42141","(270)678-2146"]
["TOP SHELF TRUCKING LLC",99,"02825","105 WILDCAT DR",null,null,"RICHMOND",null,"KY","40475","(859)626-0817"]
["TOTAL AGRICULTURAL SERVICES OF KENTUCKY",99,"03353","3421 KY HWY 3003",null,null,"CYNTHIANA",null,"KY","41031","(859)229-6506"]
["TOTAL CONCEPT ELECTRIC INC",99,"03699","11878 CAPITAL WAY",null,null,"LOUISVILLE",null,"KY","40299","(502)266-6650"]
["TPM INC",99,"03721","2040 OLD LOUISVILLE ROAD",null,null,"BOWLING GREEN",null,"KY","42101","(270)781-4945"]
["TRACE CREEK CONSTRUCTION INC",99,"02439","1701 MASON LEWIS ROAD",null,null,"MAYSVILLE",null,"KY","41056","(606)564-8811"]
["TRACE CREEK CONSTRUCTION INC",99,"03574","127 MARKET STREET",null,null,"VANCEBURG",null,"KY","41179","(606)796-3887"]
["TRACK TECH INC",99,"03498","5109 INDUSTRIAL PARKWAY",null,null,"CALVERT CITY",null,"KY","42029","(270)395-0770"]
["TRACO CONSTRUCTION CO INC",99,"01408","1382 PRIDEMORE COURT",null,null,"LEXINGTON",null,"KY","40505","(606)253-2995"]
["TRAFFIC CONTROL SAFETY SERVICES INC",99,"03707","319 PERIMETER POINT BLVD",null,null,"WINSTON SALEM",null,"NC","27105","(336)771-7676"]
["TRAFFIC CONTROL SERVICE LLC",99,"03466","1411 STONERIDGE DRIVE",null,null,"MIDDLETOWN",null,"PA","17057","(717)944-8440"]
["TRAFFIC MARKINGS INC",99,"02834","4 MASTER DRIVE",null,null,"FRANKLIN",null,"MA","02038","(508)528-5727"]
["TRAFFIC SPECIALISTS INC",99,"00754","PO BOX 180",null,null,"SHANDON",null,"OH","45063","(513)738-1900"]
["TRAM CONSTRUCTION INC",99,"02644","PO BOX 250",null,null,"GARRISON",null,"KY","41141","(606)757-4874"]
["TRAMEL CONSTRUCTION LLC",99,"03316","P O BOX 581",null,null,"WEST VAN LEAR",null,"KY","41268","(606)887-4596"]
["TRANS TECH ELECTRIC LP  WOS OF QUANTA",99,"02156","4601 CLEVELAND ROAD",null,null,"SOUTH BEND",null,"IN","46628","(574)272-9673"]
["TRANSCORE ITS LLC",99,"03053","8158 ADAMS DRIVE LIBERTY CENTRE",null,null,"HUMMELSTOWN",null,"PA","17036","(717)561-2400"]
["TRAVIS CONTRUCTION COMPANY INC",99,"03773","P O BOX 248    5045 GILBERTSVILLE HWY",null,null,"CALVERT CITY",null,"KY","42029","(270)395-2770"]
["TRAYLOR BROS INC & SUBSIDIARIES",99,"00170","835 N CONGRESS AVE",null,null,"EVANSVILLE",null,"IN","47715","(812)477-1542"]
["TRI COUNTY CONCRETE INC",99,"03347","P O BOX 248",null,null,"HAGERHILL",null,"KY","41222","(606)789-8800"]
["TRI G CONTRACTORS LLC",99,"02598","PO BOX 730",null,null,"LONDON",null,"KY","40743-0730","(606)843-6136"]
["TRI STATE CONCRETE SAWING INC",99,"02656","5551 DRY FORK RD",null,null,"CLEVES",null,"OH","45002","(513)353-2468"]
["TRI STATE GUARDRAIL INC",99,"03004","P O BOX 3233",null,null,"PIKEVILLE",null,"KY","41502","(606)454-0074"]
["TRI STATE RAIL SERVICES INC",99,"03787","P O BOX 363",null,null,"WORTHINGTON",null,"KY","41183","(606)836-2942"]
["TRIANGLE CONSTRUCTION CO INC",99,"01164","P O BOX 16620",null,null,"LOUISVILLE",null,"KY","40216","(502)774-8644"]
["TRIANGLE INCORPORATED",99,"03890","P O BOX 697",null,null,"HURRICANE",null,"WV","25526","(304)562-6282"]
["TRI-CITIES PAVING & CONTRACTING INC",99,"01262","P O BOX 1552",null,null,"ASHLAND",null,"KY","41105-1552","(606)329-8646"]
["TRINITY ERECTORS INC",99,"01828","6709 CAROLYN ROAD",null,null,"LOUISVILLE",null,"KY","40214","(502)367-2203"]
["TRIPLE C CONTRACTORS LLC",99,"03770","139 FLORENCE LN",null,null,"CYNTHIANA",null,"KY","41031","(859)298-9628"]
["TRIPLE CROWN EXCAVATING LLC",99,"02610","2220 NICHOLASVILLE RD STE 110 PMB 252",null,null,"LEXINGTON",null,"KY","40503","(859)276-5475"]
["TRIPLE D COMMUNICATIONS INC",99,"02528","3006 PARK CENTRAL AVENUE",null,null,"NICHOLASVILLE",null,"KY","40356","(859)887-4683"]
["TRIPLE J CONSTRUCTION INC",99,"01315","P O BOX 52",null,null,"FRENCHBURG",null,"KY","40322","(606)784-1335"]
["TRIPLE P OIL INC",99,"03225","5560 LOWER SAND LICK ROAD",null,null,"WEST LIBERTY",null,"KY","41472","(606)522-4487"]
["TRIPLE T LLC",99,"03688","582 KEAVY ROAD",null,null,"LONDON",null,"KY","40741","(606)682-1095"]
["TRIPLETT CONSTRUCTION COMPANY",99,"02087","P O BOX 374    SOUTH  211",null,null,"SALT LICK",null,"KY","40371","(606)683-2213"]
["TRIPLETT CONSTRUCTION INC",99,"02459","PO BOX 374",null,null,"SALT LICK",null,"KY","40371","(606)683-2213"]
["TRIPPLE T LAWN CARE",99,"03530","224 CHIPPEWA LANE",null,null,"LONDON",null,"KY","40741","(606)682-1095"]
["TRI-SPAN CONSTRUCTION LLC",99,"03135","P O BOX 163",null,null,"LOUISA",null,"KY","41230","(606)638-3887"]
["TRI-STATE DRILLING INC",99,"02431","P O BOX 252",null,null,"HAMEL",null,"MN","55340","(612)553-1234"]
["TRI-STATE STEEL CONSTRUCTION INC",99,"00757","12608 ALAMEDA DRIVE",null,null,"STRONGSVILLE",null,"OH","44149","(440)238-3331"]
["TRITON CONSTRUCTION INC AND SUBSIDIARIES",99,"03623","P O BOX 1360",null,null,"SAINT ALBANS",null,"WV","25177","(304)759-2100"]
["TRI-TURF SOD FARMS INC",99,"03303","170 DOLAN ROAD",null,null,"PARIS",null,"TN","38242","(731)642-3092"]
["TROY PAINTING INC",99,"03015","4328 MCCARTNEY ROAD ROOM B",null,null,"LOWELLVILLE",null,"OH","44436","(330)536-6500"]
["TRU GREEN LANDCARE LLC W/O/S SVC MASTER",99,"02551","17701 NEW HAMPSHIRE AVE",null,null,"ASHTON",null,"MD","20861","(888)526-8174"]
["TRU WALL CONCRETE INC",99,"02684","10737 MEDALLION DRIVE",null,null,"CINCINNATI",null,"OH","45241","(513)771-8192"]
["TRUELINE CORING AND CUTTING OF",99,"02554","120 WEST 72ND ST  STE 200",null,null,"KANSAS CITY",null,"MO","64114","(816)523-2131"]
["TRUMBULL CORPORATION & SUBSIDIARY",99,"02750","PO BOX 6774    225 N SHORE DR",null,null,"PITTSBURGH",null,"PA","15212","(412)807-2000"]
["TSI CONSTRUCTION INC",99,"03337","P O BOX 1540",null,null,"NEW ALBANY",null,"IN","47150","(812)948-6691"]
["TUFF LITTLE BOAT & BARGE CO",99,"91012","100 RANDALL AVE",null,null,"VEVAY",null,"IN","47043","(812)427-0226"]
["TULLY CONST CO INC J/V MIDWEST STEEL INC",99,"03629","127-50 NORTHERN BLVD",null,null,"FLUSHING",null,"NY","11368","(718)446-7000"]
["TULLY CONSTRUCTION CO INC",99,"03566","127-50 NORTHERN BLVD",null,null,"FLUSHING",null,"NY","11368","(718)446-7000"]
["TURN-KEY TUNNELING INC",99,"02950","1247 STIMMEL RD",null,null,"COLUMBUS",null,"OH","43223","(614)275-4832"]
["TUTOR PERINI CORPORATION",99,"03385","15901 OLDEN STREET",null,null,"SYLMAR",null,"CA","91342","(818)362-8391"]
["TUTT INC",99,"00244","2440 OVER  DR",null,null,"LEXINGTON",null,"KY","40511","(859)253-3737"]
["TWIN K CONSTRUCTION INC & SUB",99,"03670","13271 SCOTT HWY",null,null,"HELENWOOD",null,"TN","37755","(423)569-2049"]
["TWIN RIVERS CONSTRUCTION INC",99,"01296","5115 HIGHWAY  56",null,null,"OWENSBORO",null,"KY","42301","(502)229-4453"]
["TWIN STATES UTILITIES & EXCAVATION INC",99,"03112","P O BOX 14  9440 OLD GLASGOW RD",null,null,"MOUNT HERMON",null,"KY","42157","(270)427-5300"]
["TWISTED RAIL INC",99,"03677","P O BOX 3233",null,null,"PIKEVILLE",null,"KY","41502","(606)454-0074"]
["U S A PAINTING COMPANY INC",99,"00760","P O BOX 605     576 BREETZ DRIVE",null,null,"CAMPBELL",null,"OH","44405","(330)755-1529"]
["U S TRACKWORKS INC W/O/S RAILWRKS CORP",99,"01960","P  O BOX 10",null,null,"MOLINE",null,"MI","49335-0010","(616)877-4777"]
["UCL INC",99,"02904","2025 STAPLETON CT",null,null,"CINCINNATI",null,"OH","45240","(513)674-1666"]
["UECO INC",99,"02674","2601 S 4TH STREET",null,null,"LOUISVILLE",null,"KY","40208","(502)636-2500"]
["UNDER ARMOUR CONSTRUCTION INC",99,"03563","115 CREED CIRCLE",null,null,"CAMPBELL",null,"OH","44405","(330)423-7937"]
["UNDERGROUND INC",99,"02902","P O BOX 155",null,null,"FAIRVIEW",null,"KY","42221","(270)265-5922"]
["UNICUSTOM INCORPORATED",99,"00167","3263 HOMEWARD WAY",null,null,"FAIRFIELD",null,"OH","45014","(513)874-9806"]
["UNITED CONSTRUCTION & DESIGN GROUP INC",99,"02468","4637 ILLINOIS AVENUE",null,null,"LOUISVILLE",null,"KY","40213","(502)451-3388"]
["UNITED CONSTRUCTION & DESIGN LLC",99,"03354","131 GARDNER WAY",null,null,"MOUNT WASHINGTON",null,"KY","40047","(502)904-0202"]
["URETEK USA INC",99,"02423","PO BOX 1929",null,null,"TOMBALL",null,"TX","77377","(281)351-7800"]
["US RENTALS & CONSTRUCTION INC",99,"03279","4429 SOUTHERN HILLS",null,null,"ASHLAND",null,"KY","41102","(606)471-4007"]
["UTILIPATH LLC",99,"03400","136 CORPORATE PARK DRIVE STE G",null,null,"MOORESVILLE",null,"NC","28117","(704)948-1005"]
["UTILITY & ENVIRONMENTAL CONCEPTS LLC",99,"03762","5808 LOWER KINNEY ROAD",null,null,"VANCEBURG",null,"KY","41179","(606)796-6948"]
["UTILITY SAFETY AND DESIGN INC WOS",99,"03845","1927 MILLER DR",null,null,"OLNEY",null,"IL","62450","(618)392-5502"]
["V & M ERECTORS INC",99,"03659","21005 TAFT STREET",null,null,"PEMBROKE PINES",null,"FL","33029","(954)437-9998"]
["V FEENEY INC",99,"02875","4518 W 200 N",null,null,"GREENFIELD",null,"IN","46140","(317)894-7930"]
["V H P ENTERPRISES INC",99,"02210","728 WESLEY AVENUE",null,null,"TARPON SPRINGS",null,"FL","34689","(727)938-9765"]
["VALLEYCREST LANDSCAPE DEVELOPMENT INC",99,"02291","24151 VENTURA BOULEVARD",null,null,"CALABASAS",null,"CA","91302","(818)737-2629"]
["VAN METER CONSTRUCTION COMPANY INC",99,"01549","790 WESTLAND DRIVE",null,null,"LEXINGTON",null,"KY","40504","(606)254-7376"]
["VANHOOK ENTERPRISES INC",99,"03265","P O BOX 3547",null,null,"SOMERSET",null,"KY","42564","(606)678-2737"]
["VANMETER & SONS LLC",99,"03840","710 PLEASANT MEADOW LN",null,null,"BOWLING GREEN",null,"KY","42101","(270)418-8474"]
["VANMETER CONTRACTING INC",99,"01826","P O BOX 2000",null,null,"BOWLING GREEN",null,"KY","42102","(270)781-5549"]
["VECELLIO & GROGAN INC",99,"00766","PO BOX 2438",null,null,"BECKLEY",null,"WV","25802","(304)252-6575"]
["VENTURE CONSTRUCTION INC",99,"03509","42 LOCKE RD",null,null,"CONCORD",null,"NH","03301","(603)224-6340"]
["VENUS PAINTING CO",99,"02225","443 FORESTWOOD DR",null,null,"VALPARAISO",null,"IN","46385","(219)531-9364"]
["VERMILION TREE & LAND CLEARING SERVICE",99,"03308","49040 COOPER FOSTER PARK RD",null,null,"AMHERST",null,"OH","44001","(440)988-3162"]
["VETCO INC",99,"03702","P O BOX 216   750 PAINT LICK ROAD",null,null,"BEREA",null,"KY","40403","(859)986-8500"]
["VIC ENTERPRISES INC",99,"03341","9750 CHILDRESS RD",null,null,"PADUCAH",null,"KY","42086","(270)210-5324"]
["VIMAS PAINTING COMPANY INC",99,"02222","4328 MCCARTNEY RD",null,null,"LOWELLVILLE",null,"OH","44436","(330)536-2222"]
["VIRGINIA DRILLING COMPANY LLC",99,"03689","P O BOX 1198",null,null,"VANSANT",null,"VA","24656","(276)597-4449"]
["VIRGINIA DRILLING COMPANY LLC WOS VEDCO",99,"02466","P O BOX 1198  1793 DRY FORK RD",null,null,"VANSANT",null,"VA","24656","(276)597-4449"]
["VIRGINIA TURF MANAGEMENT ASSOCIATES INC",99,"03260","1703 MONTICELLO AVE",null,null,"NORFOLK",null,"VA","23517","(757)397-4040"]
["VITCO INC DBA REDI-ROCK K I T",99,"03372","850 LANDIS LN",null,null,"MOUNT WASHINGTON",null,"KY","40047","(502)538-6820"]
["VITTITOE TREE SERVICE INC",99,"02111","5135 BOSTON ROAD",null,null,"BARDSTOWN",null,"KY","40004","(502)376-6602"]
["VOLUNTEER HIGHWAY SUPPLY CO INC",99,"01979","7603 MAYNARDVILLE  HWY",null,null,"KNOXVILLE",null,"TN","37938","(423)922-7473"]
["VORST PAVING INC",99,"03720","14373 ROAD 23 M",null,null,"CLOVERDALE",null,"OH","45827","(419)453-3166"]
["VULCAN CONSTRUCTION MATERIALS LP",99,"02552","1200 URBAN CENTER DRIVE",null,null,"BIRMINGHAM",null,"AL","35242","(205)298-3192"]
["VULCAN MATERIALS CO & SUBSIDIARY CO",99,"00769","1200 URBAN CENTER DR  STARR C ROGERS",null,null,"BIRMINGHAM",null,"AL","35242","(205)298-3000"]
["W & W PAINTING",99,"02521","PO BOX 2233",null,null,"PADUCAH",null,"KY","42002-2233","(270)442-0083"]
["W A KENDALL AND COMPANY INC",99,"02543","PO BOX 831",null,null,"LAWRENCEVILLE",null,"GA","20046","(770)963-6017"]
["W D STEELE CONSTRUCTION SERVICES LLC",99,"03123","P O BOX 645   632 SOUTH 4TH STREET",null,null,"MURRAY",null,"KY","42071","(270)761-9372"]
["W G GRADING INC DBA DJ DENGER CO",99,"03541","P O BOX 7038",null,null,"FISHERS",null,"IN","46038","(317)710-4502"]
["W L HAILEY & COMPANY INC",99,"00479","P O BOX 40646   2971 KRAFT DR",null,null,"NASHVILLE",null,"TN","37204","(615)255-3161"]
["W L HARPER JV BLUEGRASS PAVING",99,"02906","P O BOX 420   1648 PETERSBURG RD",null,null,"HEBRON",null,"KY","41048","(859)586-8890"]
["W L MARKERS INC",99,"03801","2834 FISHER RD",null,null,"COLUMBUS",null,"OH","43204","(614)279-2544"]
["W L MARKERS INCORPORATED",99,"02790","639 GLENMOOR DRIVE",null,null,"COLUMBUS",null,"OH","43228","(614)279-2544"]
["W Q WATTERS COMPANY",99,"00776","1081 KANAWHA STATE FOREST DR",null,null,"CHARLESTON",null,"WV","25314","(304)744-9431"]
["W R FAIRCHILD CONSTRUCTION COMPANY LLC",99,"02305","P O BOX 15909",null,null,"HATTIESBURG",null,"MS","39404","(601)544-1151"]
["W R MOLLOHAN INC",99,"02553","RT 2 BOX 253",null,null,"CHARLESTON",null,"WV","25314","(304)345-3964"]
["W R ONAN INC",99,"00822","P O BOX 4353",null,null,"MIDWAY",null,"KY","40347","(859)536-3479"]
["W ROGERS COMPANY",99,"00136","649 BIZZELL DRIVE",null,null,"LEXINGTON",null,"KY","40510","(859)231-6290"]
["W THOMAS COMPANY INC",99,"02502","PO BOX 524",null,null,"FLEMINGSBURG",null,"KY","41041","(606)849-3681"]
["WAGMAN HEAVY CIVIL INC",99,"03820","3290 N SUSQUEHANNA TRL",null,null,"YORK",null,"PA","17406","(717)764-8521"]
["WAHLS EXCAVATING & UNDERGROUND INC",99,"00774","P O BOX  2425",null,null,"PADUCAH",null,"KY","42002-2425","(270)442-7581"]
["WALCO INC OF ROBBINSVILLE NC",99,"02257","50 FORD STREET",null,null,"ROBBINSVILLE",null,"NC","28771","(828)479-6501"]
["WALDROUP CONSTRUCTION INC",99,"02594","PO BOX 1879",null,null,"ROBBINSVILLE",null,"NC","28771","(828)479-8447"]
["WALKER CONSTRUCTION & MATERIALS LLC",99,"03832","3009 ATKINSON AVE STE 400",null,null,"LEXINGTON",null,"KY","40509","(859)223-7001"]
["WALKER EXCAVATING INC",99,"01973","11079 STATE ROUTE 132 E",null,null,"SEBREE",null,"KY","42455","(270)835-9718"]
["WALSH CONSTR CO II  J/V LOUISVILLE PAVIN",99,"03829","1260 E SUMMIT ST",null,null,"CROWN POINT",null,"IN","46307","(219)661-2450"]
["WALSH CONSTRUCTION COMPANY",99,"01209","929 WEST ADAMS STREET",null,null,"CHICAGO",null,"IL","60607","(312)563-5400"]
["WALSH CONSTRUCTION COMPANY II LLC",99,"03633","1260 EAST SUMMIT ST",null,null,"CROWN POINT",null,"IN","46307","(219)661-2450"]
["WALTER C LEWIS COMPANY",99,"00152","PO BOX 358 4271 ROCK CREEK ROAD",null,null,"CLARKSON",null,"KY","42726","(270)242-6936"]
["WALTER CONST LTD W/O/S OF  WALTER HOLD",99,"02483","233 - 19 STREET NE",null,null,"CALGARY ALBERTA",null,"CA","T2E728","(403)207-7300"]
["WALTER CONSTRUCTION (USA) INC",99,"02534","441 SW  41ST STREET",null,null,"RENTON",null,"WA","98055","(403)207-7300"]
["WALTER MARTIN EXCAVATING",99,"02060","1060 HIGHWAY 1383",null,null,"RUSSELL SPRINGS",null,"KY","42642","(270)866-7208"]
["WALTER MARTIN EXCAVATING INC",99,"02955","501 DARBY CREEK SUITE 18",null,null,"LEXINGTON",null,"KY","40509","(859)368-0380"]
["WALTER RANDOLPH INC",99,"02388","230 NORTHLAND BLVD",null,null,"CINCINNATI",null,"OH","45246","(513)771-1504"]
["WAMPUM HARDWARE CO",99,"03398","636 PADEN RD",null,null,"NEW GALILEE",null,"PA","16141","(724)336-8217"]
["WARCO LAND IMPROVEMENT CO INC",99,"02074","P O BOX 1590",null,null,"MARTIN",null,"KY","41649","(606)285-9472"]
["WARREN STONE ALLIED BUILDERS INC",99,"01324","P O BOX 277",null,null,"INDEPENDENCE",null,"KY","41051","(606)356-1609"]
["WASCO INC",99,"02697","PO BOX 280657",null,null,"NASHVILLE",null,"TN","37228","(615)244-9090"]
["WASHINGTON GROUP INTERNATIONAL INC",99,"01830","P O BOX 22      720 PARK BLVD",null,null,"BOISE",null,"ID","83729","(208)386-5425"]
["WATERMARK CONSTRUCTION LLC",99,"03113","P O BOX 910212",null,null,"LEXINGTON",null,"KY","40591","(859)373-1354"]
["WATTS BROTHERS CABLE CONSTRUCTION INC",99,"03431","4005 VINCENT STATION ROAD",null,null,"OWENSBORO",null,"KY","42303","(270)689-1501"]
["WEAVERS SAWING AND SEALING LLC",99,"02976","P O BOX 1296",null,null,"WHITLEY CITY",null,"KY","42653","(606)376-7188"]
["WE-BUR INC",99,"02296","141 CHEROKEE TERRACE",null,null,"FISHERVILLE",null,"KY","40023","(502)477-6090"]
["WEDDLE BROS CONSTRUCTION CO INC",99,"00772","PO BOX 1330",null,null,"BLOOMINGTON",null,"IN","47402","(812)339-9500"]
["WEDDLE BROS HIGHWAY GROUP LLC WOS WEDDLE",99,"03739","2182 W INDUSTRIAL PARK DR",null,null,"BLOOMINGTON",null,"IN","47404","(812)339-9500"]
["WEDDLE ENTERPRISES INC",99,"01564","25 SHANES LN",null,null,"SOMERSET",null,"KY","42501","(606)678-4057"]
["WELCO LLC",99,"02560","209 #9 QUALITY AVE",null,null,"NEW ALBANY",null,"IN","47150","(812)949-8986"]
["WELFLE INC",99,"02988","P O BOX 581  797 SR 61 E",null,null,"NORWALK",null,"OH","44857","(419)663-1121"]
["WES-BEN COMPANY INC",99,"01856","60 LAURA STREET  PO BOX 1090",null,null,"ROBBINSVILLE",null,"NC","28771","(828)479-3540"]
["WEST CONTRACTING INC",99,"03695","P O BOX 310",null,null,"MARBLE",null,"NC","28905","(828)837-2280"]
["WEST END ELECTRIC CO INC",99,"01788","640 2ND ST",null,null,"PORTSMOUTH",null,"OH","45662","(740)354-8671"]
["WEST KENTUCKY PAVERS INC",99,"02910","442 NORTH DR",null,null,"HOPKINSVILLE",null,"KY","42240","(270)889-5179"]
["WESTATE CONSTRUCTION INC",99,"01273","P O BOX 25    4850 LAFAYETTE RD",null,null,"HOPKINSVILLE",null,"KY","42241","(270)886-5364"]
["WESTERFIELD BUILDERS INC",99,"03433","P O BOX 992",null,null,"HOPKINSVILLE",null,"KY","42241","(270)886-4309"]
["WESTERN CRANE SERVICE INC",99,"03218","140 WAFFLE COURT",null,null,"BOWLING GREEN",null,"KY","42101","(270)782-3407"]
["WHF INC",99,"03499","7440 RINEYVILLE ROAD",null,null,"RINEYVILLE",null,"KY","40162","(270)739-0002"]
["WHITEHEAD ELECTRIC CO INC",99,"00203","P O BOX 370  11404 U S HWY 60 WEST",null,null,"STURGIS",null,"KY","42459-0370","(270)333-2879"]
["WHITES LAWN & LANDSCAPING SERVICES INC",99,"02914","P O BOX 991093",null,null,"LOUISVILLE",null,"KY","40269","(502)491-0235"]
["WHITLEY COUNTY STONE LLC",99,"02776","PO BOX 657",null,null,"CORBIN",null,"KY","40702","(606)523-9670"]
["WILDCAT CONSTRUCTION OF KENTUCKY LLC",99,"03002","1035 STRADER DRIVE  SUITE #125",null,null,"LEXINGTON",null,"KY","40505","(859)254-4386"]
["WILDERNESS USA INC",99,"03756","300 LUCIUS GORDON DRIVE",null,null,"WEST HENRIETTA",null,"NY","14586","(705)575-4805"]
["WILFORD  FIELDS & SON",99,"02550","926 WEST BRYAN ROAD",null,null,"ELIZABETHTOWN",null,"KY","42701","(270)737-9577"]
["WILKINS CONSTRUCTION COMPANY INC",99,"00788","514 LOUISIANA ST",null,null,"PADUCAH",null,"KY","42002","(270)442-8174"]
["WILLETT & DONNELLY LAWN TREE & GRND INC",99,"02359","1670BLOOMFIELD ROAD",null,null,"SPRINGFIELD",null,"KY","40069","(606)336-5981"]
["WILLIAM D ROSS DBA BILL ROSE CONSTR",99,"01980","909  HIGHLAND AVENUE",null,null,"ASHLAND",null,"KY","41101","(606)324-8270"]
["WILLIAM E GROVES CONSTRUCTION INC",99,"02410","PO BOX 1205  3135 GRAPEVINE RD",null,null,"MADISONVILLE",null,"KY","42431","(270)825-1437"]
["WILLIAM R GEARY",99,"01407","14550 US HWY 431 NORTH",null,null,"CENTRAL CITY",null,"KY","42330","(270)754-2837"]
["WILLIS CONCRETE CONSTRUCTION",99,"03371","1364 HEGIRA ROAD",null,null,"BURKESVILLE",null,"KY","42717","(270)433-0200"]
["WILLIS FENCE COMPANY INC",99,"02653","PO BOX 786  7470 HIGHWAY 66",null,null,"NEWBURGH",null,"IN","47629-0786","(812)853-2963"]
["WILLIS PAVING INC",99,"03395","P O BOX  245",null,null,"NEW TAZEWELL",null,"TN","37824","(423)626-0422"]
["WILLMOTT CONSTRUCTION INC",99,"02633","1686 PARADISE CAMP ROAD",null,null,"HORRODSBURG",null,"KY","40330","(859)748-5182"]
["WILSON & ROY CONSTRUCTION INC",99,"02884","50 PRATHER DR",null,null,"NANCY",null,"KY","42544","(606)636-6457"]
["WILSON & WILSON DECORATIVE CONCRETE INC",99,"03643","590 WALTER LAKES ROAD",null,null,"WACO",null,"KY","40385","(859)358-3016"]
["WIND RIDGE CONSTRUCTION LLC",99,"03454","420 CLYDE T BARBOUR PARKWAY",null,null,"MAYSVILLE",null,"KY","41056","(606)584-0264"]
["WINDING ROAD CONSTRUCTION INC",99,"03764","39036 CO RD 225",null,null,"BIGFORK",null,"MN","56628","(218)743-1877"]
["WINGHAM PAVING INC",99,"02394","6802 DECKER LANE",null,null,"CHARLESTOWN",null,"IN","47111","(812)256-2000"]
["WINKLERS EROSION CONTROL INC",99,"03115","2146 MOBLEY MILL ROAD",null,null,"COXS CREEK",null,"KY","40013","(502)510-3353"]
["WJT LLC",99,"02876","24053 VOTE RD",null,null,"BATESVILLE",null,"IN","47006","(812)934-4574"]
["W-L CONSTRUCTION & PAVING INC",99,"01425","PO DRAWER 927 1484 HIGHWAY 107 NORTH",null,null,"CHILHOWIE",null,"VA","24319","(276)646-3804"]
["WME D/B/A PHOENIX CONTRACTING",99,"03714","P O BOX 2217",null,null,"RUSSELL SPRINGS",null,"KY","42642","(606)305-2370"]
["WOMACK EXCAVATING",99,"02564","PO BOX 798",null,null,"GREENUP",null,"KY","41144","(606)473-5292"]
["WOODALL CONSTRUCTION CO INC",99,"01768","1332 CAHILL DR",null,null,"LEXINGTON",null,"KY","40504","(859)233-2909"]
["WOODFORD EXCAVATION & TRANSPORT INC",99,"03476","310 FIELDING DR",null,null,"VERSAILLES",null,"KY","40383","(859)873-2237"]
["WOODFORD STEEL INC DBA WS CONSTRUCTION",99,"03132","P O BOX 436",null,null,"VERSAILLES",null,"KY","40383","(859)873-7840"]
["WORLEYS TREE SERVICE INC",99,"03678","1040 SOUTH BROADWAY",null,null,"POPLA-BLUFF",null,"MO","63901","(573)686-6661"]
["WRIGHT BROS CONST CO INC DBA WRIGHTSRDBD",99,"00787","P O BOX 437",null,null,"CHARLESTON",null,"TN","37310","(423)336-2261"]
["WRIGHT CONCRETE & CONSTRUCTION INC",99,"02525","PO BOX 358",null,null,"DORTON",null,"KY","41520","(606)639-4484"]
["WRIGHTS EXCAVATING INC",99,"03133","6449 FRANKFORT ROAD",null,null,"SHELBYVILLE",null,"KY","40065","(502)829-5088"]
["XTREME REINFORCING INC",99,"03180","22164 STATE ROUTE 251",null,null,"MIDLAND",null,"OH","45148","(513)504-1498"]
["YAGER MATERIALS CORP",99,"03847","P O BOX 2000",null,null,"OWENSBORO",null,"KY","42302","(270)926-3611"]
["YAGER MATERIALS INC",99,"00276","PO BOX 2000  5001 US HWY 60 EAST",null,null,"OWENSBORO",null,"KY","42302-2000","(270)926-3611"]
["YAGER MATERIALS LLC",99,"02827","PO BOX 2000",null,null,"OWENSBORO",null,"KY","42302","(270)926-3611"]
["YALE EXCAVATING INC",99,"03467","712 WEST 15TH STREET",null,null,"HOPKINSVILLE",null,"KY","42240","(270)886-4821"]
["YANA ELDER CO INC",99,"02965","11318 BODLEY DR",null,null,"LOUISVILLE",null,"KY","40223","(502)817-0388"]
["YORK BRIDGE CONCEPTS INC",99,"03823","2420 BRUNELLO TRACE",null,null,"LUTZ",null,"FL","33558","(813)482-0613"]
["YOUNGBLOOD EXCAVATING & CONTRACTING LLC",99,"03419","150 HICKORY RD",null,null,"HICKORY",null,"KY","42051","(270)247-1400"]
["ZACHRY CONSTRUCTION CORPORATION",99,"03455","P O BOX 33240",null,null,"SAN ANTONIO",null,"TX","78265","(210)871-2858"]
["ZEL CONTRACTING INC",99,"02625","608 CANTRELL ROAD",null,null,"HODGENVILLE",null,"KY","42748","(270)358-9735"]

{"sheet":"YrEnd Ratings","index":4,"n_rows":51,"n_cols":2,"rows_kept":51,"cut":false,"hidden":false,"merged":[]}
[null,"Year-End Evaluation Report for Prime Contractor and Subcontractor(s)"]
[null,"Ratings Explanations"]
[]
[null,"Section A – Contractor Work Performance"]
[]
[null,"A1. Overall quality of work of the contractor (including subcontractors > $50,000)"]
[null,"Choose a rating of 1, 3 or 5 according to the following criteria:"]
[]
[1,"1: Poor "]
[3,"3: Average"]
[5,"5: Above Average"]
[]
[null,"A2. Meeting of all contract dates (including approved extensions)"]
[null,"Choose a rating of 1, 3 or 5 according to the following criteria:"]
[]
[1,"1: The project is behind schedule and it appears that the contractor will not be able to meet the project completion date or working days established for the project."]
[3,"3: The project is on schedule and it appears that the contractor will be able to meet the project completion date or working days established for the project."]
[5,"5: Project ahead of schedule and it appears that the contractor will be able to exceed the project completion date or working days established for the project."]
[]
[null,"A4. Cooperation/coordination with KYTC’s project staff"]
[null,"Choose a rating of 1, 3 or 5 according to the following criteria:"]
[]
[1,"1: Contractor did not adhere to submitted schedule and did not keep KYTC routinely informed of changes and problems. Requests for information/submittals/records/etc. were not handled in a timely manner."]
[3,"3: Cooperation/coordination was timely and satisfactorily."]
[5,"5: Contractor actively engaged as a project partner by coordinating progress meetings, scheduling work around events and delays, or by utilizing other resources to make the project a success.  "]
[]
[null,"Section B – Public Safety and Traffic Control"]
[]
[null,"B1. Maintenance of traffic (proper signage, workers worked during allowable hours, public notification)"]
[null,"Choose a rating of 1, 3, or 5 according to the following criteria:"]
[]
[1,"1: Contractor was directed numerous times to correct deficiencies in the work zone. Liquidated damages were assessed for failure to correct the noted deficiencies which were documented on the Traffic Control Inspection Report."]
[3,"3: Traffic control and public notification was acceptable."]
[5,"5: Total project involvement by actively engaging advance warning techniques, oversize vehicle considerations, media dissemination, law enforcement officers, and on site traffic technicians."]
[]
[null,"B2. Overall safety of employees (including subcontractors)"]
[null,"Choose a rating of 1, 3 or 5 according to the following criteria:"]
[]
[1,"1: Received OSHA citation and/or serious hazard(s) noted by SE and not immediately corrected. Safety issues were not being communicated with projects partners."]
[3,"3: The Section Engineer noted no hazards during the project."]
[5,"5: Total safety project involvement by all project partners. All partners are involved with safety meetings and communication of potential safety problems being distributed to all parties including SE and state personnel."]
[]
[null,"Section C – Environmental Requirements"]
[]
[null,"C1. Performance of environmental mitigation methods (e.g. maintaining silt fencing, erosion control)"]
[null,"Choose a rating of 0, 1, 3 or 5 according to the following criteria:"]
[]
[0,"0: Environmental mitigation methods do not apply to this project."]
[1,"1: Erosion control devices were not adequately maintained. Progressive seeding was not completed per contract requirements."]
[3,"3: Acceptable work and all erosion control reports addressed."]
[5,"5: Contractor was proactive in best management practices and/or used innovative erosion control techniques. Erosion control devices were adequately maintained. Progressive seeding was completed per contract requirements. "]

{"sheet":"Final Ratings","index":5,"n_rows":73,"n_cols":2,"rows_kept":73,"cut":false,"hidden":false,"merged":[]}
[null,"Final Evaluation Report for Prime Contractor and Subcontractor(s)"]
[null,"Ratings Explanations"]
[]
[null,"Section A – Contractor Work Performance"]
[]
[null,"A1. Overall quality of work of the contractor"]
[null,"(including subcontractors > $50,000)"]
[null,"Choose a rating from 1 to 5 according to the following criteria:"]
[]
[1,"1: Items were removed and replaced or deductions were made due to quality issues in accordance with specifications which totaled more than 5% of the total contract amount or the contractor failed to complete the project leading to a default of the contract. "]
[2,"2: Items were removed and replaced or deductions were made due to quality issues in accordance with specifications which totaled no more than 5% of the total contract amount."]
[3,"3: The work was acceptable with all corrective work items and noted deficiencies being addressed per specifications."]
[4,"4: No corrective work at final inspection."]
[5,"5: No corrective work at final inspection and no material failures on the contract."]
[]
[null,"A2. Meeting of all contract dates (including approved extensions)"]
[null,"Choose a rating from 1 to 5 according to the following criteria:"]
[]
[1,"1: Failed to complete the project by the established contract completion date and failed to meet an established milestone date in the contract."]
[2,"2: Failed to complete the project by the established contract completion date or failed to meet an established milestone date in the contract."]
[3,"3: Completed the project on schedule or up to 5% ahead of the contract completion date and met all established milestone dates in the contract."]
[4,"4: Completed the project between 5% and 10% ahead of the contract completion date and met all established milestone dates in the contract."]
[5,"5: Completed the project by more than 10% ahead of the contract completion date and met all established milestone dates in the contract."]
[]
[null,"A3. Completion of all job closeout activities (punch list, clean-up, paperwork, etc.) in a timely manner)"]
[null,"Choose a rating from 1 to 5 according to the following criteria:"]
[]
[1,"1: Failed to complete all corrective work and to submit all project documentation within 180 days of receiving the Comprehensive Final Inspection Report with the exception of the seeding and landscaping. "]
[2,"2: Failed to complete all corrective work and to submit all project documentation within 90 days of receiving the Comprehensive Final Inspection Report with the exception of the seeding and landscaping. "]
[3,"3: Completed all corrective work and submitted all project documentation within 90 days of receiving the Comprehensive Final Inspection Report except for seeding and landscaping."]
[4,"4: Completed all corrective work submitted all project documentation within 30 days of receiving the Comprehensive Final Inspection Report except for seeding and landscaping."]
[5,"5: There was no corrective work on this project and all project documentation was submitted as requested."]
[]
[null,"A4. Cooperation/coordination with KYTC’s project staff"]
[null,"Choose a rating from 1 to 5 according to the following criteria:"]
[]
[1,"1: Contractor did not adhere to submitted schedule and did not keep KYTC informed of changes and problems. Requests for information/submittals/records/etc. were routinely ignored. Numerous complaints from private citizens were not addressed."]
[2,"2: Contractor did not adhere to submitted schedule and did not keep KYTC routinely informed of changes and problems.  Requests for information/submittals/records/etc. were not handled in a timely manner."]
[3,"3: Cooperation/coordination was timely and satisfactory throughout the project."]
[4,"4: Contractor actively coordinated/communicated with Cabinet personnel and attempted to minimize the impact of delays on the project.   "]
[5,"5: Contractor actively engaged as a project partner by coordinating progress meetings, scheduling work around events and delays, or by utilizing other resources to make the project a success. Contractor not only attempted to minimize impact of delays for the Cabinet, but put forth valuable suggestions to enhance project."]
[]
[null,"Section B – Public Safety and Traffic Control"]
[]
[null,"B1. Maintenance of traffic (proper signage, workers worked during allowable hours, public notification)"]
[null,"Choose a rating from 1 to 5 according to the following criteria:"]
[]
[1,"1: Contractor was directed numerous times to correct deficiencies in the work zone. Liquidated Damages were assessed for failure to correct the noted deficiencies which were documented on the Traffic Control Inspection Report."]
[2,"2: Contractor was directed to correct deficiencies in the work zone less than 5 times during the project.  Contractor completed any noted deficiencies in a timely manner and liquidated damages were not assessed."]
[3,"3: Traffic Control devices were installed as per standards with minimal direction."]
[4,"4: Traffic Control devices were installed as per standards with no direction from KYTC."]
[5,"5: Total project involvement by actively engaging advance warning techniques, oversize vehicle considerations, media dissemination, law enforcement officers, and on-site traffic control technicians."]
[]
[null,"B2. Overall safety of employees (including subcontractors)"]
[null,"Choose a rating from 1 to 5 according to the following criteria:"]
[]
[1,"1: Received an OSHA citation and/or a serious hazard was noted by the Section Engineer and the issue(s) were not immediately corrected. Safety issues were not communicated with project partners."]
[2,"2: Minor hazards noted by the Section Engineer, minimal communication regarding safety issues."]
[3,"3: The Section Engineer noted no hazards during the project."]
[4,"4: Safety meetings were held (must be verified in order to rate). Any safety concerns were communicated."]
[5,"5: Total safety project involvement by all project partners. All partners are involved with safety meetings and communication of potential safety problems being distributed to all parties including the Section Engineer and KYTC personnel."]
[]
[null,"Section C – Environmental Requirements"]
[]
[null,"C1. Performance of environmental mitigation methods (e.g. maintaining silt fencing, erosion control)"]
[null,"Choose a rating from 0 to 5 according to the following criteria:"]
[]
[0,"0: Environmental mitigation methods do not apply to this project."]
[1,"1: EPA fines assessed against the project and/or erosion control liquidated damages were assessed on the project."]
[2,"2: Erosion control devices were not adequately maintained. Corrective work at the completion of the project was excessive. Progressive seeding was not completed per contract requirements."]
[3,"3: Erosion control devices were adequately maintained.  Progressive seeding was completed per contract requirements. Contractor completed any necessary corrective work as a result of an Erosion Control Inspection Report (TC 63-61) within 7 calendar days of receipt of the report."]
[4,"4: Vegetation was established with minimal corrective work at the completion of the project. Progressive seeding was completed per contract requirements."]
[5,"5: Vegetation was established before the project was completed. Progressive seeding was completed per contract requirements. No corrective work at the completion of the project."]